Workbook

Sheet Calculos (hidden)
A1: Factores utilizados en Meses de No Pago para cálculo del valor cuota
A3: N° de Cuota | B3: Equivalente | C3: Fecha | D3: Mes | E3: Marca Cuota No Pago | F3: Factor (10) | G3: Acumulado
A4: 1 | B4: =IF(E4<>"C",IF(ISERROR(1+B3)=TRUE,1,1+B3),IF(ISNUMBER(B3),B3,1)) -> 1 | C4: =+#REF! ->  | D4: =MONTH(C4) ->  | E4: =IF(ISERROR(MATCH(D4,#REF!,0))=FALSE,"C",IF(ISERROR(MATCH(D4,#REF!,0))=FALSE,"D","")) ->  | F4: =IF(E4="C",0,IF(E4 ="D",ROUND(1/((1+#REF!)^A4),9) * 2,ROUND(1/((1+#REF!)^A4),9))) ->  | G4: =ROUND(F4,9) -> 
A5: =A4+1 -> 2 | B5: =IF(E5<>"C",IF(ISERROR(1+B4)=TRUE,1,1+B4),IF(ISNUMBER(B4),B4,1)) -> 2 | C5: =DATE(YEAR(C4) + 1/12,MONTH(C4)+1,DAY(C4)) ->  | E5: =IF(ISERROR(MATCH(D5,#REF!,0))=FALSE,"C",IF(ISERROR(MATCH(D5,#REF!,0))=FALSE,"D","")) ->  | F5: =IF(E5="C",0,IF(E5 ="D",ROUND(1/((1+#REF!)^A5),9) * 2,ROUND(1/((1+#REF!)^A5),9))) ->  | G5: =G4+ROUND(F5,9) -> 
A6: 3 | B6: 3 | E6: =IF(ISERROR(MATCH(D6,#REF!,0))=FALSE,"C",IF(ISERROR(MATCH(D6,#REF!,0))=FALSE,"D","")) ->  | F6: =IF(E6="C",0,IF(E6 ="D",ROUND(1/((1+#REF!)^A6),9) * 2,ROUND(1/((1+#REF!)^A6),9))) ->  | G6: =G5+ROUND(F6,9) -> 
A7: 4 | B7: 4 | E7: =IF(ISERROR(MATCH(D7,#REF!,0))=FALSE,"C",IF(ISERROR(MATCH(D7,#REF!,0))=FALSE,"D","")) ->  | F7: =IF(E7="C",0,IF(E7 ="D",ROUND(1/((1+#REF!)^A7),9) * 2,ROUND(1/((1+#REF!)^A7),9))) -> 
A8: 5 | B8: 5 | E8: =IF(ISERROR(MATCH(D8,#REF!,0))=FALSE,"C",IF(ISERROR(MATCH(D8,#REF!,0))=FALSE,"D","")) ->  | F8: =IF(E8="C",0,IF(E8 ="D",ROUND(1/((1+#REF!)^A8),9) * 2,ROUND(1/((1+#REF!)^A8),9))) -> 
A9: 6 | B9: 6 | E9: =IF(ISERROR(MATCH(D9,#REF!,0))=FALSE,"C",IF(ISERROR(MATCH(D9,#REF!,0))=FALSE,"D","")) ->  | F9: =IF(E9="C",0,IF(E9 ="D",ROUND(1/((1+#REF!)^A9),9) * 2,ROUND(1/((1+#REF!)^A9),9))) -> 
A10: 7 | B10: 7 | E10: =IF(ISERROR(MATCH(D10,#REF!,0))=FALSE,"C",IF(ISERROR(MATCH(D10,#REF!,0))=FALSE,"D","")) ->  | F10: =IF(E10="C",0,IF(E10 ="D",ROUND(1/((1+#REF!)^A10),9) * 2,ROUND(1/((1+#REF!)^A10),9))) -> 
A11: 8 | B11: 8 | E11: =IF(ISERROR(MATCH(D11,#REF!,0))=FALSE,"C",IF(ISERROR(MATCH(D11,#REF!,0))=FALSE,"D","")) ->  | F11: =IF(E11="C",0,IF(E11 ="D",ROUND(1/((1+#REF!)^A11),9) * 2,ROUND(1/((1+#REF!)^A11),9))) -> 
A12: 9 | B12: 9 | E12: =IF(ISERROR(MATCH(D12,#REF!,0))=FALSE,"C",IF(ISERROR(MATCH(D12,#REF!,0))=FALSE,"D","")) ->  | F12: =IF(E12="C",0,IF(E12 ="D",ROUND(1/((1+#REF!)^A12),9) * 2,ROUND(1/((1+#REF!)^A12),9))) -> 
A13: 10 | B13: 10 | E13: =IF(ISERROR(MATCH(D13,#REF!,0))=FALSE,"C",IF(ISERROR(MATCH(D13,#REF!,0))=FALSE,"D","")) ->  | F13: =IF(E13="C",0,IF(E13 ="D",ROUND(1/((1+#REF!)^A13),9) * 2,ROUND(1/((1+#REF!)^A13),9))) -> 
A14: 11 | B14: 11 | E14: =IF(ISERROR(MATCH(D14,#REF!,0))=FALSE,"C",IF(ISERROR(MATCH(D14,#REF!,0))=FALSE,"D","")) ->  | F14: =IF(E14="C",0,IF(E14 ="D",ROUND(1/((1+#REF!)^A14),9) * 2,ROUND(1/((1+#REF!)^A14),9))) -> 
A15: 12 | B15: 12 | E15: =IF(ISERROR(MATCH(D15,#REF!,0))=FALSE,"C",IF(ISERROR(MATCH(D15,#REF!,0))=FALSE,"D","")) ->  | F15: =IF(E15="C",0,IF(E15 ="D",ROUND(1/((1+#REF!)^A15),9) * 2,ROUND(1/((1+#REF!)^A15),9))) -> 
A16: 13 | B16: 13 | E16: =IF(ISERROR(MATCH(D16,#REF!,0))=FALSE,"C",IF(ISERROR(MATCH(D16,#REF!,0))=FALSE,"D","")) ->  | F16: =IF(E16="C",0,IF(E16 ="D",ROUND(1/((1+#REF!)^A16),9) * 2,ROUND(1/((1+#REF!)^A16),9))) -> 
A17: 14 | B17: 14 | E17: =IF(ISERROR(MATCH(D17,#REF!,0))=FALSE,"C",IF(ISERROR(MATCH(D17,#REF!,0))=FALSE,"D","")) ->  | F17: =IF(E17="C",0,IF(E17 ="D",ROUND(1/((1+#REF!)^A17),9) * 2,ROUND(1/((1+#REF!)^A17),9))) -> 
A18: 15 | B18: 15 | E18: =IF(ISERROR(MATCH(D18,#REF!,0))=FALSE,"C",IF(ISERROR(MATCH(D18,#REF!,0))=FALSE,"D","")) ->  | F18: =IF(E18="C",0,IF(E18 ="D",ROUND(1/((1+#REF!)^A18),9) * 2,ROUND(1/((1+#REF!)^A18),9))) -> 
A19: 16 | B19: 16 | E19: =IF(ISERROR(MATCH(D19,#REF!,0))=FALSE,"C",IF(ISERROR(MATCH(D19,#REF!,0))=FALSE,"D","")) ->  | F19: =IF(E19="C",0,IF(E19 ="D",ROUND(1/((1+#REF!)^A19),9) * 2,ROUND(1/((1+#REF!)^A19),9))) -> 
A20: 17 | B20: 17 | E20: =IF(ISERROR(MATCH(D20,#REF!,0))=FALSE,"C",IF(ISERROR(MATCH(D20,#REF!,0))=FALSE,"D","")) ->  | F20: =IF(E20="C",0,IF(E20 ="D",ROUND(1/((1+#REF!)^A20),9) * 2,ROUND(1/((1+#REF!)^A20),9))) -> 
A21: 18 | B21: 18 | E21: =IF(ISERROR(MATCH(D21,#REF!,0))=FALSE,"C",IF(ISERROR(MATCH(D21,#REF!,0))=FALSE,"D","")) ->  | F21: =IF(E21="C",0,IF(E21 ="D",ROUND(1/((1+#REF!)^A21),9) * 2,ROUND(1/((1+#REF!)^A21),9))) -> 
A22: 19 | B22: 19 | E22: =IF(ISERROR(MATCH(D22,#REF!,0))=FALSE,"C",IF(ISERROR(MATCH(D22,#REF!,0))=FALSE,"D","")) ->  | F22: =IF(E22="C",0,IF(E22 ="D",ROUND(1/((1+#REF!)^A22),9) * 2,ROUND(1/((1+#REF!)^A22),9))) -> 
A23: 20 | B23: 20 | E23: =IF(ISERROR(MATCH(D23,#REF!,0))=FALSE,"C",IF(ISERROR(MATCH(D23,#REF!,0))=FALSE,"D","")) ->  | F23: =IF(E23="C",0,IF(E23 ="D",ROUND(1/((1+#REF!)^A23),9) * 2,ROUND(1/((1+#REF!)^A23),9))) -> 
A24: 21 | B24: 21 | E24: =IF(ISERROR(MATCH(D24,#REF!,0))=FALSE,"C",IF(ISERROR(MATCH(D24,#REF!,0))=FALSE,"D","")) ->  | F24: =IF(E24="C",0,IF(E24 ="D",ROUND(1/((1+#REF!)^A24),9) * 2,ROUND(1/((1+#REF!)^A24),9))) -> 
A25: 22 | B25: 22 | E25: =IF(ISERROR(MATCH(D25,#REF!,0))=FALSE,"C",IF(ISERROR(MATCH(D25,#REF!,0))=FALSE,"D","")) ->  | F25: =IF(E25="C",0,IF(E25 ="D",ROUND(1/((1+#REF!)^A25),9) * 2,ROUND(1/((1+#REF!)^A25),9))) -> 
A26: 23 | B26: 23 | E26: =IF(ISERROR(MATCH(D26,#REF!,0))=FALSE,"C",IF(ISERROR(MATCH(D26,#REF!,0))=FALSE,"D","")) ->  | F26: =IF(E26="C",0,IF(E26 ="D",ROUND(1/((1+#REF!)^A26),9) * 2,ROUND(1/((1+#REF!)^A26),9))) -> 
A27: 24 | B27: 24 | E27: =IF(ISERROR(MATCH(D27,#REF!,0))=FALSE,"C",IF(ISERROR(MATCH(D27,#REF!,0))=FALSE,"D","")) ->  | F27: =IF(E27="C",0,IF(E27 ="D",ROUND(1/((1+#REF!)^A27),9) * 2,ROUND(1/((1+#REF!)^A27),9))) -> 
A28: 25 | B28: 25 | E28: =IF(ISERROR(MATCH(D28,#REF!,0))=FALSE,"C",IF(ISERROR(MATCH(D28,#REF!,0))=FALSE,"D","")) ->  | F28: =IF(E28="C",0,IF(E28 ="D",ROUND(1/((1+#REF!)^A28),9) * 2,ROUND(1/((1+#REF!)^A28),9))) -> 
A29: 26 | B29: 26 | E29: =IF(ISERROR(MATCH(D29,#REF!,0))=FALSE,"C",IF(ISERROR(MATCH(D29,#REF!,0))=FALSE,"D","")) ->  | F29: =IF(E29="C",0,IF(E29 ="D",ROUND(1/((1+#REF!)^A29),9) * 2,ROUND(1/((1+#REF!)^A29),9))) -> 
A30: 27 | B30: 27 | E30: =IF(ISERROR(MATCH(D30,#REF!,0))=FALSE,"C",IF(ISERROR(MATCH(D30,#REF!,0))=FALSE,"D","")) ->  | F30: =IF(E30="C",0,IF(E30 ="D",ROUND(1/((1+#REF!)^A30),9) * 2,ROUND(1/((1+#REF!)^A30),9))) -> 
A31: 28 | B31: 28 | E31: =IF(ISERROR(MATCH(D31,#REF!,0))=FALSE,"C",IF(ISERROR(MATCH(D31,#REF!,0))=FALSE,"D","")) ->  | F31: =IF(E31="C",0,IF(E31 ="D",ROUND(1/((1+#REF!)^A31),9) * 2,ROUND(1/((1+#REF!)^A31),9))) -> 
A32: 29 | B32: 29 | E32: =IF(ISERROR(MATCH(D32,#REF!,0))=FALSE,"C",IF(ISERROR(MATCH(D32,#REF!,0))=FALSE,"D","")) ->  | F32: =IF(E32="C",0,IF(E32 ="D",ROUND(1/((1+#REF!)^A32),9) * 2,ROUND(1/((1+#REF!)^A32),9))) -> 
A33: 30 | B33: 30 | E33: =IF(ISERROR(MATCH(D33,#REF!,0))=FALSE,"C",IF(ISERROR(MATCH(D33,#REF!,0))=FALSE,"D","")) ->  | F33: =IF(E33="C",0,IF(E33 ="D",ROUND(1/((1+#REF!)^A33),9) * 2,ROUND(1/((1+#REF!)^A33),9))) -> 
A34: 31 | B34: 31 | E34: =IF(ISERROR(MATCH(D34,#REF!,0))=FALSE,"C",IF(ISERROR(MATCH(D34,#REF!,0))=FALSE,"D","")) ->  | F34: =IF(E34="C",0,IF(E34 ="D",ROUND(1/((1+#REF!)^A34),9) * 2,ROUND(1/((1+#REF!)^A34),9))) -> 
A35: 32 | B35: 32 | E35: =IF(ISERROR(MATCH(D35,#REF!,0))=FALSE,"C",IF(ISERROR(MATCH(D35,#REF!,0))=FALSE,"D","")) ->  | F35: =IF(E35="C",0,IF(E35 ="D",ROUND(1/((1+#REF!)^A35),9) * 2,ROUND(1/((1+#REF!)^A35),9))) -> 
A36: 33 | B36: 33 | E36: =IF(ISERROR(MATCH(D36,#REF!,0))=FALSE,"C",IF(ISERROR(MATCH(D36,#REF!,0))=FALSE,"D","")) ->  | F36: =IF(E36="C",0,IF(E36 ="D",ROUND(1/((1+#REF!)^A36),9) * 2,ROUND(1/((1+#REF!)^A36),9))) -> 
A37: 34 | B37: 34 | E37: =IF(ISERROR(MATCH(D37,#REF!,0))=FALSE,"C",IF(ISERROR(MATCH(D37,#REF!,0))=FALSE,"D","")) ->  | F37: =IF(E37="C",0,IF(E37 ="D",ROUND(1/((1+#REF!)^A37),9) * 2,ROUND(1/((1+#REF!)^A37),9))) -> 
A38: 35 | B38: 35 | E38: =IF(ISERROR(MATCH(D38,#REF!,0))=FALSE,"C",IF(ISERROR(MATCH(D38,#REF!,0))=FALSE,"D","")) ->  | F38: =IF(E38="C",0,IF(E38 ="D",ROUND(1/((1+#REF!)^A38),9) * 2,ROUND(1/((1+#REF!)^A38),9))) -> 
A39: 36 | B39: 36 | E39: =IF(ISERROR(MATCH(D39,#REF!,0))=FALSE,"C",IF(ISERROR(MATCH(D39,#REF!,0))=FALSE,"D","")) ->  | F39: =IF(E39="C",0,IF(E39 ="D",ROUND(1/((1+#REF!)^A39),9) * 2,ROUND(1/((1+#REF!)^A39),9))) -> 
A40: 37 | B40: 37 | E40: =IF(ISERROR(MATCH(D40,#REF!,0))=FALSE,"C",IF(ISERROR(MATCH(D40,#REF!,0))=FALSE,"D","")) ->  | F40: =IF(E40="C",0,IF(E40 ="D",ROUND(1/((1+#REF!)^A40),9) * 2,ROUND(1/((1+#REF!)^A40),9))) -> 
A41: 38 | B41: 38 | E41: =IF(ISERROR(MATCH(D41,#REF!,0))=FALSE,"C",IF(ISERROR(MATCH(D41,#REF!,0))=FALSE,"D","")) ->  | F41: =IF(E41="C",0,IF(E41 ="D",ROUND(1/((1+#REF!)^A41),9) * 2,ROUND(1/((1+#REF!)^A41),9))) -> 
A42: 39 | B42: 39 | E42: =IF(ISERROR(MATCH(D42,#REF!,0))=FALSE,"C",IF(ISERROR(MATCH(D42,#REF!,0))=FALSE,"D","")) ->  | F42: =IF(E42="C",0,IF(E42 ="D",ROUND(1/((1+#REF!)^A42),9) * 2,ROUND(1/((1+#REF!)^A42),9))) -> 
A43: 40 | B43: 40 | E43: =IF(ISERROR(MATCH(D43,#REF!,0))=FALSE,"C",IF(ISERROR(MATCH(D43,#REF!,0))=FALSE,"D","")) ->  | F43: =IF(E43="C",0,IF(E43 ="D",ROUND(1/((1+#REF!)^A43),9) * 2,ROUND(1/((1+#REF!)^A43),9))) -> 
A44: 41 | B44: 41 | E44: =IF(ISERROR(MATCH(D44,#REF!,0))=FALSE,"C",IF(ISERROR(MATCH(D44,#REF!,0))=FALSE,"D","")) ->  | F44: =IF(E44="C",0,IF(E44 ="D",ROUND(1/((1+#REF!)^A44),9) * 2,ROUND(1/((1+#REF!)^A44),9))) -> 
A45: 42 | B45: 42 | E45: =IF(ISERROR(MATCH(D45,#REF!,0))=FALSE,"C",IF(ISERROR(MATCH(D45,#REF!,0))=FALSE,"D","")) ->  | F45: =IF(E45="C",0,IF(E45 ="D",ROUND(1/((1+#REF!)^A45),9) * 2,ROUND(1/((1+#REF!)^A45),9))) -> 
A46: 43 | B46: 43 | E46: =IF(ISERROR(MATCH(D46,#REF!,0))=FALSE,"C",IF(ISERROR(MATCH(D46,#REF!,0))=FALSE,"D","")) ->  | F46: =IF(E46="C",0,IF(E46 ="D",ROUND(1/((1+#REF!)^A46),9) * 2,ROUND(1/((1+#REF!)^A46),9))) -> 
A47: 44 | B47: 44 | E47: =IF(ISERROR(MATCH(D47,#REF!,0))=FALSE,"C",IF(ISERROR(MATCH(D47,#REF!,0))=FALSE,"D","")) ->  | F47: =IF(E47="C",0,IF(E47 ="D",ROUND(1/((1+#REF!)^A47),9) * 2,ROUND(1/((1+#REF!)^A47),9))) -> 
A48: 45 | B48: 45 | E48: =IF(ISERROR(MATCH(D48,#REF!,0))=FALSE,"C",IF(ISERROR(MATCH(D48,#REF!,0))=FALSE,"D","")) ->  | F48: =IF(E48="C",0,IF(E48 ="D",ROUND(1/((1+#REF!)^A48),9) * 2,ROUND(1/((1+#REF!)^A48),9))) -> 
A49: 46 | B49: 46 | E49: =IF(ISERROR(MATCH(D49,#REF!,0))=FALSE,"C",IF(ISERROR(MATCH(D49,#REF!,0))=FALSE,"D","")) ->  | F49: =IF(E49="C",0,IF(E49 ="D",ROUND(1/((1+#REF!)^A49),9) * 2,ROUND(1/((1+#REF!)^A49),9))) -> 
A50: 47 | B50: 47 | E50: =IF(ISERROR(MATCH(D50,#REF!,0))=FALSE,"C",IF(ISERROR(MATCH(D50,#REF!,0))=FALSE,"D","")) ->  | F50: =IF(E50="C",0,IF(E50 ="D",ROUND(1/((1+#REF!)^A50),9) * 2,ROUND(1/((1+#REF!)^A50),9))) -> 
A51: 48 | B51: 48 | E51: =IF(ISERROR(MATCH(D51,#REF!,0))=FALSE,"C",IF(ISERROR(MATCH(D51,#REF!,0))=FALSE,"D","")) ->  | F51: =IF(E51="C",0,IF(E51 ="D",ROUND(1/((1+#REF!)^A51),9) * 2,ROUND(1/((1+#REF!)^A51),9))) -> 
A52: 49 | B52: 49 | E52: =IF(ISERROR(MATCH(D52,#REF!,0))=FALSE,"C",IF(ISERROR(MATCH(D52,#REF!,0))=FALSE,"D","")) ->  | F52: =IF(E52="C",0,IF(E52 ="D",ROUND(1/((1+#REF!)^A52),9) * 2,ROUND(1/((1+#REF!)^A52),9))) -> 
A53: 50 | B53: 50 | E53: =IF(ISERROR(MATCH(D53,#REF!,0))=FALSE,"C",IF(ISERROR(MATCH(D53,#REF!,0))=FALSE,"D","")) ->  | F53: =IF(E53="C",0,IF(E53 ="D",ROUND(1/((1+#REF!)^A53),9) * 2,ROUND(1/((1+#REF!)^A53),9))) -> 
A54: 51 | B54: 51 | E54: =IF(ISERROR(MATCH(D54,#REF!,0))=FALSE,"C",IF(ISERROR(MATCH(D54,#REF!,0))=FALSE,"D","")) ->  | F54: =IF(E54="C",0,IF(E54 ="D",ROUND(1/((1+#REF!)^A54),9) * 2,ROUND(1/((1+#REF!)^A54),9))) -> 
A55: 52 | B55: 52 | E55: =IF(ISERROR(MATCH(D55,#REF!,0))=FALSE,"C",IF(ISERROR(MATCH(D55,#REF!,0))=FALSE,"D","")) ->  | F55: =IF(E55="C",0,IF(E55 ="D",ROUND(1/((1+#REF!)^A55),9) * 2,ROUND(1/((1+#REF!)^A55),9))) -> 
A56: 53 | B56: 53 | E56: =IF(ISERROR(MATCH(D56,#REF!,0))=FALSE,"C",IF(ISERROR(MATCH(D56,#REF!,0))=FALSE,"D","")) ->  | F56: =IF(E56="C",0,IF(E56 ="D",ROUND(1/((1+#REF!)^A56),9) * 2,ROUND(1/((1+#REF!)^A56),9))) -> 
A57: 54 | B57: 54 | E57: =IF(ISERROR(MATCH(D57,#REF!,0))=FALSE,"C",IF(ISERROR(MATCH(D57,#REF!,0))=FALSE,"D","")) ->  | F57: =IF(E57="C",0,IF(E57 ="D",ROUND(1/((1+#REF!)^A57),9) * 2,ROUND(1/((1+#REF!)^A57),9))) -> 
A58: 55 | B58: 55 | E58: =IF(ISERROR(MATCH(D58,#REF!,0))=FALSE,"C",IF(ISERROR(MATCH(D58,#REF!,0))=FALSE,"D","")) ->  | F58: =IF(E58="C",0,IF(E58 ="D",ROUND(1/((1+#REF!)^A58),9) * 2,ROUND(1/((1+#REF!)^A58),9))) -> 
A59: 56 | B59: 56 | E59: =IF(ISERROR(MATCH(D59,#REF!,0))=FALSE,"C",IF(ISERROR(MATCH(D59,#REF!,0))=FALSE,"D","")) ->  | F59: =IF(E59="C",0,IF(E59 ="D",ROUND(1/((1+#REF!)^A59),9) * 2,ROUND(1/((1+#REF!)^A59),9))) -> 
A60: 57 | B60: 57 | E60: =IF(ISERROR(MATCH(D60,#REF!,0))=FALSE,"C",IF(ISERROR(MATCH(D60,#REF!,0))=FALSE,"D","")) ->  | F60: =IF(E60="C",0,IF(E60 ="D",ROUND(1/((1+#REF!)^A60),9) * 2,ROUND(1/((1+#REF!)^A60),9))) -> 
A61: 58 | B61: 58 | E61: =IF(ISERROR(MATCH(D61,#REF!,0))=FALSE,"C",IF(ISERROR(MATCH(D61,#REF!,0))=FALSE,"D","")) ->  | F61: =IF(E61="C",0,IF(E61 ="D",ROUND(1/((1+#REF!)^A61),9) * 2,ROUND(1/((1+#REF!)^A61),9))) -> 
A62: 59 | B62: 59 | E62: =IF(ISERROR(MATCH(D62,#REF!,0))=FALSE,"C",IF(ISERROR(MATCH(D62,#REF!,0))=FALSE,"D","")) ->  | F62: =IF(E62="C",0,IF(E62 ="D",ROUND(1/((1+#REF!)^A62),9) * 2,ROUND(1/((1+#REF!)^A62),9))) -> 
A63: 60 | B63: 60 | E63: =IF(ISERROR(MATCH(D63,#REF!,0))=FALSE,"C",IF(ISERROR(MATCH(D63,#REF!,0))=FALSE,"D","")) ->  | F63: =IF(E63="C",0,IF(E63 ="D",ROUND(1/((1+#REF!)^A63),9) * 2,ROUND(1/((1+#REF!)^A63),9))) -> 
A64: 61 | B64: 61 | E64: =IF(ISERROR(MATCH(D64,#REF!,0))=FALSE,"C",IF(ISERROR(MATCH(D64,#REF!,0))=FALSE,"D","")) ->  | F64: =IF(E64="C",0,IF(E64 ="D",ROUND(1/((1+#REF!)^A64),9) * 2,ROUND(1/((1+#REF!)^A64),9))) -> 
A65: 62 | B65: 62 | E65: =IF(ISERROR(MATCH(D65,#REF!,0))=FALSE,"C",IF(ISERROR(MATCH(D65,#REF!,0))=FALSE,"D","")) ->  | F65: =IF(E65="C",0,IF(E65 ="D",ROUND(1/((1+#REF!)^A65),9) * 2,ROUND(1/((1+#REF!)^A65),9))) -> 
A66: 63 | B66: 63 | E66: =IF(ISERROR(MATCH(D66,#REF!,0))=FALSE,"C",IF(ISERROR(MATCH(D66,#REF!,0))=FALSE,"D","")) ->  | F66: =IF(E66="C",0,IF(E66 ="D",ROUND(1/((1+#REF!)^A66),9) * 2,ROUND(1/((1+#REF!)^A66),9))) -> 
A67: 64 | B67: 64 | E67: =IF(ISERROR(MATCH(D67,#REF!,0))=FALSE,"C",IF(ISERROR(MATCH(D67,#REF!,0))=FALSE,"D","")) ->  | F67: =IF(E67="C",0,IF(E67 ="D",ROUND(1/((1+#REF!)^A67),9) * 2,ROUND(1/((1+#REF!)^A67),9))) -> 
A68: 65 | B68: 65 | D68: =MONTH(C68) ->  | E68: =IF(ISERROR(MATCH(D68,#REF!,0))=FALSE,"C",IF(ISERROR(MATCH(D68,#REF!,0))=FALSE,"D","")) ->  | F68: =IF(E68="C",0,IF(E68 ="D",ROUND(1/((1+#REF!)^A68),9) * 2,ROUND(1/((1+#REF!)^A68),9))) -> 
A69: =A68+1 -> 66 | B69: =IF(E69<>"C",IF(ISERROR(1+B68)=TRUE,1,1+B68),IF(ISNUMBER(B68),B68,1)) -> 66 | C69: =DATE(YEAR(C68) + 1/12,MONTH(C68)+1,DAY(C68)) ->  | E69: =IF(ISERROR(MATCH(D69,#REF!,0))=FALSE,"C",IF(ISERROR(MATCH(D69,#REF!,0))=FALSE,"D","")) ->  | F69: =IF(E69="C",0,IF(E69 ="D",ROUND(1/((1+#REF!)^A69),9) * 2,ROUND(1/((1+#REF!)^A69),9))) -> 
A70: 67 | B70: 67 | E70: =IF(ISERROR(MATCH(D70,#REF!,0))=FALSE,"C",IF(ISERROR(MATCH(D70,#REF!,0))=FALSE,"D","")) ->  | F70: =IF(E70="C",0,IF(E70 ="D",ROUND(1/((1+#REF!)^A70),9) * 2,ROUND(1/((1+#REF!)^A70),9))) ->  | G70: =G69+ROUND(F70,9) -> 
A71: 68 | B71: 68 | E71: =IF(ISERROR(MATCH(D71,#REF!,0))=FALSE,"C",IF(ISERROR(MATCH(D71,#REF!,0))=FALSE,"D","")) ->  | F71: =IF(E71="C",0,IF(E71 ="D",ROUND(1/((1+#REF!)^A71),9) * 2,ROUND(1/((1+#REF!)^A71),9))) -> 
A72: 69 | B72: 69 | E72: =IF(ISERROR(MATCH(D72,#REF!,0))=FALSE,"C",IF(ISERROR(MATCH(D72,#REF!,0))=FALSE,"D","")) ->  | F72: =IF(E72="C",0,IF(E72 ="D",ROUND(1/((1+#REF!)^A72),9) * 2,ROUND(1/((1+#REF!)^A72),9))) -> 
A73: 70 | B73: 70 | E73: =IF(ISERROR(MATCH(D73,#REF!,0))=FALSE,"C",IF(ISERROR(MATCH(D73,#REF!,0))=FALSE,"D","")) ->  | F73: =IF(E73="C",0,IF(E73 ="D",ROUND(1/((1+#REF!)^A73),9) * 2,ROUND(1/((1+#REF!)^A73),9))) -> 
A74: 71 | B74: 71 | E74: =IF(ISERROR(MATCH(D74,#REF!,0))=FALSE,"C",IF(ISERROR(MATCH(D74,#REF!,0))=FALSE,"D","")) ->  | F74: =IF(E74="C",0,IF(E74 ="D",ROUND(1/((1+#REF!)^A74),9) * 2,ROUND(1/((1+#REF!)^A74),9))) -> 
A75: 72 | B75: 72 | E75: =IF(ISERROR(MATCH(D75,#REF!,0))=FALSE,"C",IF(ISERROR(MATCH(D75,#REF!,0))=FALSE,"D","")) ->  | F75: =IF(E75="C",0,IF(E75 ="D",ROUND(1/((1+#REF!)^A75),9) * 2,ROUND(1/((1+#REF!)^A75),9))) -> 
A76: 73 | B76: 73 | E76: =IF(ISERROR(MATCH(D76,#REF!,0))=FALSE,"C",IF(ISERROR(MATCH(D76,#REF!,0))=FALSE,"D","")) ->  | F76: =IF(E76="C",0,IF(E76 ="D",ROUND(1/((1+#REF!)^A76),9) * 2,ROUND(1/((1+#REF!)^A76),9))) -> 
A77: 74 | B77: 74 | E77: =IF(ISERROR(MATCH(D77,#REF!,0))=FALSE,"C",IF(ISERROR(MATCH(D77,#REF!,0))=FALSE,"D","")) ->  | F77: =IF(E77="C",0,IF(E77 ="D",ROUND(1/((1+#REF!)^A77),9) * 2,ROUND(1/((1+#REF!)^A77),9))) -> 
A78: 75 | B78: 75 | E78: =IF(ISERROR(MATCH(D78,#REF!,0))=FALSE,"C",IF(ISERROR(MATCH(D78,#REF!,0))=FALSE,"D","")) ->  | F78: =IF(E78="C",0,IF(E78 ="D",ROUND(1/((1+#REF!)^A78),9) * 2,ROUND(1/((1+#REF!)^A78),9))) -> 
A79: 76 | B79: 76 | E79: =IF(ISERROR(MATCH(D79,#REF!,0))=FALSE,"C",IF(ISERROR(MATCH(D79,#REF!,0))=FALSE,"D","")) ->  | F79: =IF(E79="C",0,IF(E79 ="D",ROUND(1/((1+#REF!)^A79),9) * 2,ROUND(1/((1+#REF!)^A79),9))) -> 
A80: 77 | B80: 77 | E80: =IF(ISERROR(MATCH(D80,#REF!,0))=FALSE,"C",IF(ISERROR(MATCH(D80,#REF!,0))=FALSE,"D","")) ->  | F80: =IF(E80="C",0,IF(E80 ="D",ROUND(1/((1+#REF!)^A80),9) * 2,ROUND(1/((1+#REF!)^A80),9))) -> 
A81: 78 | B81: 78 | E81: =IF(ISERROR(MATCH(D81,#REF!,0))=FALSE,"C",IF(ISERROR(MATCH(D81,#REF!,0))=FALSE,"D","")) ->  | F81: =IF(E81="C",0,IF(E81 ="D",ROUND(1/((1+#REF!)^A81),9) * 2,ROUND(1/((1+#REF!)^A81),9))) -> 
A82: 79 | B82: 79 | E82: =IF(ISERROR(MATCH(D82,#REF!,0))=FALSE,"C",IF(ISERROR(MATCH(D82,#REF!,0))=FALSE,"D","")) ->  | F82: =IF(E82="C",0,IF(E82 ="D",ROUND(1/((1+#REF!)^A82),9) * 2,ROUND(1/((1+#REF!)^A82),9))) -> 
A83: 80 | B83: 80 | E83: =IF(ISERROR(MATCH(D83,#REF!,0))=FALSE,"C",IF(ISERROR(MATCH(D83,#REF!,0))=FALSE,"D","")) ->  | F83: =IF(E83="C",0,IF(E83 ="D",ROUND(1/((1+#REF!)^A83),9) * 2,ROUND(1/((1+#REF!)^A83),9))) -> 
A84: 81 | B84: 81 | E84: =IF(ISERROR(MATCH(D84,#REF!,0))=FALSE,"C",IF(ISERROR(MATCH(D84,#REF!,0))=FALSE,"D","")) ->  | F84: =IF(E84="C",0,IF(E84 ="D",ROUND(1/((1+#REF!)^A84),9) * 2,ROUND(1/((1+#REF!)^A84),9))) -> 
A85: 82 | B85: 82 | E85: =IF(ISERROR(MATCH(D85,#REF!,0))=FALSE,"C",IF(ISERROR(MATCH(D85,#REF!,0))=FALSE,"D","")) ->  | F85: =IF(E85="C",0,IF(E85 ="D",ROUND(1/((1+#REF!)^A85),9) * 2,ROUND(1/((1+#REF!)^A85),9))) -> 
A86: 83 | B86: 83 | E86: =IF(ISERROR(MATCH(D86,#REF!,0))=FALSE,"C",IF(ISERROR(MATCH(D86,#REF!,0))=FALSE,"D","")) ->  | F86: =IF(E86="C",0,IF(E86 ="D",ROUND(1/((1+#REF!)^A86),9) * 2,ROUND(1/((1+#REF!)^A86),9))) -> 
A87: 84 | B87: 84 | E87: =IF(ISERROR(MATCH(D87,#REF!,0))=FALSE,"C",IF(ISERROR(MATCH(D87,#REF!,0))=FALSE,"D","")) ->  | F87: =IF(E87="C",0,IF(E87 ="D",ROUND(1/((1+#REF!)^A87),9) * 2,ROUND(1/((1+#REF!)^A87),9))) -> 
A88: 85 | B88: 85 | E88: =IF(ISERROR(MATCH(D88,#REF!,0))=FALSE,"C",IF(ISERROR(MATCH(D88,#REF!,0))=FALSE,"D","")) ->  | F88: =IF(E88="C",0,IF(E88 ="D",ROUND(1/((1+#REF!)^A88),9) * 2,ROUND(1/((1+#REF!)^A88),9))) -> 
A89: 86 | B89: 86 | E89: =IF(ISERROR(MATCH(D89,#REF!,0))=FALSE,"C",IF(ISERROR(MATCH(D89,#REF!,0))=FALSE,"D","")) ->  | F89: =IF(E89="C",0,IF(E89 ="D",ROUND(1/((1+#REF!)^A89),9) * 2,ROUND(1/((1+#REF!)^A89),9))) -> 
A90: 87 | B90: 87 | E90: =IF(ISERROR(MATCH(D90,#REF!,0))=FALSE,"C",IF(ISERROR(MATCH(D90,#REF!,0))=FALSE,"D","")) ->  | F90: =IF(E90="C",0,IF(E90 ="D",ROUND(1/((1+#REF!)^A90),9) * 2,ROUND(1/((1+#REF!)^A90),9))) -> 
A91: 88 | B91: 88 | E91: =IF(ISERROR(MATCH(D91,#REF!,0))=FALSE,"C",IF(ISERROR(MATCH(D91,#REF!,0))=FALSE,"D","")) ->  | F91: =IF(E91="C",0,IF(E91 ="D",ROUND(1/((1+#REF!)^A91),9) * 2,ROUND(1/((1+#REF!)^A91),9))) -> 
A92: 89 | B92: 89 | E92: =IF(ISERROR(MATCH(D92,#REF!,0))=FALSE,"C",IF(ISERROR(MATCH(D92,#REF!,0))=FALSE,"D","")) ->  | F92: =IF(E92="C",0,IF(E92 ="D",ROUND(1/((1+#REF!)^A92),9) * 2,ROUND(1/((1+#REF!)^A92),9))) -> 
A93: 90 | B93: 90 | E93: =IF(ISERROR(MATCH(D93,#REF!,0))=FALSE,"C",IF(ISERROR(MATCH(D93,#REF!,0))=FALSE,"D","")) ->  | F93: =IF(E93="C",0,IF(E93 ="D",ROUND(1/((1+#REF!)^A93),9) * 2,ROUND(1/((1+#REF!)^A93),9))) -> 
A94: 91 | B94: 91 | E94: =IF(ISERROR(MATCH(D94,#REF!,0))=FALSE,"C",IF(ISERROR(MATCH(D94,#REF!,0))=FALSE,"D","")) ->  | F94: =IF(E94="C",0,IF(E94 ="D",ROUND(1/((1+#REF!)^A94),9) * 2,ROUND(1/((1+#REF!)^A94),9))) -> 
A95: 92 | B95: 92 | E95: =IF(ISERROR(MATCH(D95,#REF!,0))=FALSE,"C",IF(ISERROR(MATCH(D95,#REF!,0))=FALSE,"D","")) ->  | F95: =IF(E95="C",0,IF(E95 ="D",ROUND(1/((1+#REF!)^A95),9) * 2,ROUND(1/((1+#REF!)^A95),9))) -> 
A96: 93 | B96: 93 | E96: =IF(ISERROR(MATCH(D96,#REF!,0))=FALSE,"C",IF(ISERROR(MATCH(D96,#REF!,0))=FALSE,"D","")) ->  | F96: =IF(E96="C",0,IF(E96 ="D",ROUND(1/((1+#REF!)^A96),9) * 2,ROUND(1/((1+#REF!)^A96),9))) -> 
A97: 94 | B97: 94 | E97: =IF(ISERROR(MATCH(D97,#REF!,0))=FALSE,"C",IF(ISERROR(MATCH(D97,#REF!,0))=FALSE,"D","")) ->  | F97: =IF(E97="C",0,IF(E97 ="D",ROUND(1/((1+#REF!)^A97),9) * 2,ROUND(1/((1+#REF!)^A97),9))) -> 
A98: 95 | B98: 95 | E98: =IF(ISERROR(MATCH(D98,#REF!,0))=FALSE,"C",IF(ISERROR(MATCH(D98,#REF!,0))=FALSE,"D","")) ->  | F98: =IF(E98="C",0,IF(E98 ="D",ROUND(1/((1+#REF!)^A98),9) * 2,ROUND(1/((1+#REF!)^A98),9))) -> 
A99: 96 | B99: 96 | E99: =IF(ISERROR(MATCH(D99,#REF!,0))=FALSE,"C",IF(ISERROR(MATCH(D99,#REF!,0))=FALSE,"D","")) ->  | F99: =IF(E99="C",0,IF(E99 ="D",ROUND(1/((1+#REF!)^A99),9) * 2,ROUND(1/((1+#REF!)^A99),9))) -> 
A100: 97 | B100: =IF(E100<>"C",IF(ISERROR(1+B99)=TRUE,1,1+B99),IF(ISNUMBER(B99),B99,1)) -> 97 | D100: =MONTH(C100) ->  | E100: =IF(ISERROR(MATCH(D100,#REF!,0))=FALSE,"C",IF(ISERROR(MATCH(D100,#REF!,0))=FALSE,"D","")) ->  | F100: =IF(E100="C",0,IF(E100 ="D",ROUND(1/((1+#REF!)^A100),9) * 2,ROUND(1/((1+#REF!)^A100),9))) ->  | G100: =G99+ROUND(F100,9) -> 
A101: 98 | B101: 98 | E101: =IF(ISERROR(MATCH(D101,#REF!,0))=FALSE,"C",IF(ISERROR(MATCH(D101,#REF!,0))=FALSE,"D","")) ->  | F101: =IF(E101="C",0,IF(E101 ="D",ROUND(1/((1+#REF!)^A101),9) * 2,ROUND(1/((1+#REF!)^A101),9))) -> 
A102: 99 | B102: 99 | E102: =IF(ISERROR(MATCH(D102,#REF!,0))=FALSE,"C",IF(ISERROR(MATCH(D102,#REF!,0))=FALSE,"D","")) ->  | F102: =IF(E102="C",0,IF(E102 ="D",ROUND(1/((1+#REF!)^A102),9) * 2,ROUND(1/((1+#REF!)^A102),9))) -> 
A103: 100 | B103: 100 | E103: =IF(ISERROR(MATCH(D103,#REF!,0))=FALSE,"C",IF(ISERROR(MATCH(D103,#REF!,0))=FALSE,"D","")) ->  | F103: =IF(E103="C",0,IF(E103 ="D",ROUND(1/((1+#REF!)^A103),9) * 2,ROUND(1/((1+#REF!)^A103),9))) -> 
A104: 101 | B104: 101 | E104: =IF(ISERROR(MATCH(D104,#REF!,0))=FALSE,"C",IF(ISERROR(MATCH(D104,#REF!,0))=FALSE,"D","")) ->  | F104: =IF(E104="C",0,IF(E104 ="D",ROUND(1/((1+#REF!)^A104),9) * 2,ROUND(1/((1+#REF!)^A104),9))) -> 
A105: 102 | B105: 102 | E105: =IF(ISERROR(MATCH(D105,#REF!,0))=FALSE,"C",IF(ISERROR(MATCH(D105,#REF!,0))=FALSE,"D","")) ->  | F105: =IF(E105="C",0,IF(E105 ="D",ROUND(1/((1+#REF!)^A105),9) * 2,ROUND(1/((1+#REF!)^A105),9))) -> 
A106: 103 | B106: 103 | E106: =IF(ISERROR(MATCH(D106,#REF!,0))=FALSE,"C",IF(ISERROR(MATCH(D106,#REF!,0))=FALSE,"D","")) ->  | F106: =IF(E106="C",0,IF(E106 ="D",ROUND(1/((1+#REF!)^A106),9) * 2,ROUND(1/((1+#REF!)^A106),9))) -> 
A107: 104 | B107: 104 | E107: =IF(ISERROR(MATCH(D107,#REF!,0))=FALSE,"C",IF(ISERROR(MATCH(D107,#REF!,0))=FALSE,"D","")) ->  | F107: =IF(E107="C",0,IF(E107 ="D",ROUND(1/((1+#REF!)^A107),9) * 2,ROUND(1/((1+#REF!)^A107),9))) -> 
A108: 105 | B108: 105 | E108: =IF(ISERROR(MATCH(D108,#REF!,0))=FALSE,"C",IF(ISERROR(MATCH(D108,#REF!,0))=FALSE,"D","")) ->  | F108: =IF(E108="C",0,IF(E108 ="D",ROUND(1/((1+#REF!)^A108),9) * 2,ROUND(1/((1+#REF!)^A108),9))) -> 
A109: 106 | B109: 106 | E109: =IF(ISERROR(MATCH(D109,#REF!,0))=FALSE,"C",IF(ISERROR(MATCH(D109,#REF!,0))=FALSE,"D","")) ->  | F109: =IF(E109="C",0,IF(E109 ="D",ROUND(1/((1+#REF!)^A109),9) * 2,ROUND(1/((1+#REF!)^A109),9))) -> 
A110: 107 | B110: 107 | E110: =IF(ISERROR(MATCH(D110,#REF!,0))=FALSE,"C",IF(ISERROR(MATCH(D110,#REF!,0))=FALSE,"D","")) ->  | F110: =IF(E110="C",0,IF(E110 ="D",ROUND(1/((1+#REF!)^A110),9) * 2,ROUND(1/((1+#REF!)^A110),9))) -> 
A111: 108 | B111: 108 | E111: =IF(ISERROR(MATCH(D111,#REF!,0))=FALSE,"C",IF(ISERROR(MATCH(D111,#REF!,0))=FALSE,"D","")) ->  | F111: =IF(E111="C",0,IF(E111 ="D",ROUND(1/((1+#REF!)^A111),9) * 2,ROUND(1/((1+#REF!)^A111),9))) -> 
A112: 109 | B112: 109 | E112: =IF(ISERROR(MATCH(D112,#REF!,0))=FALSE,"C",IF(ISERROR(MATCH(D112,#REF!,0))=FALSE,"D","")) ->  | F112: =IF(E112="C",0,IF(E112 ="D",ROUND(1/((1+#REF!)^A112),9) * 2,ROUND(1/((1+#REF!)^A112),9))) -> 
A113: 110 | B113: 110 | E113: =IF(ISERROR(MATCH(D113,#REF!,0))=FALSE,"C",IF(ISERROR(MATCH(D113,#REF!,0))=FALSE,"D","")) ->  | F113: =IF(E113="C",0,IF(E113 ="D",ROUND(1/((1+#REF!)^A113),9) * 2,ROUND(1/((1+#REF!)^A113),9))) -> 
A114: 111 | B114: 111 | E114: =IF(ISERROR(MATCH(D114,#REF!,0))=FALSE,"C",IF(ISERROR(MATCH(D114,#REF!,0))=FALSE,"D","")) ->  | F114: =IF(E114="C",0,IF(E114 ="D",ROUND(1/((1+#REF!)^A114),9) * 2,ROUND(1/((1+#REF!)^A114),9))) -> 
A115: 112 | B115: 112 | E115: =IF(ISERROR(MATCH(D115,#REF!,0))=FALSE,"C",IF(ISERROR(MATCH(D115,#REF!,0))=FALSE,"D","")) ->  | F115: =IF(E115="C",0,IF(E115 ="D",ROUND(1/((1+#REF!)^A115),9) * 2,ROUND(1/((1+#REF!)^A115),9))) -> 
A116: 113 | B116: 113 | E116: =IF(ISERROR(MATCH(D116,#REF!,0))=FALSE,"C",IF(ISERROR(MATCH(D116,#REF!,0))=FALSE,"D","")) ->  | F116: =IF(E116="C",0,IF(E116 ="D",ROUND(1/((1+#REF!)^A116),9) * 2,ROUND(1/((1+#REF!)^A116),9))) -> 
A117: 114 | B117: 114 | E117: =IF(ISERROR(MATCH(D117,#REF!,0))=FALSE,"C",IF(ISERROR(MATCH(D117,#REF!,0))=FALSE,"D","")) ->  | F117: =IF(E117="C",0,IF(E117 ="D",ROUND(1/((1+#REF!)^A117),9) * 2,ROUND(1/((1+#REF!)^A117),9))) -> 
A118: 115 | B118: 115 | E118: =IF(ISERROR(MATCH(D118,#REF!,0))=FALSE,"C",IF(ISERROR(MATCH(D118,#REF!,0))=FALSE,"D","")) ->  | F118: =IF(E118="C",0,IF(E118 ="D",ROUND(1/((1+#REF!)^A118),9) * 2,ROUND(1/((1+#REF!)^A118),9))) -> 
A119: 116 | B119: 116 | E119: =IF(ISERROR(MATCH(D119,#REF!,0))=FALSE,"C",IF(ISERROR(MATCH(D119,#REF!,0))=FALSE,"D","")) ->  | F119: =IF(E119="C",0,IF(E119 ="D",ROUND(1/((1+#REF!)^A119),9) * 2,ROUND(1/((1+#REF!)^A119),9))) -> 
A120: 117 | B120: 117 | E120: =IF(ISERROR(MATCH(D120,#REF!,0))=FALSE,"C",IF(ISERROR(MATCH(D120,#REF!,0))=FALSE,"D","")) ->  | F120: =IF(E120="C",0,IF(E120 ="D",ROUND(1/((1+#REF!)^A120),9) * 2,ROUND(1/((1+#REF!)^A120),9))) -> 
A121: 118 | B121: 118 | E121: =IF(ISERROR(MATCH(D121,#REF!,0))=FALSE,"C",IF(ISERROR(MATCH(D121,#REF!,0))=FALSE,"D","")) ->  | F121: =IF(E121="C",0,IF(E121 ="D",ROUND(1/((1+#REF!)^A121),9) * 2,ROUND(1/((1+#REF!)^A121),9))) -> 
A122: 119 | B122: 119 | E122: =IF(ISERROR(MATCH(D122,#REF!,0))=FALSE,"C",IF(ISERROR(MATCH(D122,#REF!,0))=FALSE,"D","")) ->  | F122: =IF(E122="C",0,IF(E122 ="D",ROUND(1/((1+#REF!)^A122),9) * 2,ROUND(1/((1+#REF!)^A122),9))) -> 
A123: 120 | B123: 120 | E123: =IF(ISERROR(MATCH(D123,#REF!,0))=FALSE,"C",IF(ISERROR(MATCH(D123,#REF!,0))=FALSE,"D","")) ->  | F123: =IF(E123="C",0,IF(E123 ="D",ROUND(1/((1+#REF!)^A123),9) * 2,ROUND(1/((1+#REF!)^A123),9))) -> 
A124: 121 | B124: 121 | E124: =IF(ISERROR(MATCH(D124,#REF!,0))=FALSE,"C",IF(ISERROR(MATCH(D124,#REF!,0))=FALSE,"D","")) ->  | F124: =IF(E124="C",0,IF(E124 ="D",ROUND(1/((1+#REF!)^A124),9) * 2,ROUND(1/((1+#REF!)^A124),9))) -> 
A125: 122 | B125: 122 | E125: =IF(ISERROR(MATCH(D125,#REF!,0))=FALSE,"C",IF(ISERROR(MATCH(D125,#REF!,0))=FALSE,"D","")) ->  | F125: =IF(E125="C",0,IF(E125 ="D",ROUND(1/((1+#REF!)^A125),9) * 2,ROUND(1/((1+#REF!)^A125),9))) -> 
A126: 123 | B126: 123 | E126: =IF(ISERROR(MATCH(D126,#REF!,0))=FALSE,"C",IF(ISERROR(MATCH(D126,#REF!,0))=FALSE,"D","")) ->  | F126: =IF(E126="C",0,IF(E126 ="D",ROUND(1/((1+#REF!)^A126),9) * 2,ROUND(1/((1+#REF!)^A126),9))) -> 
A127: 124 | B127: 124 | E127: =IF(ISERROR(MATCH(D127,#REF!,0))=FALSE,"C",IF(ISERROR(MATCH(D127,#REF!,0))=FALSE,"D","")) ->  | F127: =IF(E127="C",0,IF(E127 ="D",ROUND(1/((1+#REF!)^A127),9) * 2,ROUND(1/((1+#REF!)^A127),9))) -> 
A128: 125 | B128: 125 | E128: =IF(ISERROR(MATCH(D128,#REF!,0))=FALSE,"C",IF(ISERROR(MATCH(D128,#REF!,0))=FALSE,"D","")) ->  | F128: =IF(E128="C",0,IF(E128 ="D",ROUND(1/((1+#REF!)^A128),9) * 2,ROUND(1/((1+#REF!)^A128),9))) -> 
A129: 126 | B129: 126 | E129: =IF(ISERROR(MATCH(D129,#REF!,0))=FALSE,"C",IF(ISERROR(MATCH(D129,#REF!,0))=FALSE,"D","")) ->  | F129: =IF(E129="C",0,IF(E129 ="D",ROUND(1/((1+#REF!)^A129),9) * 2,ROUND(1/((1+#REF!)^A129),9))) -> 
A130: 127 | B130: 127 | E130: =IF(ISERROR(MATCH(D130,#REF!,0))=FALSE,"C",IF(ISERROR(MATCH(D130,#REF!,0))=FALSE,"D","")) ->  | F130: =IF(E130="C",0,IF(E130 ="D",ROUND(1/((1+#REF!)^A130),9) * 2,ROUND(1/((1+#REF!)^A130),9))) -> 
A131: 128 | B131: 128 | E131: =IF(ISERROR(MATCH(D131,#REF!,0))=FALSE,"C",IF(ISERROR(MATCH(D131,#REF!,0))=FALSE,"D","")) ->  | F131: =IF(E131="C",0,IF(E131 ="D",ROUND(1/((1+#REF!)^A131),9) * 2,ROUND(1/((1+#REF!)^A131),9))) -> 
A132: 129 | B132: 129 | E132: =IF(ISERROR(MATCH(D132,#REF!,0))=FALSE,"C",IF(ISERROR(MATCH(D132,#REF!,0))=FALSE,"D","")) ->  | F132: =IF(E132="C",0,IF(E132 ="D",ROUND(1/((1+#REF!)^A132),9) * 2,ROUND(1/((1+#REF!)^A132),9))) -> 
A133: =A132+1 -> 130 | B133: 130 | C133: =DATE(YEAR(C132) + 1/12,MONTH(C132)+1,DAY(C132)) ->  | E133: =IF(ISERROR(MATCH(D133,#REF!,0))=FALSE,"C",IF(ISERROR(MATCH(D133,#REF!,0))=FALSE,"D","")) ->  | F133: =IF(E133="C",0,IF(E133 ="D",ROUND(1/((1+#REF!)^A133),9) * 2,ROUND(1/((1+#REF!)^A133),9))) -> 
A134: 131 | B134: 131 | E134: =IF(ISERROR(MATCH(D134,#REF!,0))=FALSE,"C",IF(ISERROR(MATCH(D134,#REF!,0))=FALSE,"D","")) ->  | F134: =IF(E134="C",0,IF(E134 ="D",ROUND(1/((1+#REF!)^A134),9) * 2,ROUND(1/((1+#REF!)^A134),9))) -> 
A135: 132 | B135: 132 | E135: =IF(ISERROR(MATCH(D135,#REF!,0))=FALSE,"C",IF(ISERROR(MATCH(D135,#REF!,0))=FALSE,"D","")) ->  | F135: =IF(E135="C",0,IF(E135 ="D",ROUND(1/((1+#REF!)^A135),9) * 2,ROUND(1/((1+#REF!)^A135),9))) -> 
A136: 133 | B136: 133 | E136: =IF(ISERROR(MATCH(D136,#REF!,0))=FALSE,"C",IF(ISERROR(MATCH(D136,#REF!,0))=FALSE,"D","")) ->  | F136: =IF(E136="C",0,IF(E136 ="D",ROUND(1/((1+#REF!)^A136),9) * 2,ROUND(1/((1+#REF!)^A136),9))) -> 
A137: 134 | B137: 134 | E137: =IF(ISERROR(MATCH(D137,#REF!,0))=FALSE,"C",IF(ISERROR(MATCH(D137,#REF!,0))=FALSE,"D","")) ->  | F137: =IF(E137="C",0,IF(E137 ="D",ROUND(1/((1+#REF!)^A137),9) * 2,ROUND(1/((1+#REF!)^A137),9))) -> 
A138: 135 | B138: 135 | E138: =IF(ISERROR(MATCH(D138,#REF!,0))=FALSE,"C",IF(ISERROR(MATCH(D138,#REF!,0))=FALSE,"D","")) ->  | F138: =IF(E138="C",0,IF(E138 ="D",ROUND(1/((1+#REF!)^A138),9) * 2,ROUND(1/((1+#REF!)^A138),9))) -> 
A139: 136 | B139: 136 | E139: =IF(ISERROR(MATCH(D139,#REF!,0))=FALSE,"C",IF(ISERROR(MATCH(D139,#REF!,0))=FALSE,"D","")) ->  | F139: =IF(E139="C",0,IF(E139 ="D",ROUND(1/((1+#REF!)^A139),9) * 2,ROUND(1/((1+#REF!)^A139),9))) -> 
A140: 137 | B140: 137 | E140: =IF(ISERROR(MATCH(D140,#REF!,0))=FALSE,"C",IF(ISERROR(MATCH(D140,#REF!,0))=FALSE,"D","")) ->  | F140: =IF(E140="C",0,IF(E140 ="D",ROUND(1/((1+#REF!)^A140),9) * 2,ROUND(1/((1+#REF!)^A140),9))) -> 
A141: 138 | B141: 138 | E141: =IF(ISERROR(MATCH(D141,#REF!,0))=FALSE,"C",IF(ISERROR(MATCH(D141,#REF!,0))=FALSE,"D","")) ->  | F141: =IF(E141="C",0,IF(E141 ="D",ROUND(1/((1+#REF!)^A141),9) * 2,ROUND(1/((1+#REF!)^A141),9))) -> 
A142: 139 | B142: 139 | E142: =IF(ISERROR(MATCH(D142,#REF!,0))=FALSE,"C",IF(ISERROR(MATCH(D142,#REF!,0))=FALSE,"D","")) ->  | F142: =IF(E142="C",0,IF(E142 ="D",ROUND(1/((1+#REF!)^A142),9) * 2,ROUND(1/((1+#REF!)^A142),9))) -> 
A143: 140 | B143: 140 | E143: =IF(ISERROR(MATCH(D143,#REF!,0))=FALSE,"C",IF(ISERROR(MATCH(D143,#REF!,0))=FALSE,"D","")) ->  | F143: =IF(E143="C",0,IF(E143 ="D",ROUND(1/((1+#REF!)^A143),9) * 2,ROUND(1/((1+#REF!)^A143),9))) -> 
A144: 141 | B144: 141 | E144: =IF(ISERROR(MATCH(D144,#REF!,0))=FALSE,"C",IF(ISERROR(MATCH(D144,#REF!,0))=FALSE,"D","")) ->  | F144: =IF(E144="C",0,IF(E144 ="D",ROUND(1/((1+#REF!)^A144),9) * 2,ROUND(1/((1+#REF!)^A144),9))) -> 
A145: 142 | B145: 142 | E145: =IF(ISERROR(MATCH(D145,#REF!,0))=FALSE,"C",IF(ISERROR(MATCH(D145,#REF!,0))=FALSE,"D","")) ->  | F145: =IF(E145="C",0,IF(E145 ="D",ROUND(1/((1+#REF!)^A145),9) * 2,ROUND(1/((1+#REF!)^A145),9))) -> 
A146: 143 | B146: 143 | E146: =IF(ISERROR(MATCH(D146,#REF!,0))=FALSE,"C",IF(ISERROR(MATCH(D146,#REF!,0))=FALSE,"D","")) ->  | F146: =IF(E146="C",0,IF(E146 ="D",ROUND(1/((1+#REF!)^A146),9) * 2,ROUND(1/((1+#REF!)^A146),9))) -> 
A147: 144 | B147: 144 | E147: =IF(ISERROR(MATCH(D147,#REF!,0))=FALSE,"C",IF(ISERROR(MATCH(D147,#REF!,0))=FALSE,"D","")) ->  | F147: =IF(E147="C",0,IF(E147 ="D",ROUND(1/((1+#REF!)^A147),9) * 2,ROUND(1/((1+#REF!)^A147),9))) -> 
A148: 145 | B148: 145 | E148: =IF(ISERROR(MATCH(D148,#REF!,0))=FALSE,"C",IF(ISERROR(MATCH(D148,#REF!,0))=FALSE,"D","")) ->  | F148: =IF(E148="C",0,IF(E148 ="D",ROUND(1/((1+#REF!)^A148),9) * 2,ROUND(1/((1+#REF!)^A148),9))) -> 
A149: 146 | B149: 146 | E149: =IF(ISERROR(MATCH(D149,#REF!,0))=FALSE,"C",IF(ISERROR(MATCH(D149,#REF!,0))=FALSE,"D","")) ->  | F149: =IF(E149="C",0,IF(E149 ="D",ROUND(1/((1+#REF!)^A149),9) * 2,ROUND(1/((1+#REF!)^A149),9))) -> 
A150: 147 | B150: 147 | E150: =IF(ISERROR(MATCH(D150,#REF!,0))=FALSE,"C",IF(ISERROR(MATCH(D150,#REF!,0))=FALSE,"D","")) ->  | F150: =IF(E150="C",0,IF(E150 ="D",ROUND(1/((1+#REF!)^A150),9) * 2,ROUND(1/((1+#REF!)^A150),9))) -> 
A151: 148 | B151: 148 | E151: =IF(ISERROR(MATCH(D151,#REF!,0))=FALSE,"C",IF(ISERROR(MATCH(D151,#REF!,0))=FALSE,"D","")) ->  | F151: =IF(E151="C",0,IF(E151 ="D",ROUND(1/((1+#REF!)^A151),9) * 2,ROUND(1/((1+#REF!)^A151),9))) -> 
A152: 149 | B152: 149 | E152: =IF(ISERROR(MATCH(D152,#REF!,0))=FALSE,"C",IF(ISERROR(MATCH(D152,#REF!,0))=FALSE,"D","")) ->  | F152: =IF(E152="C",0,IF(E152 ="D",ROUND(1/((1+#REF!)^A152),9) * 2,ROUND(1/((1+#REF!)^A152),9))) -> 
A153: 150 | B153: 150 | E153: =IF(ISERROR(MATCH(D153,#REF!,0))=FALSE,"C",IF(ISERROR(MATCH(D153,#REF!,0))=FALSE,"D","")) ->  | F153: =IF(E153="C",0,IF(E153 ="D",ROUND(1/((1+#REF!)^A153),9) * 2,ROUND(1/((1+#REF!)^A153),9))) -> 
A154: 151 | B154: 151 | E154: =IF(ISERROR(MATCH(D154,#REF!,0))=FALSE,"C",IF(ISERROR(MATCH(D154,#REF!,0))=FALSE,"D","")) ->  | F154: =IF(E154="C",0,IF(E154 ="D",ROUND(1/((1+#REF!)^A154),9) * 2,ROUND(1/((1+#REF!)^A154),9))) -> 
A155: 152 | B155: 152 | E155: =IF(ISERROR(MATCH(D155,#REF!,0))=FALSE,"C",IF(ISERROR(MATCH(D155,#REF!,0))=FALSE,"D","")) ->  | F155: =IF(E155="C",0,IF(E155 ="D",ROUND(1/((1+#REF!)^A155),9) * 2,ROUND(1/((1+#REF!)^A155),9))) -> 
A156: 153 | B156: 153 | E156: =IF(ISERROR(MATCH(D156,#REF!,0))=FALSE,"C",IF(ISERROR(MATCH(D156,#REF!,0))=FALSE,"D","")) ->  | F156: =IF(E156="C",0,IF(E156 ="D",ROUND(1/((1+#REF!)^A156),9) * 2,ROUND(1/((1+#REF!)^A156),9))) -> 
A157: 154 | B157: 154 | E157: =IF(ISERROR(MATCH(D157,#REF!,0))=FALSE,"C",IF(ISERROR(MATCH(D157,#REF!,0))=FALSE,"D","")) ->  | F157: =IF(E157="C",0,IF(E157 ="D",ROUND(1/((1+#REF!)^A157),9) * 2,ROUND(1/((1+#REF!)^A157),9))) -> 
A158: 155 | B158: 155 | E158: =IF(ISERROR(MATCH(D158,#REF!,0))=FALSE,"C",IF(ISERROR(MATCH(D158,#REF!,0))=FALSE,"D","")) ->  | F158: =IF(E158="C",0,IF(E158 ="D",ROUND(1/((1+#REF!)^A158),9) * 2,ROUND(1/((1+#REF!)^A158),9))) -> 
A159: 156 | B159: 156 | E159: =IF(ISERROR(MATCH(D159,#REF!,0))=FALSE,"C",IF(ISERROR(MATCH(D159,#REF!,0))=FALSE,"D","")) ->  | F159: =IF(E159="C",0,IF(E159 ="D",ROUND(1/((1+#REF!)^A159),9) * 2,ROUND(1/((1+#REF!)^A159),9))) -> 
A160: 157 | B160: 157 | E160: =IF(ISERROR(MATCH(D160,#REF!,0))=FALSE,"C",IF(ISERROR(MATCH(D160,#REF!,0))=FALSE,"D","")) ->  | F160: =IF(E160="C",0,IF(E160 ="D",ROUND(1/((1+#REF!)^A160),9) * 2,ROUND(1/((1+#REF!)^A160),9))) -> 
A161: 158 | B161: 158 | E161: =IF(ISERROR(MATCH(D161,#REF!,0))=FALSE,"C",IF(ISERROR(MATCH(D161,#REF!,0))=FALSE,"D","")) ->  | F161: =IF(E161="C",0,IF(E161 ="D",ROUND(1/((1+#REF!)^A161),9) * 2,ROUND(1/((1+#REF!)^A161),9))) -> 
A162: 159 | B162: 159 | E162: =IF(ISERROR(MATCH(D162,#REF!,0))=FALSE,"C",IF(ISERROR(MATCH(D162,#REF!,0))=FALSE,"D","")) ->  | F162: =IF(E162="C",0,IF(E162 ="D",ROUND(1/((1+#REF!)^A162),9) * 2,ROUND(1/((1+#REF!)^A162),9))) -> 
A163: 160 | B163: 160 | E163: =IF(ISERROR(MATCH(D163,#REF!,0))=FALSE,"C",IF(ISERROR(MATCH(D163,#REF!,0))=FALSE,"D","")) ->  | F163: =IF(E163="C",0,IF(E163 ="D",ROUND(1/((1+#REF!)^A163),9) * 2,ROUND(1/((1+#REF!)^A163),9))) -> 
A164: 161 | B164: =IF(E164<>"C",IF(ISERROR(1+B163)=TRUE,1,1+B163),IF(ISNUMBER(B163),B163,1)) -> 161 | D164: =MONTH(C164) ->  | E164: =IF(ISERROR(MATCH(D164,#REF!,0))=FALSE,"C",IF(ISERROR(MATCH(D164,#REF!,0))=FALSE,"D","")) ->  | F164: =IF(E164="C",0,IF(E164 ="D",ROUND(1/((1+#REF!)^A164),9) * 2,ROUND(1/((1+#REF!)^A164),9))) ->  | G164: =G163+ROUND(F164,9) -> 
A165: 162 | B165: 162 | E165: =IF(ISERROR(MATCH(D165,#REF!,0))=FALSE,"C",IF(ISERROR(MATCH(D165,#REF!,0))=FALSE,"D","")) ->  | F165: =IF(E165="C",0,IF(E165 ="D",ROUND(1/((1+#REF!)^A165),9) * 2,ROUND(1/((1+#REF!)^A165),9))) -> 
A166: 163 | B166: 163 | E166: =IF(ISERROR(MATCH(D166,#REF!,0))=FALSE,"C",IF(ISERROR(MATCH(D166,#REF!,0))=FALSE,"D","")) ->  | F166: =IF(E166="C",0,IF(E166 ="D",ROUND(1/((1+#REF!)^A166),9) * 2,ROUND(1/((1+#REF!)^A166),9))) -> 
A167: 164 | B167: 164 | E167: =IF(ISERROR(MATCH(D167,#REF!,0))=FALSE,"C",IF(ISERROR(MATCH(D167,#REF!,0))=FALSE,"D","")) ->  | F167: =IF(E167="C",0,IF(E167 ="D",ROUND(1/((1+#REF!)^A167),9) * 2,ROUND(1/((1+#REF!)^A167),9))) -> 
A168: 165 | B168: 165 | E168: =IF(ISERROR(MATCH(D168,#REF!,0))=FALSE,"C",IF(ISERROR(MATCH(D168,#REF!,0))=FALSE,"D","")) ->  | F168: =IF(E168="C",0,IF(E168 ="D",ROUND(1/((1+#REF!)^A168),9) * 2,ROUND(1/((1+#REF!)^A168),9))) -> 
A169: 166 | B169: 166 | E169: =IF(ISERROR(MATCH(D169,#REF!,0))=FALSE,"C",IF(ISERROR(MATCH(D169,#REF!,0))=FALSE,"D","")) ->  | F169: =IF(E169="C",0,IF(E169 ="D",ROUND(1/((1+#REF!)^A169),9) * 2,ROUND(1/((1+#REF!)^A169),9))) -> 
A170: 167 | B170: 167 | E170: =IF(ISERROR(MATCH(D170,#REF!,0))=FALSE,"C",IF(ISERROR(MATCH(D170,#REF!,0))=FALSE,"D","")) ->  | F170: =IF(E170="C",0,IF(E170 ="D",ROUND(1/((1+#REF!)^A170),9) * 2,ROUND(1/((1+#REF!)^A170),9))) -> 
A171: 168 | B171: 168 | E171: =IF(ISERROR(MATCH(D171,#REF!,0))=FALSE,"C",IF(ISERROR(MATCH(D171,#REF!,0))=FALSE,"D","")) ->  | F171: =IF(E171="C",0,IF(E171 ="D",ROUND(1/((1+#REF!)^A171),9) * 2,ROUND(1/((1+#REF!)^A171),9))) -> 
A172: 169 | B172: 169 | E172: =IF(ISERROR(MATCH(D172,#REF!,0))=FALSE,"C",IF(ISERROR(MATCH(D172,#REF!,0))=FALSE,"D","")) ->  | F172: =IF(E172="C",0,IF(E172 ="D",ROUND(1/((1+#REF!)^A172),9) * 2,ROUND(1/((1+#REF!)^A172),9))) -> 
A173: 170 | B173: 170 | E173: =IF(ISERROR(MATCH(D173,#REF!,0))=FALSE,"C",IF(ISERROR(MATCH(D173,#REF!,0))=FALSE,"D","")) ->  | F173: =IF(E173="C",0,IF(E173 ="D",ROUND(1/((1+#REF!)^A173),9) * 2,ROUND(1/((1+#REF!)^A173),9))) -> 
A174: 171 | B174: 171 | E174: =IF(ISERROR(MATCH(D174,#REF!,0))=FALSE,"C",IF(ISERROR(MATCH(D174,#REF!,0))=FALSE,"D","")) ->  | F174: =IF(E174="C",0,IF(E174 ="D",ROUND(1/((1+#REF!)^A174),9) * 2,ROUND(1/((1+#REF!)^A174),9))) -> 
A175: 172 | B175: 172 | E175: =IF(ISERROR(MATCH(D175,#REF!,0))=FALSE,"C",IF(ISERROR(MATCH(D175,#REF!,0))=FALSE,"D","")) ->  | F175: =IF(E175="C",0,IF(E175 ="D",ROUND(1/((1+#REF!)^A175),9) * 2,ROUND(1/((1+#REF!)^A175),9))) -> 
A176: 173 | B176: 173 | E176: =IF(ISERROR(MATCH(D176,#REF!,0))=FALSE,"C",IF(ISERROR(MATCH(D176,#REF!,0))=FALSE,"D","")) ->  | F176: =IF(E176="C",0,IF(E176 ="D",ROUND(1/((1+#REF!)^A176),9) * 2,ROUND(1/((1+#REF!)^A176),9))) -> 
A177: 174 | B177: 174 | E177: =IF(ISERROR(MATCH(D177,#REF!,0))=FALSE,"C",IF(ISERROR(MATCH(D177,#REF!,0))=FALSE,"D","")) ->  | F177: =IF(E177="C",0,IF(E177 ="D",ROUND(1/((1+#REF!)^A177),9) * 2,ROUND(1/((1+#REF!)^A177),9))) -> 
A178: 175 | B178: 175 | E178: =IF(ISERROR(MATCH(D178,#REF!,0))=FALSE,"C",IF(ISERROR(MATCH(D178,#REF!,0))=FALSE,"D","")) ->  | F178: =IF(E178="C",0,IF(E178 ="D",ROUND(1/((1+#REF!)^A178),9) * 2,ROUND(1/((1+#REF!)^A178),9))) -> 
A179: 176 | B179: 176 | E179: =IF(ISERROR(MATCH(D179,#REF!,0))=FALSE,"C",IF(ISERROR(MATCH(D179,#REF!,0))=FALSE,"D","")) ->  | F179: =IF(E179="C",0,IF(E179 ="D",ROUND(1/((1+#REF!)^A179),9) * 2,ROUND(1/((1+#REF!)^A179),9))) -> 
A180: 177 | B180: 177 | E180: =IF(ISERROR(MATCH(D180,#REF!,0))=FALSE,"C",IF(ISERROR(MATCH(D180,#REF!,0))=FALSE,"D","")) ->  | F180: =IF(E180="C",0,IF(E180 ="D",ROUND(1/((1+#REF!)^A180),9) * 2,ROUND(1/((1+#REF!)^A180),9))) -> 
A181: 178 | B181: 178 | E181: =IF(ISERROR(MATCH(D181,#REF!,0))=FALSE,"C",IF(ISERROR(MATCH(D181,#REF!,0))=FALSE,"D","")) ->  | F181: =IF(E181="C",0,IF(E181 ="D",ROUND(1/((1+#REF!)^A181),9) * 2,ROUND(1/((1+#REF!)^A181),9))) -> 
A182: 179 | B182: 179 | E182: =IF(ISERROR(MATCH(D182,#REF!,0))=FALSE,"C",IF(ISERROR(MATCH(D182,#REF!,0))=FALSE,"D","")) ->  | F182: =IF(E182="C",0,IF(E182 ="D",ROUND(1/((1+#REF!)^A182),9) * 2,ROUND(1/((1+#REF!)^A182),9))) -> 
A183: 180 | B183: 180 | E183: =IF(ISERROR(MATCH(D183,#REF!,0))=FALSE,"C",IF(ISERROR(MATCH(D183,#REF!,0))=FALSE,"D","")) ->  | F183: =IF(E183="C",0,IF(E183 ="D",ROUND(1/((1+#REF!)^A183),9) * 2,ROUND(1/((1+#REF!)^A183),9))) -> 
A184: 181 | B184: 181 | E184: =IF(ISERROR(MATCH(D184,#REF!,0))=FALSE,"C",IF(ISERROR(MATCH(D184,#REF!,0))=FALSE,"D","")) ->  | F184: =IF(E184="C",0,IF(E184 ="D",ROUND(1/((1+#REF!)^A184),9) * 2,ROUND(1/((1+#REF!)^A184),9))) -> 
A185: 182 | B185: 182 | E185: =IF(ISERROR(MATCH(D185,#REF!,0))=FALSE,"C",IF(ISERROR(MATCH(D185,#REF!,0))=FALSE,"D","")) ->  | F185: =IF(E185="C",0,IF(E185 ="D",ROUND(1/((1+#REF!)^A185),9) * 2,ROUND(1/((1+#REF!)^A185),9))) -> 
A186: 183 | B186: 183 | E186: =IF(ISERROR(MATCH(D186,#REF!,0))=FALSE,"C",IF(ISERROR(MATCH(D186,#REF!,0))=FALSE,"D","")) ->  | F186: =IF(E186="C",0,IF(E186 ="D",ROUND(1/((1+#REF!)^A186),9) * 2,ROUND(1/((1+#REF!)^A186),9))) -> 
A187: 184 | B187: 184 | E187: =IF(ISERROR(MATCH(D187,#REF!,0))=FALSE,"C",IF(ISERROR(MATCH(D187,#REF!,0))=FALSE,"D","")) ->  | F187: =IF(E187="C",0,IF(E187 ="D",ROUND(1/((1+#REF!)^A187),9) * 2,ROUND(1/((1+#REF!)^A187),9))) -> 
A188: 185 | B188: 185 | E188: =IF(ISERROR(MATCH(D188,#REF!,0))=FALSE,"C",IF(ISERROR(MATCH(D188,#REF!,0))=FALSE,"D","")) ->  | F188: =IF(E188="C",0,IF(E188 ="D",ROUND(1/((1+#REF!)^A188),9) * 2,ROUND(1/((1+#REF!)^A188),9))) -> 
A189: 186 | B189: 186 | E189: =IF(ISERROR(MATCH(D189,#REF!,0))=FALSE,"C",IF(ISERROR(MATCH(D189,#REF!,0))=FALSE,"D","")) ->  | F189: =IF(E189="C",0,IF(E189 ="D",ROUND(1/((1+#REF!)^A189),9) * 2,ROUND(1/((1+#REF!)^A189),9))) -> 
A190: 187 | B190: 187 | E190: =IF(ISERROR(MATCH(D190,#REF!,0))=FALSE,"C",IF(ISERROR(MATCH(D190,#REF!,0))=FALSE,"D","")) ->  | F190: =IF(E190="C",0,IF(E190 ="D",ROUND(1/((1+#REF!)^A190),9) * 2,ROUND(1/((1+#REF!)^A190),9))) -> 
A191: 188 | B191: 188 | E191: =IF(ISERROR(MATCH(D191,#REF!,0))=FALSE,"C",IF(ISERROR(MATCH(D191,#REF!,0))=FALSE,"D","")) ->  | F191: =IF(E191="C",0,IF(E191 ="D",ROUND(1/((1+#REF!)^A191),9) * 2,ROUND(1/((1+#REF!)^A191),9))) -> 
A192: 189 | B192: 189 | E192: =IF(ISERROR(MATCH(D192,#REF!,0))=FALSE,"C",IF(ISERROR(MATCH(D192,#REF!,0))=FALSE,"D","")) ->  | F192: =IF(E192="C",0,IF(E192 ="D",ROUND(1/((1+#REF!)^A192),9) * 2,ROUND(1/((1+#REF!)^A192),9))) -> 
A193: 190 | B193: 190 | E193: =IF(ISERROR(MATCH(D193,#REF!,0))=FALSE,"C",IF(ISERROR(MATCH(D193,#REF!,0))=FALSE,"D","")) ->  | F193: =IF(E193="C",0,IF(E193 ="D",ROUND(1/((1+#REF!)^A193),9) * 2,ROUND(1/((1+#REF!)^A193),9))) -> 
A194: 191 | B194: 191 | E194: =IF(ISERROR(MATCH(D194,#REF!,0))=FALSE,"C",IF(ISERROR(MATCH(D194,#REF!,0))=FALSE,"D","")) ->  | F194: =IF(E194="C",0,IF(E194 ="D",ROUND(1/((1+#REF!)^A194),9) * 2,ROUND(1/((1+#REF!)^A194),9))) -> 
A195: 192 | B195: 192 | E195: =IF(ISERROR(MATCH(D195,#REF!,0))=FALSE,"C",IF(ISERROR(MATCH(D195,#REF!,0))=FALSE,"D","")) ->  | F195: =IF(E195="C",0,IF(E195 ="D",ROUND(1/((1+#REF!)^A195),9) * 2,ROUND(1/((1+#REF!)^A195),9))) -> 
A196: 193 | B196: 193 | E196: =IF(ISERROR(MATCH(D196,#REF!,0))=FALSE,"C",IF(ISERROR(MATCH(D196,#REF!,0))=FALSE,"D","")) ->  | F196: =IF(E196="C",0,IF(E196 ="D",ROUND(1/((1+#REF!)^A196),9) * 2,ROUND(1/((1+#REF!)^A196),9))) -> 
A197: =A196+1 -> 194 | B197: 194 | C197: =DATE(YEAR(C196) + 1/12,MONTH(C196)+1,DAY(C196)) ->  | E197: =IF(ISERROR(MATCH(D197,#REF!,0))=FALSE,"C",IF(ISERROR(MATCH(D197,#REF!,0))=FALSE,"D","")) ->  | F197: =IF(E197="C",0,IF(E197 ="D",ROUND(1/((1+#REF!)^A197),9) * 2,ROUND(1/((1+#REF!)^A197),9))) -> 
A198: 195 | B198: 195 | E198: =IF(ISERROR(MATCH(D198,#REF!,0))=FALSE,"C",IF(ISERROR(MATCH(D198,#REF!,0))=FALSE,"D","")) ->  | F198: =IF(E198="C",0,IF(E198 ="D",ROUND(1/((1+#REF!)^A198),9) * 2,ROUND(1/((1+#REF!)^A198),9))) -> 
A199: 196 | B199: 196 | E199: =IF(ISERROR(MATCH(D199,#REF!,0))=FALSE,"C",IF(ISERROR(MATCH(D199,#REF!,0))=FALSE,"D","")) ->  | F199: =IF(E199="C",0,IF(E199 ="D",ROUND(1/((1+#REF!)^A199),9) * 2,ROUND(1/((1+#REF!)^A199),9))) -> 
A200: 197 | B200: 197 | E200: =IF(ISERROR(MATCH(D200,#REF!,0))=FALSE,"C",IF(ISERROR(MATCH(D200,#REF!,0))=FALSE,"D","")) ->  | F200: =IF(E200="C",0,IF(E200 ="D",ROUND(1/((1+#REF!)^A200),9) * 2,ROUND(1/((1+#REF!)^A200),9))) -> 
A201: 198 | B201: 198 | E201: =IF(ISERROR(MATCH(D201,#REF!,0))=FALSE,"C",IF(ISERROR(MATCH(D201,#REF!,0))=FALSE,"D","")) ->  | F201: =IF(E201="C",0,IF(E201 ="D",ROUND(1/((1+#REF!)^A201),9) * 2,ROUND(1/((1+#REF!)^A201),9))) -> 
... 185 more rows

Sheet Hoja1
B3: SIMULADOR PRÉSTAMO PERSONAL CON GARANTÍA | G3: Soles
G4: Dólares
A5: Nota: Para hacer uso del simulador, debe tener habilitado y desbloqueado la opción de macros en su equipo. Luego de habiliarlo ingrese todos los valores a simular,después de click a Calcular y luego a Generar cronograma para visualizar el Cronograma Simulado
G6: No
B7: Moneda | C7: Soles | G7: Julio
B8: Monto del Préstamo | C8: 50000 | G8: Diciembre
B9: Fecha de Desembolso | C9: 2025-06-10 | M9: 0
B10: Plazo | C10: 48 | G10: Seguro sin retorno | M10: 30
B11: TEA* | C11: 10.7 | G11: Seguro con retorno | M11: 60
B12: Días de Gracia | C12: 0 | G12: Endoso o sin seguro | M12: 90
B13: Seguro Desgravamen** | C13: Endoso o sin seguro
B14: Cuota Doble 1 | C14: No | H14: =+Simulador!Q29 -> 0.05416666667 | I14: =+Simulador!W28 -> 0
B15: Cuota Doble 2 | C15: No | I15: =+IF(AND(I14>-1,I14<1),"CORRECTO","INCORRECTO") -> CORRECTO

Sheet Hoja1 (2)
B5: (SIMULACIÓN)
B6: CRONOGRAMA DE PAGOS
B9: Moneda : | D9: =+Hoja1!C7 -> Soles | F9: Monto del Préstamo : | H9: =+Hoja1!C8 -> 50000
B10: Producto : | D10: Préstamo Personal con Garantía | F10: Tasa Efectiva Anual (fija) : | H10: =+Hoja1!C11&"%" -> 10.7%
B11: Fecha de desembolso : | D11: =+Hoja1!C9 -> 2025-06-10 | F11: Plazo (en meses) : | H11: =+Hoja1!C10 -> 48
B12: Mes de Cuota Doble 1 : | D12: =+Hoja1!C14 -> No | F12: Tasa de Costo Efectiva Anual : | H12: =+Simulador!Q18 -> 0.1070004544 | I12: =+RATE(H11,H18,-H9-I13) -> 0.008633095549
B13: Mes de Cuota Doble 2 : | D13: =+Hoja1!C15 -> No | F13: Tasa Seguro de Desgravamen Mensual : | H13: =+IF(Hoja1!C13="Endoso o sin seguro",0,IF(Hoja1!C13="Seguro con retorno",0.346%,0.18%)) -> 0 | I13: =Simulador!Q16 -> 0
B14: Periodo de gracia : | D14: =+Hoja1!C12&" "& "días" -> 0 días
B15: Frecuencia de pago : | D15: Mensual
B16: =+IF(AND(Simulador!W28<1,Simulador!W28>-1),"","No ha presionado el botón de calcular, por favor volver a simular") -> 
B17: N° | C17: Fecha Vencimiento | D17: Capital | E17: Interes | F17: Interes de Gracia | G17: Seguro Desgravamen | H17: Total Cuota
B18: 1 | C18: =IFERROR(+IF(B18>0,VLOOKUP(B18,Simulador!$A$32:$T$550,3,0)," ")," ") -> 2025-07-10 | D18: =IFERROR(+IF(B18>0,VLOOKUP(B18,Simulador!$A$32:$T$550,11,0)," ")," ") -> 851.4241667 | E18: =IFERROR(+IF(B18>0,VLOOKUP(B18,Simulador!$A$32:$T$550,12,0)," ")," ") -> 425.36 | F18: =IFERROR(+IF(B18>0,VLOOKUP(B18,Simulador!$A$32:$T$550,13,0)," ")," ") -> 0 | G18: =IFERROR(+IF(B18>0,VLOOKUP(B18,Simulador!$A$32:$T$550,20,0)," ")," ") -> 0 | H18: =IFERROR(+IF(B18>0,VLOOKUP(B18,Simulador!$A$32:$Z$550,22,0)," ")," ") -> 1276.784167
B19: =IF(B18=0," ",IF(B18>=$H$11,"",B18+1)) -> 2 | C19: =IF($H$11=0," ",IF(B18=$H$11,"TOTALES",+IF(B19>0,VLOOKUP(B19,Simulador!$A$32:$T$550,3,0)," "))) -> 2025-08-10 | D19: =IF($H$11=0," ",IF(B18=$H$11,Simulador!$J$33,+IF(B19>0,VLOOKUP(B19,Simulador!$A$32:$T$550,11,0)," "))) -> 844.6741667 | E19: =IF($H$11=0," ",IF(B18=$H$11,Simulador!$L$31,+IF(B19>0,VLOOKUP(B19,Simulador!$A$32:$T$550,12,0)," "))) -> 432.11 | F19: =IF($H$11=0," ",IF(B18=$H$11,Simulador!$M$31,+IF(B19>0,VLOOKUP(B19,Simulador!$A$32:$T$550,13,0)," "))) -> 0 | G19: =IF($H$11=0," ",IF(B18=$H$11,Simulador!$T$31,+IF(B19>0,VLOOKUP(B19,Simulador!$A$32:$T$550,20,0)," "))) -> 0 | H19: =IF($H$11=0," ",IF(B18=$H$11,Simulador!$V$31,+IF(B19>0,VLOOKUP(B19,Simulador!$A$32:$Z$550,22,0)," "))) -> 1276.784167
B20: =IF(B19=0," ",IF(B19>=$H$11,"",B19+1)) -> 3 | C20: =IF($H$11=0," ",IF(B19=$H$11,"TOTALES",+IF(B20>0,VLOOKUP(B20,Simulador!$A$32:$T$550,3,0)," "))) -> 2025-09-10 | D20: =IF($H$11=0," ",IF(B19=$H$11,Simulador!$J$33,+IF(B20>0,VLOOKUP(B20,Simulador!$A$32:$T$550,11,0)," "))) -> 852.1041667 | E20: =IF($H$11=0," ",IF(B19=$H$11,Simulador!$L$31,+IF(B20>0,VLOOKUP(B20,Simulador!$A$32:$T$550,12,0)," "))) -> 424.68 | F20: =IF($H$11=0," ",IF(B19=$H$11,Simulador!$M$31,+IF(B20>0,VLOOKUP(B20,Simulador!$A$32:$T$550,13,0)," "))) -> 0 | G20: =IF($H$11=0," ",IF(B19=$H$11,Simulador!$T$31,+IF(B20>0,VLOOKUP(B20,Simulador!$A$32:$T$550,20,0)," "))) -> 0 | H20: =IF($H$11=0," ",IF(B19=$H$11,Simulador!$V$31,+IF(B20>0,VLOOKUP(B20,Simulador!$A$32:$Z$550,22,0)," "))) -> 1276.784167
B21: 4 | C21: =IF($H$11=0," ",IF(B20=$H$11,"TOTALES",+IF(B21>0,VLOOKUP(B21,Simulador!$A$32:$T$550,3,0)," "))) -> 2025-10-10 | D21: =IF($H$11=0," ",IF(B20=$H$11,Simulador!$J$33,+IF(B21>0,VLOOKUP(B21,Simulador!$A$32:$T$550,11,0)," "))) -> 873.1041667 | E21: =IF($H$11=0," ",IF(B20=$H$11,Simulador!$L$31,+IF(B21>0,VLOOKUP(B21,Simulador!$A$32:$T$550,12,0)," "))) -> 403.68 | F21: =IF($H$11=0," ",IF(B20=$H$11,Simulador!$M$31,+IF(B21>0,VLOOKUP(B21,Simulador!$A$32:$T$550,13,0)," "))) -> 0 | G21: =IF($H$11=0," ",IF(B20=$H$11,Simulador!$T$31,+IF(B21>0,VLOOKUP(B21,Simulador!$A$32:$T$550,20,0)," "))) -> 0 | H21: =IF($H$11=0," ",IF(B20=$H$11,Simulador!$V$31,+IF(B21>0,VLOOKUP(B21,Simulador!$A$32:$Z$550,22,0)," "))) -> 1276.784167
B22: 5 | C22: =IF($H$11=0," ",IF(B21=$H$11,"TOTALES",+IF(B22>0,VLOOKUP(B22,Simulador!$A$32:$T$550,3,0)," "))) -> 2025-11-10 | D22: =IF($H$11=0," ",IF(B21=$H$11,Simulador!$J$33,+IF(B22>0,VLOOKUP(B22,Simulador!$A$32:$T$550,11,0)," "))) -> 867.2641667 | E22: =IF($H$11=0," ",IF(B21=$H$11,Simulador!$L$31,+IF(B22>0,VLOOKUP(B22,Simulador!$A$32:$T$550,12,0)," "))) -> 409.52 | F22: =IF($H$11=0," ",IF(B21=$H$11,Simulador!$M$31,+IF(B22>0,VLOOKUP(B22,Simulador!$A$32:$T$550,13,0)," "))) -> 0 | G22: =IF($H$11=0," ",IF(B21=$H$11,Simulador!$T$31,+IF(B22>0,VLOOKUP(B22,Simulador!$A$32:$T$550,20,0)," "))) -> 0 | H22: =IF($H$11=0," ",IF(B21=$H$11,Simulador!$V$31,+IF(B22>0,VLOOKUP(B22,Simulador!$A$32:$Z$550,22,0)," "))) -> 1276.784167
B23: 6 | C23: =IF($H$11=0," ",IF(B22=$H$11,"TOTALES",+IF(B23>0,VLOOKUP(B23,Simulador!$A$32:$T$550,3,0)," "))) -> 2025-12-10 | D23: =IF($H$11=0," ",IF(B22=$H$11,Simulador!$J$33,+IF(B23>0,VLOOKUP(B23,Simulador!$A$32:$T$550,11,0)," "))) -> 887.9141667 | E23: =IF($H$11=0," ",IF(B22=$H$11,Simulador!$L$31,+IF(B23>0,VLOOKUP(B23,Simulador!$A$32:$T$550,12,0)," "))) -> 388.87 | F23: =IF($H$11=0," ",IF(B22=$H$11,Simulador!$M$31,+IF(B23>0,VLOOKUP(B23,Simulador!$A$32:$T$550,13,0)," "))) -> 0 | G23: =IF($H$11=0," ",IF(B22=$H$11,Simulador!$T$31,+IF(B23>0,VLOOKUP(B23,Simulador!$A$32:$T$550,20,0)," "))) -> 0 | H23: =IF($H$11=0," ",IF(B22=$H$11,Simulador!$V$31,+IF(B23>0,VLOOKUP(B23,Simulador!$A$32:$Z$550,22,0)," "))) -> 1276.784167
B24: 7 | C24: =IF($H$11=0," ",IF(B23=$H$11,"TOTALES",+IF(B24>0,VLOOKUP(B24,Simulador!$A$32:$T$550,3,0)," "))) -> 2026-01-10 | D24: =IF($H$11=0," ",IF(B23=$H$11,Simulador!$J$33,+IF(B24>0,VLOOKUP(B24,Simulador!$A$32:$T$550,11,0)," "))) -> 882.6941667 | E24: =IF($H$11=0," ",IF(B23=$H$11,Simulador!$L$31,+IF(B24>0,VLOOKUP(B24,Simulador!$A$32:$T$550,12,0)," "))) -> 394.09 | F24: =IF($H$11=0," ",IF(B23=$H$11,Simulador!$M$31,+IF(B24>0,VLOOKUP(B24,Simulador!$A$32:$T$550,13,0)," "))) -> 0 | G24: =IF($H$11=0," ",IF(B23=$H$11,Simulador!$T$31,+IF(B24>0,VLOOKUP(B24,Simulador!$A$32:$T$550,20,0)," "))) -> 0 | H24: =IF($H$11=0," ",IF(B23=$H$11,Simulador!$V$31,+IF(B24>0,VLOOKUP(B24,Simulador!$A$32:$Z$550,22,0)," "))) -> 1276.784167
B25: 8 | C25: =IF($H$11=0," ",IF(B24=$H$11,"TOTALES",+IF(B25>0,VLOOKUP(B25,Simulador!$A$32:$T$550,3,0)," "))) -> 2026-02-10 | D25: =IF($H$11=0," ",IF(B24=$H$11,Simulador!$J$33,+IF(B25>0,VLOOKUP(B25,Simulador!$A$32:$T$550,11,0)," "))) -> 890.4541667 | E25: =IF($H$11=0," ",IF(B24=$H$11,Simulador!$L$31,+IF(B25>0,VLOOKUP(B25,Simulador!$A$32:$T$550,12,0)," "))) -> 386.33 | F25: =IF($H$11=0," ",IF(B24=$H$11,Simulador!$M$31,+IF(B25>0,VLOOKUP(B25,Simulador!$A$32:$T$550,13,0)," "))) -> 0 | G25: =IF($H$11=0," ",IF(B24=$H$11,Simulador!$T$31,+IF(B25>0,VLOOKUP(B25,Simulador!$A$32:$T$550,20,0)," "))) -> 0 | H25: =IF($H$11=0," ",IF(B24=$H$11,Simulador!$V$31,+IF(B25>0,VLOOKUP(B25,Simulador!$A$32:$Z$550,22,0)," "))) -> 1276.784167
B26: 9 | C26: =IF($H$11=0," ",IF(B25=$H$11,"TOTALES",+IF(B26>0,VLOOKUP(B26,Simulador!$A$32:$T$550,3,0)," "))) -> 2026-03-10 | D26: =IF($H$11=0," ",IF(B25=$H$11,Simulador!$J$33,+IF(B26>0,VLOOKUP(B26,Simulador!$A$32:$T$550,11,0)," "))) -> 935.0641667 | E26: =IF($H$11=0," ",IF(B25=$H$11,Simulador!$L$31,+IF(B26>0,VLOOKUP(B26,Simulador!$A$32:$T$550,12,0)," "))) -> 341.72 | F26: =IF($H$11=0," ",IF(B25=$H$11,Simulador!$M$31,+IF(B26>0,VLOOKUP(B26,Simulador!$A$32:$T$550,13,0)," "))) -> 0 | G26: =IF($H$11=0," ",IF(B25=$H$11,Simulador!$T$31,+IF(B26>0,VLOOKUP(B26,Simulador!$A$32:$T$550,20,0)," "))) -> 0 | H26: =IF($H$11=0," ",IF(B25=$H$11,Simulador!$V$31,+IF(B26>0,VLOOKUP(B26,Simulador!$A$32:$Z$550,22,0)," "))) -> 1276.784167
B27: 10 | C27: =IF($H$11=0," ",IF(B26=$H$11,"TOTALES",+IF(B27>0,VLOOKUP(B27,Simulador!$A$32:$T$550,3,0)," "))) -> 2026-04-10 | D27: =IF($H$11=0," ",IF(B26=$H$11,Simulador!$J$33,+IF(B27>0,VLOOKUP(B27,Simulador!$A$32:$T$550,11,0)," "))) -> 906.5041667 | E27: =IF($H$11=0," ",IF(B26=$H$11,Simulador!$L$31,+IF(B27>0,VLOOKUP(B27,Simulador!$A$32:$T$550,12,0)," "))) -> 370.28 | F27: =IF($H$11=0," ",IF(B26=$H$11,Simulador!$M$31,+IF(B27>0,VLOOKUP(B27,Simulador!$A$32:$T$550,13,0)," "))) -> 0 | G27: =IF($H$11=0," ",IF(B26=$H$11,Simulador!$T$31,+IF(B27>0,VLOOKUP(B27,Simulador!$A$32:$T$550,20,0)," "))) -> 0 | H27: =IF($H$11=0," ",IF(B26=$H$11,Simulador!$V$31,+IF(B27>0,VLOOKUP(B27,Simulador!$A$32:$Z$550,22,0)," "))) -> 1276.784167
B28: 11 | C28: =IF($H$11=0," ",IF(B27=$H$11,"TOTALES",+IF(B28>0,VLOOKUP(B28,Simulador!$A$32:$T$550,3,0)," "))) -> 2026-05-10 | D28: =IF($H$11=0," ",IF(B27=$H$11,Simulador!$J$33,+IF(B28>0,VLOOKUP(B28,Simulador!$A$32:$T$550,11,0)," "))) -> 926.2141667 | E28: =IF($H$11=0," ",IF(B27=$H$11,Simulador!$L$31,+IF(B28>0,VLOOKUP(B28,Simulador!$A$32:$T$550,12,0)," "))) -> 350.57 | F28: =IF($H$11=0," ",IF(B27=$H$11,Simulador!$M$31,+IF(B28>0,VLOOKUP(B28,Simulador!$A$32:$T$550,13,0)," "))) -> 0 | G28: =IF($H$11=0," ",IF(B27=$H$11,Simulador!$T$31,+IF(B28>0,VLOOKUP(B28,Simulador!$A$32:$T$550,20,0)," "))) -> 0 | H28: =IF($H$11=0," ",IF(B27=$H$11,Simulador!$V$31,+IF(B28>0,VLOOKUP(B28,Simulador!$A$32:$Z$550,22,0)," "))) -> 1276.784167
B29: 12 | C29: =IF($H$11=0," ",IF(B28=$H$11,"TOTALES",+IF(B29>0,VLOOKUP(B29,Simulador!$A$32:$T$550,3,0)," "))) -> 2026-06-10 | D29: =IF($H$11=0," ",IF(B28=$H$11,Simulador!$J$33,+IF(B29>0,VLOOKUP(B29,Simulador!$A$32:$T$550,11,0)," "))) -> 922.6241667 | E29: =IF($H$11=0," ",IF(B28=$H$11,Simulador!$L$31,+IF(B29>0,VLOOKUP(B29,Simulador!$A$32:$T$550,12,0)," "))) -> 354.16 | F29: =IF($H$11=0," ",IF(B28=$H$11,Simulador!$M$31,+IF(B29>0,VLOOKUP(B29,Simulador!$A$32:$T$550,13,0)," "))) -> 0 | G29: =IF($H$11=0," ",IF(B28=$H$11,Simulador!$T$31,+IF(B29>0,VLOOKUP(B29,Simulador!$A$32:$T$550,20,0)," "))) -> 0 | H29: =IF($H$11=0," ",IF(B28=$H$11,Simulador!$V$31,+IF(B29>0,VLOOKUP(B29,Simulador!$A$32:$Z$550,22,0)," "))) -> 1276.784167
B30: 13 | C30: =IF($H$11=0," ",IF(B29=$H$11,"TOTALES",+IF(B30>0,VLOOKUP(B30,Simulador!$A$32:$T$550,3,0)," "))) -> 2026-07-10 | D30: =IF($H$11=0," ",IF(B29=$H$11,Simulador!$J$33,+IF(B30>0,VLOOKUP(B30,Simulador!$A$32:$T$550,11,0)," "))) -> 941.9441667 | E30: =IF($H$11=0," ",IF(B29=$H$11,Simulador!$L$31,+IF(B30>0,VLOOKUP(B30,Simulador!$A$32:$T$550,12,0)," "))) -> 334.84 | F30: =IF($H$11=0," ",IF(B29=$H$11,Simulador!$M$31,+IF(B30>0,VLOOKUP(B30,Simulador!$A$32:$T$550,13,0)," "))) -> 0 | G30: =IF($H$11=0," ",IF(B29=$H$11,Simulador!$T$31,+IF(B30>0,VLOOKUP(B30,Simulador!$A$32:$T$550,20,0)," "))) -> 0 | H30: =IF($H$11=0," ",IF(B29=$H$11,Simulador!$V$31,+IF(B30>0,VLOOKUP(B30,Simulador!$A$32:$Z$550,22,0)," "))) -> 1276.784167
B31: 14 | C31: =IF($H$11=0," ",IF(B30=$H$11,"TOTALES",+IF(B31>0,VLOOKUP(B31,Simulador!$A$32:$T$550,3,0)," "))) -> 2026-08-10 | D31: =IF($H$11=0," ",IF(B30=$H$11,Simulador!$J$33,+IF(B31>0,VLOOKUP(B31,Simulador!$A$32:$T$550,11,0)," "))) -> 939.0141667 | E31: =IF($H$11=0," ",IF(B30=$H$11,Simulador!$L$31,+IF(B31>0,VLOOKUP(B31,Simulador!$A$32:$T$550,12,0)," "))) -> 337.77 | F31: =IF($H$11=0," ",IF(B30=$H$11,Simulador!$M$31,+IF(B31>0,VLOOKUP(B31,Simulador!$A$32:$T$550,13,0)," "))) -> 0 | G31: =IF($H$11=0," ",IF(B30=$H$11,Simulador!$T$31,+IF(B31>0,VLOOKUP(B31,Simulador!$A$32:$T$550,20,0)," "))) -> 0 | H31: =IF($H$11=0," ",IF(B30=$H$11,Simulador!$V$31,+IF(B31>0,VLOOKUP(B31,Simulador!$A$32:$Z$550,22,0)," "))) -> 1276.784167
B32: 15 | C32: =IF($H$11=0," ",IF(B31=$H$11,"TOTALES",+IF(B32>0,VLOOKUP(B32,Simulador!$A$32:$T$550,3,0)," "))) -> 2026-09-10 | D32: =IF($H$11=0," ",IF(B31=$H$11,Simulador!$J$33,+IF(B32>0,VLOOKUP(B32,Simulador!$A$32:$T$550,11,0)," "))) -> 947.2741667 | E32: =IF($H$11=0," ",IF(B31=$H$11,Simulador!$L$31,+IF(B32>0,VLOOKUP(B32,Simulador!$A$32:$T$550,12,0)," "))) -> 329.51 | F32: =IF($H$11=0," ",IF(B31=$H$11,Simulador!$M$31,+IF(B32>0,VLOOKUP(B32,Simulador!$A$32:$T$550,13,0)," "))) -> 0 | G32: =IF($H$11=0," ",IF(B31=$H$11,Simulador!$T$31,+IF(B32>0,VLOOKUP(B32,Simulador!$A$32:$T$550,20,0)," "))) -> 0 | H32: =IF($H$11=0," ",IF(B31=$H$11,Simulador!$V$31,+IF(B32>0,VLOOKUP(B32,Simulador!$A$32:$Z$550,22,0)," "))) -> 1276.784167
B33: 16 | C33: =IF($H$11=0," ",IF(B32=$H$11,"TOTALES",+IF(B33>0,VLOOKUP(B33,Simulador!$A$32:$T$550,3,0)," "))) -> 2026-10-10 | D33: =IF($H$11=0," ",IF(B32=$H$11,Simulador!$J$33,+IF(B33>0,VLOOKUP(B33,Simulador!$A$32:$T$550,11,0)," "))) -> 966.0041667 | E33: =IF($H$11=0," ",IF(B32=$H$11,Simulador!$L$31,+IF(B33>0,VLOOKUP(B33,Simulador!$A$32:$T$550,12,0)," "))) -> 310.78 | F33: =IF($H$11=0," ",IF(B32=$H$11,Simulador!$M$31,+IF(B33>0,VLOOKUP(B33,Simulador!$A$32:$T$550,13,0)," "))) -> 0 | G33: =IF($H$11=0," ",IF(B32=$H$11,Simulador!$T$31,+IF(B33>0,VLOOKUP(B33,Simulador!$A$32:$T$550,20,0)," "))) -> 0 | H33: =IF($H$11=0," ",IF(B32=$H$11,Simulador!$V$31,+IF(B33>0,VLOOKUP(B33,Simulador!$A$32:$Z$550,22,0)," "))) -> 1276.784167
B34: 17 | C34: =IF($H$11=0," ",IF(B33=$H$11,"TOTALES",+IF(B34>0,VLOOKUP(B34,Simulador!$A$32:$T$550,3,0)," "))) -> 2026-11-10 | D34: =IF($H$11=0," ",IF(B33=$H$11,Simulador!$J$33,+IF(B34>0,VLOOKUP(B34,Simulador!$A$32:$T$550,11,0)," "))) -> 964.0941667 | E34: =IF($H$11=0," ",IF(B33=$H$11,Simulador!$L$31,+IF(B34>0,VLOOKUP(B34,Simulador!$A$32:$T$550,12,0)," "))) -> 312.69 | F34: =IF($H$11=0," ",IF(B33=$H$11,Simulador!$M$31,+IF(B34>0,VLOOKUP(B34,Simulador!$A$32:$T$550,13,0)," "))) -> 0 | G34: =IF($H$11=0," ",IF(B33=$H$11,Simulador!$T$31,+IF(B34>0,VLOOKUP(B34,Simulador!$A$32:$T$550,20,0)," "))) -> 0 | H34: =IF($H$11=0," ",IF(B33=$H$11,Simulador!$V$31,+IF(B34>0,VLOOKUP(B34,Simulador!$A$32:$Z$550,22,0)," "))) -> 1276.784167
B35: 18 | C35: =IF($H$11=0," ",IF(B34=$H$11,"TOTALES",+IF(B35>0,VLOOKUP(B35,Simulador!$A$32:$T$550,3,0)," "))) -> 2026-12-10 | D35: =IF($H$11=0," ",IF(B34=$H$11,Simulador!$J$33,+IF(B35>0,VLOOKUP(B35,Simulador!$A$32:$T$550,11,0)," "))) -> 982.4241667 | E35: =IF($H$11=0," ",IF(B34=$H$11,Simulador!$L$31,+IF(B35>0,VLOOKUP(B35,Simulador!$A$32:$T$550,12,0)," "))) -> 294.36 | F35: =IF($H$11=0," ",IF(B34=$H$11,Simulador!$M$31,+IF(B35>0,VLOOKUP(B35,Simulador!$A$32:$T$550,13,0)," "))) -> 0 | G35: =IF($H$11=0," ",IF(B34=$H$11,Simulador!$T$31,+IF(B35>0,VLOOKUP(B35,Simulador!$A$32:$T$550,20,0)," "))) -> 0 | H35: =IF($H$11=0," ",IF(B34=$H$11,Simulador!$V$31,+IF(B35>0,VLOOKUP(B35,Simulador!$A$32:$Z$550,22,0)," "))) -> 1276.784167
B36: 19 | C36: =IF($H$11=0," ",IF(B35=$H$11,"TOTALES",+IF(B36>0,VLOOKUP(B36,Simulador!$A$32:$T$550,3,0)," "))) -> 2027-01-10 | D36: =IF($H$11=0," ",IF(B35=$H$11,Simulador!$J$33,+IF(B36>0,VLOOKUP(B36,Simulador!$A$32:$T$550,11,0)," "))) -> 981.2041667 | E36: =IF($H$11=0," ",IF(B35=$H$11,Simulador!$L$31,+IF(B36>0,VLOOKUP(B36,Simulador!$A$32:$T$550,12,0)," "))) -> 295.58 | F36: =IF($H$11=0," ",IF(B35=$H$11,Simulador!$M$31,+IF(B36>0,VLOOKUP(B36,Simulador!$A$32:$T$550,13,0)," "))) -> 0 | G36: =IF($H$11=0," ",IF(B35=$H$11,Simulador!$T$31,+IF(B36>0,VLOOKUP(B36,Simulador!$A$32:$T$550,20,0)," "))) -> 0 | H36: =IF($H$11=0," ",IF(B35=$H$11,Simulador!$V$31,+IF(B36>0,VLOOKUP(B36,Simulador!$A$32:$Z$550,22,0)," "))) -> 1276.784167
B37: 20 | C37: =IF($H$11=0," ",IF(B36=$H$11,"TOTALES",+IF(B37>0,VLOOKUP(B37,Simulador!$A$32:$T$550,3,0)," "))) -> 2027-02-10 | D37: =IF($H$11=0," ",IF(B36=$H$11,Simulador!$J$33,+IF(B37>0,VLOOKUP(B37,Simulador!$A$32:$T$550,11,0)," "))) -> 989.8341667 | E37: =IF($H$11=0," ",IF(B36=$H$11,Simulador!$L$31,+IF(B37>0,VLOOKUP(B37,Simulador!$A$32:$T$550,12,0)," "))) -> 286.95 | F37: =IF($H$11=0," ",IF(B36=$H$11,Simulador!$M$31,+IF(B37>0,VLOOKUP(B37,Simulador!$A$32:$T$550,13,0)," "))) -> 0 | G37: =IF($H$11=0," ",IF(B36=$H$11,Simulador!$T$31,+IF(B37>0,VLOOKUP(B37,Simulador!$A$32:$T$550,20,0)," "))) -> 0 | H37: =IF($H$11=0," ",IF(B36=$H$11,Simulador!$V$31,+IF(B37>0,VLOOKUP(B37,Simulador!$A$32:$Z$550,22,0)," "))) -> 1276.784167
B38: 21 | C38: =IF($H$11=0," ",IF(B37=$H$11,"TOTALES",+IF(B38>0,VLOOKUP(B38,Simulador!$A$32:$T$550,3,0)," "))) -> 2027-03-10 | D38: =IF($H$11=0," ",IF(B37=$H$11,Simulador!$J$33,+IF(B38>0,VLOOKUP(B38,Simulador!$A$32:$T$550,11,0)," "))) -> 1025.564167 | E38: =IF($H$11=0," ",IF(B37=$H$11,Simulador!$L$31,+IF(B38>0,VLOOKUP(B38,Simulador!$A$32:$T$550,12,0)," "))) -> 251.22 | F38: =IF($H$11=0," ",IF(B37=$H$11,Simulador!$M$31,+IF(B38>0,VLOOKUP(B38,Simulador!$A$32:$T$550,13,0)," "))) -> 0 | G38: =IF($H$11=0," ",IF(B37=$H$11,Simulador!$T$31,+IF(B38>0,VLOOKUP(B38,Simulador!$A$32:$T$550,20,0)," "))) -> 0 | H38: =IF($H$11=0," ",IF(B37=$H$11,Simulador!$V$31,+IF(B38>0,VLOOKUP(B38,Simulador!$A$32:$Z$550,22,0)," "))) -> 1276.784167
B39: 22 | C39: =IF($H$11=0," ",IF(B38=$H$11,"TOTALES",+IF(B39>0,VLOOKUP(B39,Simulador!$A$32:$T$550,3,0)," "))) -> 2027-04-10 | D39: =IF($H$11=0," ",IF(B38=$H$11,Simulador!$J$33,+IF(B39>0,VLOOKUP(B39,Simulador!$A$32:$T$550,11,0)," "))) -> 1007.554167 | E39: =IF($H$11=0," ",IF(B38=$H$11,Simulador!$L$31,+IF(B39>0,VLOOKUP(B39,Simulador!$A$32:$T$550,12,0)," "))) -> 269.23 | F39: =IF($H$11=0," ",IF(B38=$H$11,Simulador!$M$31,+IF(B39>0,VLOOKUP(B39,Simulador!$A$32:$T$550,13,0)," "))) -> 0 | G39: =IF($H$11=0," ",IF(B38=$H$11,Simulador!$T$31,+IF(B39>0,VLOOKUP(B39,Simulador!$A$32:$T$550,20,0)," "))) -> 0 | H39: =IF($H$11=0," ",IF(B38=$H$11,Simulador!$V$31,+IF(B39>0,VLOOKUP(B39,Simulador!$A$32:$Z$550,22,0)," "))) -> 1276.784167
B40: 23 | C40: =IF($H$11=0," ",IF(B39=$H$11,"TOTALES",+IF(B40>0,VLOOKUP(B40,Simulador!$A$32:$T$550,3,0)," "))) -> 2027-05-10 | D40: =IF($H$11=0," ",IF(B39=$H$11,Simulador!$J$33,+IF(B40>0,VLOOKUP(B40,Simulador!$A$32:$T$550,11,0)," "))) -> 1024.844167 | E40: =IF($H$11=0," ",IF(B39=$H$11,Simulador!$L$31,+IF(B40>0,VLOOKUP(B40,Simulador!$A$32:$T$550,12,0)," "))) -> 251.94 | F40: =IF($H$11=0," ",IF(B39=$H$11,Simulador!$M$31,+IF(B40>0,VLOOKUP(B40,Simulador!$A$32:$T$550,13,0)," "))) -> 0 | G40: =IF($H$11=0," ",IF(B39=$H$11,Simulador!$T$31,+IF(B40>0,VLOOKUP(B40,Simulador!$A$32:$T$550,20,0)," "))) -> 0 | H40: =IF($H$11=0," ",IF(B39=$H$11,Simulador!$V$31,+IF(B40>0,VLOOKUP(B40,Simulador!$A$32:$Z$550,22,0)," "))) -> 1276.784167
B41: 24 | C41: =IF($H$11=0," ",IF(B40=$H$11,"TOTALES",+IF(B41>0,VLOOKUP(B41,Simulador!$A$32:$T$550,3,0)," "))) -> 2027-06-10 | D41: =IF($H$11=0," ",IF(B40=$H$11,Simulador!$J$33,+IF(B41>0,VLOOKUP(B41,Simulador!$A$32:$T$550,11,0)," "))) -> 1025.424167 | E41: =IF($H$11=0," ",IF(B40=$H$11,Simulador!$L$31,+IF(B41>0,VLOOKUP(B41,Simulador!$A$32:$T$550,12,0)," "))) -> 251.36 | F41: =IF($H$11=0," ",IF(B40=$H$11,Simulador!$M$31,+IF(B41>0,VLOOKUP(B41,Simulador!$A$32:$T$550,13,0)," "))) -> 0 | G41: =IF($H$11=0," ",IF(B40=$H$11,Simulador!$T$31,+IF(B41>0,VLOOKUP(B41,Simulador!$A$32:$T$550,20,0)," "))) -> 0 | H41: =IF($H$11=0," ",IF(B40=$H$11,Simulador!$V$31,+IF(B41>0,VLOOKUP(B41,Simulador!$A$32:$Z$550,22,0)," "))) -> 1276.784167
B42: 25 | C42: =IF($H$11=0," ",IF(B41=$H$11,"TOTALES",+IF(B42>0,VLOOKUP(B42,Simulador!$A$32:$T$550,3,0)," "))) -> 2027-07-10 | D42: =IF($H$11=0," ",IF(B41=$H$11,Simulador!$J$33,+IF(B42>0,VLOOKUP(B42,Simulador!$A$32:$T$550,11,0)," "))) -> 1042.284167 | E42: =IF($H$11=0," ",IF(B41=$H$11,Simulador!$L$31,+IF(B42>0,VLOOKUP(B42,Simulador!$A$32:$T$550,12,0)," "))) -> 234.5 | F42: =IF($H$11=0," ",IF(B41=$H$11,Simulador!$M$31,+IF(B42>0,VLOOKUP(B42,Simulador!$A$32:$T$550,13,0)," "))) -> 0 | G42: =IF($H$11=0," ",IF(B41=$H$11,Simulador!$T$31,+IF(B42>0,VLOOKUP(B42,Simulador!$A$32:$T$550,20,0)," "))) -> 0 | H42: =IF($H$11=0," ",IF(B41=$H$11,Simulador!$V$31,+IF(B42>0,VLOOKUP(B42,Simulador!$A$32:$Z$550,22,0)," "))) -> 1276.784167
B43: 26 | C43: =IF($H$11=0," ",IF(B42=$H$11,"TOTALES",+IF(B43>0,VLOOKUP(B43,Simulador!$A$32:$T$550,3,0)," "))) -> 2027-08-10 | D43: =IF($H$11=0," ",IF(B42=$H$11,Simulador!$J$33,+IF(B43>0,VLOOKUP(B43,Simulador!$A$32:$T$550,11,0)," "))) -> 1043.604167 | E43: =IF($H$11=0," ",IF(B42=$H$11,Simulador!$L$31,+IF(B43>0,VLOOKUP(B43,Simulador!$A$32:$T$550,12,0)," "))) -> 233.18 | F43: =IF($H$11=0," ",IF(B42=$H$11,Simulador!$M$31,+IF(B43>0,VLOOKUP(B43,Simulador!$A$32:$T$550,13,0)," "))) -> 0 | G43: =IF($H$11=0," ",IF(B42=$H$11,Simulador!$T$31,+IF(B43>0,VLOOKUP(B43,Simulador!$A$32:$T$550,20,0)," "))) -> 0 | H43: =IF($H$11=0," ",IF(B42=$H$11,Simulador!$V$31,+IF(B43>0,VLOOKUP(B43,Simulador!$A$32:$Z$550,22,0)," "))) -> 1276.784167
B44: 27 | C44: =IF($H$11=0," ",IF(B43=$H$11,"TOTALES",+IF(B44>0,VLOOKUP(B44,Simulador!$A$32:$T$550,3,0)," "))) -> 2027-09-10 | D44: =IF($H$11=0," ",IF(B43=$H$11,Simulador!$J$33,+IF(B44>0,VLOOKUP(B44,Simulador!$A$32:$T$550,11,0)," "))) -> 1052.774167 | E44: =IF($H$11=0," ",IF(B43=$H$11,Simulador!$L$31,+IF(B44>0,VLOOKUP(B44,Simulador!$A$32:$T$550,12,0)," "))) -> 224.01 | F44: =IF($H$11=0," ",IF(B43=$H$11,Simulador!$M$31,+IF(B44>0,VLOOKUP(B44,Simulador!$A$32:$T$550,13,0)," "))) -> 0 | G44: =IF($H$11=0," ",IF(B43=$H$11,Simulador!$T$31,+IF(B44>0,VLOOKUP(B44,Simulador!$A$32:$T$550,20,0)," "))) -> 0 | H44: =IF($H$11=0," ",IF(B43=$H$11,Simulador!$V$31,+IF(B44>0,VLOOKUP(B44,Simulador!$A$32:$Z$550,22,0)," "))) -> 1276.784167
B45: 28 | C45: =IF($H$11=0," ",IF(B44=$H$11,"TOTALES",+IF(B45>0,VLOOKUP(B45,Simulador!$A$32:$T$550,3,0)," "))) -> 2027-10-10 | D45: =IF($H$11=0," ",IF(B44=$H$11,Simulador!$J$33,+IF(B45>0,VLOOKUP(B45,Simulador!$A$32:$T$550,11,0)," "))) -> 1068.984167 | E45: =IF($H$11=0," ",IF(B44=$H$11,Simulador!$L$31,+IF(B45>0,VLOOKUP(B45,Simulador!$A$32:$T$550,12,0)," "))) -> 207.8 | F45: =IF($H$11=0," ",IF(B44=$H$11,Simulador!$M$31,+IF(B45>0,VLOOKUP(B45,Simulador!$A$32:$T$550,13,0)," "))) -> 0 | G45: =IF($H$11=0," ",IF(B44=$H$11,Simulador!$T$31,+IF(B45>0,VLOOKUP(B45,Simulador!$A$32:$T$550,20,0)," "))) -> 0 | H45: =IF($H$11=0," ",IF(B44=$H$11,Simulador!$V$31,+IF(B45>0,VLOOKUP(B45,Simulador!$A$32:$Z$550,22,0)," "))) -> 1276.784167
B46: 29 | C46: =IF($H$11=0," ",IF(B45=$H$11,"TOTALES",+IF(B46>0,VLOOKUP(B46,Simulador!$A$32:$T$550,3,0)," "))) -> 2027-11-10 | D46: =IF($H$11=0," ",IF(B45=$H$11,Simulador!$J$33,+IF(B46>0,VLOOKUP(B46,Simulador!$A$32:$T$550,11,0)," "))) -> 1071.424167 | E46: =IF($H$11=0," ",IF(B45=$H$11,Simulador!$L$31,+IF(B46>0,VLOOKUP(B46,Simulador!$A$32:$T$550,12,0)," "))) -> 205.36 | F46: =IF($H$11=0," ",IF(B45=$H$11,Simulador!$M$31,+IF(B46>0,VLOOKUP(B46,Simulador!$A$32:$T$550,13,0)," "))) -> 0 | G46: =IF($H$11=0," ",IF(B45=$H$11,Simulador!$T$31,+IF(B46>0,VLOOKUP(B46,Simulador!$A$32:$T$550,20,0)," "))) -> 0 | H46: =IF($H$11=0," ",IF(B45=$H$11,Simulador!$V$31,+IF(B46>0,VLOOKUP(B46,Simulador!$A$32:$Z$550,22,0)," "))) -> 1276.784167
B47: 30 | C47: =IF($H$11=0," ",IF(B46=$H$11,"TOTALES",+IF(B47>0,VLOOKUP(B47,Simulador!$A$32:$T$550,3,0)," "))) -> 2027-12-10 | D47: =IF($H$11=0," ",IF(B46=$H$11,Simulador!$J$33,+IF(B47>0,VLOOKUP(B47,Simulador!$A$32:$T$550,11,0)," "))) -> 1087.194167 | E47: =IF($H$11=0," ",IF(B46=$H$11,Simulador!$L$31,+IF(B47>0,VLOOKUP(B47,Simulador!$A$32:$T$550,12,0)," "))) -> 189.59 | F47: =IF($H$11=0," ",IF(B46=$H$11,Simulador!$M$31,+IF(B47>0,VLOOKUP(B47,Simulador!$A$32:$T$550,13,0)," "))) -> 0 | G47: =IF($H$11=0," ",IF(B46=$H$11,Simulador!$T$31,+IF(B47>0,VLOOKUP(B47,Simulador!$A$32:$T$550,20,0)," "))) -> 0 | H47: =IF($H$11=0," ",IF(B46=$H$11,Simulador!$V$31,+IF(B47>0,VLOOKUP(B47,Simulador!$A$32:$Z$550,22,0)," "))) -> 1276.784167
B48: 31 | C48: =IF($H$11=0," ",IF(B47=$H$11,"TOTALES",+IF(B48>0,VLOOKUP(B48,Simulador!$A$32:$T$550,3,0)," "))) -> 2028-01-10 | D48: =IF($H$11=0," ",IF(B47=$H$11,Simulador!$J$33,+IF(B48>0,VLOOKUP(B48,Simulador!$A$32:$T$550,11,0)," "))) -> 1090.404167 | E48: =IF($H$11=0," ",IF(B47=$H$11,Simulador!$L$31,+IF(B48>0,VLOOKUP(B48,Simulador!$A$32:$T$550,12,0)," "))) -> 186.38 | F48: =IF($H$11=0," ",IF(B47=$H$11,Simulador!$M$31,+IF(B48>0,VLOOKUP(B48,Simulador!$A$32:$T$550,13,0)," "))) -> 0 | G48: =IF($H$11=0," ",IF(B47=$H$11,Simulador!$T$31,+IF(B48>0,VLOOKUP(B48,Simulador!$A$32:$T$550,20,0)," "))) -> 0 | H48: =IF($H$11=0," ",IF(B47=$H$11,Simulador!$V$31,+IF(B48>0,VLOOKUP(B48,Simulador!$A$32:$Z$550,22,0)," "))) -> 1276.784167
B49: 32 | C49: =IF($H$11=0," ",IF(B48=$H$11,"TOTALES",+IF(B49>0,VLOOKUP(B49,Simulador!$A$32:$T$550,3,0)," "))) -> 2028-02-10 | D49: =IF($H$11=0," ",IF(B48=$H$11,Simulador!$J$33,+IF(B49>0,VLOOKUP(B49,Simulador!$A$32:$T$550,11,0)," "))) -> 1099.994167 | E49: =IF($H$11=0," ",IF(B48=$H$11,Simulador!$L$31,+IF(B49>0,VLOOKUP(B49,Simulador!$A$32:$T$550,12,0)," "))) -> 176.79 | F49: =IF($H$11=0," ",IF(B48=$H$11,Simulador!$M$31,+IF(B49>0,VLOOKUP(B49,Simulador!$A$32:$T$550,13,0)," "))) -> 0 | G49: =IF($H$11=0," ",IF(B48=$H$11,Simulador!$T$31,+IF(B49>0,VLOOKUP(B49,Simulador!$A$32:$T$550,20,0)," "))) -> 0 | H49: =IF($H$11=0," ",IF(B48=$H$11,Simulador!$V$31,+IF(B49>0,VLOOKUP(B49,Simulador!$A$32:$Z$550,22,0)," "))) -> 1276.784167
B50: 33 | C50: =IF($H$11=0," ",IF(B49=$H$11,"TOTALES",+IF(B50>0,VLOOKUP(B50,Simulador!$A$32:$T$550,3,0)," "))) -> 2028-03-10 | D50: =IF($H$11=0," ",IF(B49=$H$11,Simulador!$J$33,+IF(B50>0,VLOOKUP(B50,Simulador!$A$32:$T$550,11,0)," "))) -> 1120.494167 | E50: =IF($H$11=0," ",IF(B49=$H$11,Simulador!$L$31,+IF(B50>0,VLOOKUP(B50,Simulador!$A$32:$T$550,12,0)," "))) -> 156.29 | F50: =IF($H$11=0," ",IF(B49=$H$11,Simulador!$M$31,+IF(B50>0,VLOOKUP(B50,Simulador!$A$32:$T$550,13,0)," "))) -> 0 | G50: =IF($H$11=0," ",IF(B49=$H$11,Simulador!$T$31,+IF(B50>0,VLOOKUP(B50,Simulador!$A$32:$T$550,20,0)," "))) -> 0 | H50: =IF($H$11=0," ",IF(B49=$H$11,Simulador!$V$31,+IF(B50>0,VLOOKUP(B50,Simulador!$A$32:$Z$550,22,0)," "))) -> 1276.784167
B51: 34 | C51: =IF($H$11=0," ",IF(B50=$H$11,"TOTALES",+IF(B51>0,VLOOKUP(B51,Simulador!$A$32:$T$550,3,0)," "))) -> 2028-04-10 | D51: =IF($H$11=0," ",IF(B50=$H$11,Simulador!$J$33,+IF(B51>0,VLOOKUP(B51,Simulador!$A$32:$T$550,11,0)," "))) -> 1119.514167 | E51: =IF($H$11=0," ",IF(B50=$H$11,Simulador!$L$31,+IF(B51>0,VLOOKUP(B51,Simulador!$A$32:$T$550,12,0)," "))) -> 157.27 | F51: =IF($H$11=0," ",IF(B50=$H$11,Simulador!$M$31,+IF(B51>0,VLOOKUP(B51,Simulador!$A$32:$T$550,13,0)," "))) -> 0 | G51: =IF($H$11=0," ",IF(B50=$H$11,Simulador!$T$31,+IF(B51>0,VLOOKUP(B51,Simulador!$A$32:$T$550,20,0)," "))) -> 0 | H51: =IF($H$11=0," ",IF(B50=$H$11,Simulador!$V$31,+IF(B51>0,VLOOKUP(B51,Simulador!$A$32:$Z$550,22,0)," "))) -> 1276.784167
B52: 35 | C52: =IF($H$11=0," ",IF(B51=$H$11,"TOTALES",+IF(B52>0,VLOOKUP(B52,Simulador!$A$32:$T$550,3,0)," "))) -> 2028-05-10 | D52: =IF($H$11=0," ",IF(B51=$H$11,Simulador!$J$33,+IF(B52>0,VLOOKUP(B52,Simulador!$A$32:$T$550,11,0)," "))) -> 1134.134167 | E52: =IF($H$11=0," ",IF(B51=$H$11,Simulador!$L$31,+IF(B52>0,VLOOKUP(B52,Simulador!$A$32:$T$550,12,0)," "))) -> 142.65 | F52: =IF($H$11=0," ",IF(B51=$H$11,Simulador!$M$31,+IF(B52>0,VLOOKUP(B52,Simulador!$A$32:$T$550,13,0)," "))) -> 0 | G52: =IF($H$11=0," ",IF(B51=$H$11,Simulador!$T$31,+IF(B52>0,VLOOKUP(B52,Simulador!$A$32:$T$550,20,0)," "))) -> 0 | H52: =IF($H$11=0," ",IF(B51=$H$11,Simulador!$V$31,+IF(B52>0,VLOOKUP(B52,Simulador!$A$32:$Z$550,22,0)," "))) -> 1276.784167
B53: 36 | C53: =IF($H$11=0," ",IF(B52=$H$11,"TOTALES",+IF(B53>0,VLOOKUP(B53,Simulador!$A$32:$T$550,3,0)," "))) -> 2028-06-10 | D53: =IF($H$11=0," ",IF(B52=$H$11,Simulador!$J$33,+IF(B53>0,VLOOKUP(B53,Simulador!$A$32:$T$550,11,0)," "))) -> 1139.334167 | E53: =IF($H$11=0," ",IF(B52=$H$11,Simulador!$L$31,+IF(B53>0,VLOOKUP(B53,Simulador!$A$32:$T$550,12,0)," "))) -> 137.45 | F53: =IF($H$11=0," ",IF(B52=$H$11,Simulador!$M$31,+IF(B53>0,VLOOKUP(B53,Simulador!$A$32:$T$550,13,0)," "))) -> 0 | G53: =IF($H$11=0," ",IF(B52=$H$11,Simulador!$T$31,+IF(B53>0,VLOOKUP(B53,Simulador!$A$32:$T$550,20,0)," "))) -> 0 | H53: =IF($H$11=0," ",IF(B52=$H$11,Simulador!$V$31,+IF(B53>0,VLOOKUP(B53,Simulador!$A$32:$Z$550,22,0)," "))) -> 1276.784167
B54: 37 | C54: =IF($H$11=0," ",IF(B53=$H$11,"TOTALES",+IF(B54>0,VLOOKUP(B54,Simulador!$A$32:$T$550,3,0)," "))) -> 2028-07-10 | D54: =IF($H$11=0," ",IF(B53=$H$11,Simulador!$J$33,+IF(B54>0,VLOOKUP(B54,Simulador!$A$32:$T$550,11,0)," "))) -> 1153.474167 | E54: =IF($H$11=0," ",IF(B53=$H$11,Simulador!$L$31,+IF(B54>0,VLOOKUP(B54,Simulador!$A$32:$T$550,12,0)," "))) -> 123.31 | F54: =IF($H$11=0," ",IF(B53=$H$11,Simulador!$M$31,+IF(B54>0,VLOOKUP(B54,Simulador!$A$32:$T$550,13,0)," "))) -> 0 | G54: =IF($H$11=0," ",IF(B53=$H$11,Simulador!$T$31,+IF(B54>0,VLOOKUP(B54,Simulador!$A$32:$T$550,20,0)," "))) -> 0 | H54: =IF($H$11=0," ",IF(B53=$H$11,Simulador!$V$31,+IF(B54>0,VLOOKUP(B54,Simulador!$A$32:$Z$550,22,0)," "))) -> 1276.784167
B55: 38 | C55: =IF($H$11=0," ",IF(B54=$H$11,"TOTALES",+IF(B55>0,VLOOKUP(B55,Simulador!$A$32:$T$550,3,0)," "))) -> 2028-08-10 | D55: =IF($H$11=0," ",IF(B54=$H$11,Simulador!$J$33,+IF(B55>0,VLOOKUP(B55,Simulador!$A$32:$T$550,11,0)," "))) -> 1159.484167 | E55: =IF($H$11=0," ",IF(B54=$H$11,Simulador!$L$31,+IF(B55>0,VLOOKUP(B55,Simulador!$A$32:$T$550,12,0)," "))) -> 117.3 | F55: =IF($H$11=0," ",IF(B54=$H$11,Simulador!$M$31,+IF(B55>0,VLOOKUP(B55,Simulador!$A$32:$T$550,13,0)," "))) -> 0 | G55: =IF($H$11=0," ",IF(B54=$H$11,Simulador!$T$31,+IF(B55>0,VLOOKUP(B55,Simulador!$A$32:$T$550,20,0)," "))) -> 0 | H55: =IF($H$11=0," ",IF(B54=$H$11,Simulador!$V$31,+IF(B55>0,VLOOKUP(B55,Simulador!$A$32:$Z$550,22,0)," "))) -> 1276.784167
B56: 39 | C56: =IF($H$11=0," ",IF(B55=$H$11,"TOTALES",+IF(B56>0,VLOOKUP(B56,Simulador!$A$32:$T$550,3,0)," "))) -> 2028-09-10 | D56: =IF($H$11=0," ",IF(B55=$H$11,Simulador!$J$33,+IF(B56>0,VLOOKUP(B56,Simulador!$A$32:$T$550,11,0)," "))) -> 1169.684167 | E56: =IF($H$11=0," ",IF(B55=$H$11,Simulador!$L$31,+IF(B56>0,VLOOKUP(B56,Simulador!$A$32:$T$550,12,0)," "))) -> 107.1 | F56: =IF($H$11=0," ",IF(B55=$H$11,Simulador!$M$31,+IF(B56>0,VLOOKUP(B56,Simulador!$A$32:$T$550,13,0)," "))) -> 0 | G56: =IF($H$11=0," ",IF(B55=$H$11,Simulador!$T$31,+IF(B56>0,VLOOKUP(B56,Simulador!$A$32:$T$550,20,0)," "))) -> 0 | H56: =IF($H$11=0," ",IF(B55=$H$11,Simulador!$V$31,+IF(B56>0,VLOOKUP(B56,Simulador!$A$32:$Z$550,22,0)," "))) -> 1276.784167
B57: 40 | C57: =IF($H$11=0," ",IF(B56=$H$11,"TOTALES",+IF(B57>0,VLOOKUP(B57,Simulador!$A$32:$T$550,3,0)," "))) -> 2028-10-10 | D57: =IF($H$11=0," ",IF(B56=$H$11,Simulador!$J$33,+IF(B57>0,VLOOKUP(B57,Simulador!$A$32:$T$550,11,0)," "))) -> 1183.104167 | E57: =IF($H$11=0," ",IF(B56=$H$11,Simulador!$L$31,+IF(B57>0,VLOOKUP(B57,Simulador!$A$32:$T$550,12,0)," "))) -> 93.68 | F57: =IF($H$11=0," ",IF(B56=$H$11,Simulador!$M$31,+IF(B57>0,VLOOKUP(B57,Simulador!$A$32:$T$550,13,0)," "))) -> 0 | G57: =IF($H$11=0," ",IF(B56=$H$11,Simulador!$T$31,+IF(B57>0,VLOOKUP(B57,Simulador!$A$32:$T$550,20,0)," "))) -> 0 | H57: =IF($H$11=0," ",IF(B56=$H$11,Simulador!$V$31,+IF(B57>0,VLOOKUP(B57,Simulador!$A$32:$Z$550,22,0)," "))) -> 1276.784167
B58: 41 | C58: =IF($H$11=0," ",IF(B57=$H$11,"TOTALES",+IF(B58>0,VLOOKUP(B58,Simulador!$A$32:$T$550,3,0)," "))) -> 2028-11-10 | D58: =IF($H$11=0," ",IF(B57=$H$11,Simulador!$J$33,+IF(B58>0,VLOOKUP(B58,Simulador!$A$32:$T$550,11,0)," "))) -> 1190.364167 | E58: =IF($H$11=0," ",IF(B57=$H$11,Simulador!$L$31,+IF(B58>0,VLOOKUP(B58,Simulador!$A$32:$T$550,12,0)," "))) -> 86.42 | F58: =IF($H$11=0," ",IF(B57=$H$11,Simulador!$M$31,+IF(B58>0,VLOOKUP(B58,Simulador!$A$32:$T$550,13,0)," "))) -> 0 | G58: =IF($H$11=0," ",IF(B57=$H$11,Simulador!$T$31,+IF(B58>0,VLOOKUP(B58,Simulador!$A$32:$T$550,20,0)," "))) -> 0 | H58: =IF($H$11=0," ",IF(B57=$H$11,Simulador!$V$31,+IF(B58>0,VLOOKUP(B58,Simulador!$A$32:$Z$550,22,0)," "))) -> 1276.784167
B59: 42 | C59: =IF($H$11=0," ",IF(B58=$H$11,"TOTALES",+IF(B59>0,VLOOKUP(B59,Simulador!$A$32:$T$550,3,0)," "))) -> 2028-12-10 | D59: =IF($H$11=0," ",IF(B58=$H$11,Simulador!$J$33,+IF(B59>0,VLOOKUP(B59,Simulador!$A$32:$T$550,11,0)," "))) -> 1203.294167 | E59: =IF($H$11=0," ",IF(B58=$H$11,Simulador!$L$31,+IF(B59>0,VLOOKUP(B59,Simulador!$A$32:$T$550,12,0)," "))) -> 73.49 | F59: =IF($H$11=0," ",IF(B58=$H$11,Simulador!$M$31,+IF(B59>0,VLOOKUP(B59,Simulador!$A$32:$T$550,13,0)," "))) -> 0 | G59: =IF($H$11=0," ",IF(B58=$H$11,Simulador!$T$31,+IF(B59>0,VLOOKUP(B59,Simulador!$A$32:$T$550,20,0)," "))) -> 0 | H59: =IF($H$11=0," ",IF(B58=$H$11,Simulador!$V$31,+IF(B59>0,VLOOKUP(B59,Simulador!$A$32:$Z$550,22,0)," "))) -> 1276.784167
B60: 43 | C60: =IF($H$11=0," ",IF(B59=$H$11,"TOTALES",+IF(B60>0,VLOOKUP(B60,Simulador!$A$32:$T$550,3,0)," "))) -> 2029-01-10 | D60: =IF($H$11=0," ",IF(B59=$H$11,Simulador!$J$33,+IF(B60>0,VLOOKUP(B60,Simulador!$A$32:$T$550,11,0)," "))) -> 1211.414167 | E60: =IF($H$11=0," ",IF(B59=$H$11,Simulador!$L$31,+IF(B60>0,VLOOKUP(B60,Simulador!$A$32:$T$550,12,0)," "))) -> 65.37 | F60: =IF($H$11=0," ",IF(B59=$H$11,Simulador!$M$31,+IF(B60>0,VLOOKUP(B60,Simulador!$A$32:$T$550,13,0)," "))) -> 0 | G60: =IF($H$11=0," ",IF(B59=$H$11,Simulador!$T$31,+IF(B60>0,VLOOKUP(B60,Simulador!$A$32:$T$550,20,0)," "))) -> 0 | H60: =IF($H$11=0," ",IF(B59=$H$11,Simulador!$V$31,+IF(B60>0,VLOOKUP(B60,Simulador!$A$32:$Z$550,22,0)," "))) -> 1276.784167
B61: 44 | C61: =IF($H$11=0," ",IF(B60=$H$11,"TOTALES",+IF(B61>0,VLOOKUP(B61,Simulador!$A$32:$T$550,3,0)," "))) -> 2029-02-10 | D61: =IF($H$11=0," ",IF(B60=$H$11,Simulador!$J$33,+IF(B61>0,VLOOKUP(B61,Simulador!$A$32:$T$550,11,0)," "))) -> 1222.064167 | E61: =IF($H$11=0," ",IF(B60=$H$11,Simulador!$L$31,+IF(B61>0,VLOOKUP(B61,Simulador!$A$32:$T$550,12,0)," "))) -> 54.72 | F61: =IF($H$11=0," ",IF(B60=$H$11,Simulador!$M$31,+IF(B61>0,VLOOKUP(B61,Simulador!$A$32:$T$550,13,0)," "))) -> 0 | G61: =IF($H$11=0," ",IF(B60=$H$11,Simulador!$T$31,+IF(B61>0,VLOOKUP(B61,Simulador!$A$32:$T$550,20,0)," "))) -> 0 | H61: =IF($H$11=0," ",IF(B60=$H$11,Simulador!$V$31,+IF(B61>0,VLOOKUP(B61,Simulador!$A$32:$Z$550,22,0)," "))) -> 1276.784167
B62: 45 | C62: =IF($H$11=0," ",IF(B61=$H$11,"TOTALES",+IF(B62>0,VLOOKUP(B62,Simulador!$A$32:$T$550,3,0)," "))) -> 2029-03-10 | D62: =IF($H$11=0," ",IF(B61=$H$11,Simulador!$J$33,+IF(B62>0,VLOOKUP(B62,Simulador!$A$32:$T$550,11,0)," "))) -> 1237.084167 | E62: =IF($H$11=0," ",IF(B61=$H$11,Simulador!$L$31,+IF(B62>0,VLOOKUP(B62,Simulador!$A$32:$T$550,12,0)," "))) -> 39.7 | F62: =IF($H$11=0," ",IF(B61=$H$11,Simulador!$M$31,+IF(B62>0,VLOOKUP(B62,Simulador!$A$32:$T$550,13,0)," "))) -> 0 | G62: =IF($H$11=0," ",IF(B61=$H$11,Simulador!$T$31,+IF(B62>0,VLOOKUP(B62,Simulador!$A$32:$T$550,20,0)," "))) -> 0 | H62: =IF($H$11=0," ",IF(B61=$H$11,Simulador!$V$31,+IF(B62>0,VLOOKUP(B62,Simulador!$A$32:$Z$550,22,0)," "))) -> 1276.784167
B63: 46 | C63: =IF($H$11=0," ",IF(B62=$H$11,"TOTALES",+IF(B63>0,VLOOKUP(B63,Simulador!$A$32:$T$550,3,0)," "))) -> 2029-04-10 | D63: =IF($H$11=0," ",IF(B62=$H$11,Simulador!$J$33,+IF(B63>0,VLOOKUP(B63,Simulador!$A$32:$T$550,11,0)," "))) -> 1243.684167 | E63: =IF($H$11=0," ",IF(B62=$H$11,Simulador!$L$31,+IF(B63>0,VLOOKUP(B63,Simulador!$A$32:$T$550,12,0)," "))) -> 33.1 | F63: =IF($H$11=0," ",IF(B62=$H$11,Simulador!$M$31,+IF(B63>0,VLOOKUP(B63,Simulador!$A$32:$T$550,13,0)," "))) -> 0 | G63: =IF($H$11=0," ",IF(B62=$H$11,Simulador!$T$31,+IF(B63>0,VLOOKUP(B63,Simulador!$A$32:$T$550,20,0)," "))) -> 0 | H63: =IF($H$11=0," ",IF(B62=$H$11,Simulador!$V$31,+IF(B63>0,VLOOKUP(B63,Simulador!$A$32:$Z$550,22,0)," "))) -> 1276.784167
B64: 47 | C64: =IF($H$11=0," ",IF(B63=$H$11,"TOTALES",+IF(B64>0,VLOOKUP(B64,Simulador!$A$32:$T$550,3,0)," "))) -> 2029-05-10 | D64: =IF($H$11=0," ",IF(B63=$H$11,Simulador!$J$33,+IF(B64>0,VLOOKUP(B64,Simulador!$A$32:$T$550,11,0)," "))) -> 1255.334167 | E64: =IF($H$11=0," ",IF(B63=$H$11,Simulador!$L$31,+IF(B64>0,VLOOKUP(B64,Simulador!$A$32:$T$550,12,0)," "))) -> 21.45 | F64: =IF($H$11=0," ",IF(B63=$H$11,Simulador!$M$31,+IF(B64>0,VLOOKUP(B64,Simulador!$A$32:$T$550,13,0)," "))) -> 0 | G64: =IF($H$11=0," ",IF(B63=$H$11,Simulador!$T$31,+IF(B64>0,VLOOKUP(B64,Simulador!$A$32:$T$550,20,0)," "))) -> 0 | H64: =IF($H$11=0," ",IF(B63=$H$11,Simulador!$V$31,+IF(B64>0,VLOOKUP(B64,Simulador!$A$32:$Z$550,22,0)," "))) -> 1276.784167
B65: 48 | C65: =IF($H$11=0," ",IF(B64=$H$11,"TOTALES",+IF(B65>0,VLOOKUP(B65,Simulador!$A$32:$T$550,3,0)," "))) -> 2029-06-10 | D65: =IF($H$11=0," ",IF(B64=$H$11,Simulador!$J$33,+IF(B65>0,VLOOKUP(B65,Simulador!$A$32:$T$550,11,0)," "))) -> 1265.654167 | E65: =IF($H$11=0," ",IF(B64=$H$11,Simulador!$L$31,+IF(B65>0,VLOOKUP(B65,Simulador!$A$32:$T$550,12,0)," "))) -> 11.13 | F65: =IF($H$11=0," ",IF(B64=$H$11,Simulador!$M$31,+IF(B65>0,VLOOKUP(B65,Simulador!$A$32:$T$550,13,0)," "))) -> 0 | G65: =IF($H$11=0," ",IF(B64=$H$11,Simulador!$T$31,+IF(B65>0,VLOOKUP(B65,Simulador!$A$32:$T$550,20,0)," "))) -> 0 | H65: =IF($H$11=0," ",IF(B64=$H$11,Simulador!$V$31,+IF(B65>0,VLOOKUP(B65,Simulador!$A$32:$Z$550,22,0)," "))) -> 1276.784167
C66: =IF($H$11=0," ",IF(B65=$H$11,"TOTALES",+IF(B66>0,VLOOKUP(B66,Simulador!$A$32:$T$550,3,0)," "))) -> TOTALES | D66: =IF($H$11=0," ",IF(B65=$H$11,Simulador!$J$33,+IF(B66>0,VLOOKUP(B66,Simulador!$A$32:$T$550,11,0)," "))) -> 50000 | E66: =IF($H$11=0," ",IF(B65=$H$11,Simulador!$L$31,+IF(B66>0,VLOOKUP(B66,Simulador!$A$32:$T$550,12,0)," "))) -> 11285.64 | F66: =IF($H$11=0," ",IF(B65=$H$11,Simulador!$M$31,+IF(B66>0,VLOOKUP(B66,Simulador!$A$32:$T$550,13,0)," "))) -> 0 | G66: =IF($H$11=0," ",IF(B65=$H$11,Simulador!$T$31,+IF(B66>0,VLOOKUP(B66,Simulador!$A$32:$T$550,20,0)," "))) -> 0 | H66: =IF($H$11=0," ",IF(B65=$H$11,Simulador!$V$31,+IF(B66>0,VLOOKUP(B66,Simulador!$A$32:$Z$550,22,0)," "))) -> 61285.64
C67: =IF($H$11=0," ",IF(B66=$H$11,"TOTALES",+IF(B67>0,VLOOKUP(B67,Simulador!$A$32:$T$550,3,0)," "))) ->  | D67: =IF($H$11=0," ",IF(B66=$H$11,Simulador!$J$33,+IF(B67>0,VLOOKUP(B67,Simulador!$A$32:$T$550,11,0)," "))) ->  | E67: =IF($H$11=0," ",IF(B66=$H$11,Simulador!$L$31,+IF(B67>0,VLOOKUP(B67,Simulador!$A$32:$T$550,12,0)," "))) ->  | F67: =IF($H$11=0," ",IF(B66=$H$11,Simulador!$M$31,+IF(B67>0,VLOOKUP(B67,Simulador!$A$32:$T$550,13,0)," "))) ->  | G67: =IF($H$11=0," ",IF(B66=$H$11,Simulador!$T$31,+IF(B67>0,VLOOKUP(B67,Simulador!$A$32:$T$550,20,0)," "))) ->  | H67: =IF($H$11=0," ",IF(B66=$H$11,#REF!,+IF(B67>0,VLOOKUP(B67,Simulador!$A$32:$Z$550,22,0)," "))) -> 
C68: =IF($H$11=0," ",IF(B67=$H$11,"TOTALES",+IF(B68>0,VLOOKUP(B68,Simulador!$A$32:$T$550,3,0)," "))) ->  | D68: =IF($H$11=0," ",IF(B67=$H$11,Simulador!$J$33,+IF(B68>0,VLOOKUP(B68,Simulador!$A$32:$T$550,11,0)," "))) ->  | E68: =IF($H$11=0," ",IF(B67=$H$11,Simulador!$L$31,+IF(B68>0,VLOOKUP(B68,Simulador!$A$32:$T$550,12,0)," "))) ->  | F68: =IF($H$11=0," ",IF(B67=$H$11,Simulador!$M$31,+IF(B68>0,VLOOKUP(B68,Simulador!$A$32:$T$550,13,0)," "))) ->  | G68: =IF($H$11=0," ",IF(B67=$H$11,Simulador!$T$31,+IF(B68>0,VLOOKUP(B68,Simulador!$A$32:$T$550,20,0)," "))) ->  | H68: =IF($H$11=0," ",IF(B67=$H$11,#REF!,+IF(B68>0,VLOOKUP(B68,Simulador!$A$32:$Z$550,22,0)," "))) -> 

Sheet Simulador (hidden)
C2: SIMULADOR DE CUOTAS - CRÉDITO PLD
C5: Importe Solicitado | H5: =+Hoja1!C8 -> 50000 | L5: Fecha Desembolso | Q5: =+Hoja1!C9 -> 2025-06-10
C6: Saldo de Capital | H6: =H5 -> 50000 | L6: Fecha Final de Gracia | Q6: =+DATE(YEAR(Q5+H15),MONTH(Q5+H15),DAY(Q5+H15)) -> 2025-06-10
C7: Saldo de Interes | H7: 0 | L7: Fecha de la 1° cuota | Q7: =DATE(YEAR(EDATE(Q6,1)),MONTH(EDATE(Q6,1)),DAY(EDATE(Q6,1))) -> 2025-07-10
C8: Tasa Anual (TEA) | H8: =+Hoja1!C11 -> 10.7 | L8: Fecha final de vencimiento | Q8: =IF(OR($H$16>0,$H$17>0),VLOOKUP($H$14,$A$33:$C$272,3,0),DATE(YEAR(EDATE(Q6,H14)),MONTH(EDATE(Q6,H14)),DAY(EDATE(Q6,H14)))) -> 2029-06-10
C9: Tasa de Seguro de Desgravamen | H9: =+IF(Hoja1!C13="Endoso o sin seguro",0,IF(Hoja1!C13="Seguro con retorno",0.346%,0.18%)) -> 0 | L9: Base | Q9: 360
C10: Tasa Anual (TEA) - Ajustada | H10: =+H8 -> 10.7 | L10: Frecuencia pago en días | Q10: 30 | R10: =+((1+22%)^(1/12)-1)*12*100 -> 20.05075665 | S10: =+(Q11%)*Q12/Q9 -> 0.008631181321
C11: Comision por Env. Inf | H11: 0 | L11: Tasa Equivalente - Ajustada | Q11: =ROUND((((H10/100+1)^(1/(Q9/Q10))-1)*Q9/Q10)*100,6) -> 10.208543 | R11: tea conv. A tem luego nominal anual
C12: Valor Asegurable | H12: 0 | L12: Días entre cuotas | Q12: =(Q8-Q6)/H14 -> 30.4375 | R12: dias promedio entre cuotas
C13: Tasa de Seguro Todo Riesgo | H13: 0 | I13: =+H13*12 -> 0 | J13: =+I13/365*30*H12 -> 0 | L13: Factor Aplicado - Ajustada | Q13: =ROUND(($Q$11/100)/($Q$9/$Q$12),8) -> 0.00863118 | R13: tem convertida de manera nominal a los dias entre cuotas
C14: Plazo y Nro. Cuotas | H14: =+Hoja1!C10 -> 48 | I14: =H14 -> 48 | L14: Factor Aplicado para la cuota - Ajustada | Q14: =1/((1-((1+$Q$13)^(-1*$H$14)))/$Q$13) -> 0.02553457497 | R14: Factor de cuota (ok)
C15: Días de Gracia | H15: =+Hoja1!C12 -> 0 | L15: Interes de Gracia (Se considera la TEA Normal) | Q15: =IF(H15>0,ROUND(H6*(((1+H8/100)^(ABS(H15)/Q9))-1),4),ROUND(H6*(((1+H8/100)^(ABS(H15)/Q9))-1),4) * -1) -> 0 | R15: Ok
C16: Mes de No Pago 1 | H16: 0 | L16: Saldo Interes +/- Interes Gracia | Q16: =IF(H7 + Q15>0,H7+ Q15,0) -> 0
C17: Mes de No Pago 2 | H17: 0 | L17: Seg Desg de Gracia | Q17: =IF(H15>0,ROUNDDOWN(H5*H9/30*H15,2),ROUNDDOWN(H5*H9/30*H15,2)*0) -> 0
C18: Mes Cuota Doble 1 | H18: =+IF(Hoja1!C14="No",0,IF(Hoja1!C14="Julio",7,12)) -> 0 | L18: TCEA | Q18: =+$AH$31 -> 0.1070004544
C19: Mes Cuota Doble 2 | H19: =+IF(Hoja1!C15="No",0,IF(Hoja1!C15="Julio",7,12)) -> 0
O21: Suavización | U21: Validador Cuota Doble
O22: Ultimo saldo de Principal | Q22: =VLOOKUP(I14,$F$32:$W$272,18,FALSE) -> 0.2 | U22: Cuota Simple | W22: =+VLOOKUP("",$D$33:$V$272,19,0) -> 1276.784167
F23: Valor de cuota por dias de gracia | J23: =+ROUND(IF(OR(H16+H17>0,H18+H19>0),Q16/VLOOKUP(H14,'Calculos PLD'!$A$3:$G$386,7,FALSE),Simulador!Q16*Simulador!$Q$14),2) -> 0 | K23: =Q16/SUM(AN33:INDIRECT(CONCATENATE("AE",32+I14-1))) -> 0 | O23: Numero de Dias | Q23: =Q8-Q6 -> 1461 | U23: Cuota Doble | W23: =+IFERROR(VLOOKUP("D",$D$33:$V$272,19,0)," ") -> 
F24: Valor de cuota por capital | J24: =ROUND(IF(OR(H16 + H17 > 0,H18 + H19>0), ROUNDUP(H6/VLOOKUP(H14,'Calculos PLD'!$A$3:$G$386,7,FALSE),2),H6*$Q$14),2) -> 1276.73 | L24: sin desgravamen | O24: Valor de Cuota Nivelada | Q24: =ROUND(+Q22/ROUND(1*(((1+H10/100)^(Q23/Q9))-1),4),2) -> 0.39 | U24: Factor | W24: =+IFERROR(W23/W22," ") -> 
F25: Valor de Seg Desg por dia de gracia | J25: =$Q$17/(($I$14+COUNTIF(D33:INDIRECT(CONCATENATE("C",32+I14-1)),"D"))*(1/((1+0)^($Q$10/$Q$9)))) -> 0
F26: Seguro de Desgravamen (FPF) | J26: =$H$5*$H$9 -> 0 | O26: Factor Ajuste | Q26: =Q24*Q14 -> 0.009958484238 | S26: Se copia LO DEL COSTADO a partir de la primera corrida | U26: Calce de Capital
F27: Comision por Env.Inf | J27: 0 | O27: Exceso de Int + Gracia | Q27: =SUM(X33:X152) -> 0 | R27: =ROUND(IF(OR(H16+ H17> 0,H18 + H19>0),ROUNDUP($Q$27/VLOOKUP(H14,'Calculos PLD'!$A$3:$G$386,7,FALSE),2),$Q$27*$Q$14),2) -> 0 | S27: 0 | U27: Suma Capital (K) | W27: =+SUM($K$33:$K$272) -> 50000
F28: Seguro Todo Riesgo | J28: =ROUND($H$12*$H$13,2) -> 0 | O28: Factor Ajuste 2 | Q28: =+Q22/H14 -> 0.004166666667 | U28: Validador | W28: =+$H$5-W27 -> 0 | AA28: <- El valor tiene que ser cercano a cero.
F29: Cuota | J29: =J23+J24+J26+J27+ J28+J25 -> 1276.73 | O29: Digite Factor de Ajuste Anterior mas El Actual | Q29: 0.05416666667 | R29: Se actualiza en cada simulación (Validar que la celda W28 sea cero) | T29: =$W$272 -> 
L31: =+SUM(L33:L272) -> 11285.64 | M31: 0 | N31: 11285.64 | O31: 61285.64 | P31: 0 | Q31: 0 | R31: 0 | S31: 0 | T31: =+SUM(T33:T272) -> 0 | U31: 0 | V31: =+SUM(V33:V272) -> 61285.64 | AG31: TIR | AH31: =(1+XIRR(AH32:AH272,AG32:AG272))^(360/365)-1 -> 0.1070004544 | AM31: Minicronograma de Gracia
C32: Fecha Vcto. | D32: Marca | E32: Nro. Cuota (De acuerdo a Plazo) | F32: Nro. Cuota | G32: Periodo Base | H32: Tasa | I32: Nro. Dias | J32: Principal* | K32: Capital | L32: Interes | M32: Interes de Gracia | N32: Interes Total | O32: Valor Cuota (variable) | P32: Comision por Env. Inf | Q32: Tasa de Seguro de Desgravamen* | R32: Importe de Gracia Desgravamen | S32: Importe Desgravamen por No Pago | T32: Seg. Desgravamen Total | U32: Seguro Todo Riesgo | V32: Cuota | W32: Saldo Principal | X32: Exceso | Y32: Nuevo Interes I | Z32: Nuevo Desgravamen I (no se utiliza) | AA32: Nuevo Interes (SF2INT) replica columna L | AB32: Nuevo Desgravamen (SF2GRV) replica columna Q | AC32: Desgravamen Gracia replica columna R | AD32: Desgravamen No Pago S | AE32: Total Cuota (SF2PAG) igual a columna V | AG32: =+Q5 -> 2025-06-10 | AH32: =-H5 -> -50000 | AJ32: VALIDADORES | AM32: Dias Transcurridos Acumulados | AN32: Factor Simple Actualizacion | AO32: Principal | AP32: Capital | AQ32: Interes | AR32: Cuota Gracia | AS32: Saldo Deuda
A33: 1 | B33: =IF(A33="","",IF(A33<=$H$22,0,1)) -> 1 | C33: =IF(OR(MONTH(EDATE($Q$6,E33))=$H$16,MONTH(EDATE($Q$6,E33))=$H$17),IF(ABS($H$17-$H$16)=1,EDATE($Q$6,E33+2),EDATE($Q$6,E33+1)),EDATE($Q$6,E33)) -> 2025-07-10 | D33: =IF(B33="","",IF(OR(MONTH(C33)=$H$18,MONTH(C33)=$H$19),"D","")) ->  | E33: =IF(OR(MONTH(Q7)=H16, MONTH(Q7)=H17),IF(ABS(H17-H16)=1,3,2),1) -> 1 | F33: =1 -> 1 | G33: =$Q$9 -> 360 | H33: =IF(B33="","",$H$10) -> 10.7 | I33: =C33-Q6 -> 30 | J33: =H6 -> 50000 | K33: =IF(B33="","",IF((IF(ISERROR(MATCH(MONTH(C33),$H$18:$H$19,0))=FALSE,$J$24 + $Q$29,0) + $J$24+$Q$29+$S$27)-L33<0,0.01,IF(ISERROR(MATCH(MONTH(C33),$H$18:$H$19,0))=FALSE,$J$24 + $Q$29,0)+ ($J$24+$Q$29+$S$27)-L33)- R33 -S33-Q33) -> 851.4241667 | L33: =IF(B33="","",IF($J$24+$Q$29<ROUND(ROUND(J33*(((1+(H33/100))^(I33/G33))-1),4),2),$J$24+$Q$29 +-0.01,IF(ROUND(ROUND(J33*(((1+(H33/100))^(I33/G33))-1),4),2)>$J$24,$J$24+ -0.01,ROUND(ROUND(J33*(((1+(H33/100))^(I33/G33))-1),4),2)))) -> 425.36 | M33: =IF(B33="","",IF(ISERROR(MATCH(MONTH(C33),$H$18:$H$19,0))=FALSE,$J$23,0) + $J$23) -> 0 | N33: =IF(B33="","",L33+M33) -> 425.36 | O33: =IF(B33="","",K33+N33) -> 1276.784167 | P33: =IF(B33="","",$J$27) -> 0 | Q33: =IF(B33="","",ROUND($H$9*J33,2)) -> 0 | R33: =IF(B33="","",(E33-F33)*ROUNDDOWN($H$5*$H$9/30*30,2) + ROUNDDOWN($H$5*$H$9/30*H15,2)) -> 0 | S33: =IF(B33="","",IF(E33-0>1,ROUNDDOWN($J33*$H$9/30*(DATE(YEAR($C33),MONTH($C33)-1,DAY($C33))-C32),2),0)) -> 0 | T33: =IF(B33="","",Q33+R33+S33) -> 0 | U33: =IF(B33="","",$J$28) -> 0 | V33: =IF(B33="","",O33+P33+Q33+R33+S33+U33) -> 1276.784167 | W33: =IF(B33="","",(ROUND(J33-K33,2))) -> 49148.58 | X33: =IF(B33="","",IF(ROUND(ROUND(J33*(((1+(H33/100))^(I33/G33))-1),4),2) - $J$24<0,0,ROUND(ROUND(J33*(((1+(H33/100))^(I33/G33))-1),4),2) - $J$24)) -> 0 | Z33: =SUM(K33:M33) -> 1276.784167 | AA33: =+L33 -> 425.36 | AB33: =+Q33 -> 0 | AC33: 0 | AD33: 0 | AE33: =IFERROR(AA33+K33 + P33 + U33+AB33 + M33 + AC33 + AD33,"") -> 1276.784167 | AF33: =IFERROR(IF(D33="D",$J$24*2,$J$24)+Q33,0) -> 1276.73 | AG33: =+IF(C33="",0,C33) -> 2025-07-10 | AH33: =+IF(AE33="",0,AE33) -> 1276.784167 | AJ33: =+IFERROR(AE33-V33,0) -> 0 | AK33: =+IFERROR(AA33-L33,0) -> 0 | AM33: =I33 -> 30 | AN33: =(1/((1+($J$8/100))^(AM33/$Q$9))*1) * IF(D33="D",2,1) -> 1 | AO33: =Q16 -> 0 | AP33: =AR33-AQ33 -> 0 | AQ33: =(((1+($J$8/100))^((K33)/$Q$9))-1)*AO33 -> 0 | AR33: =IF(D33="D",$K$23,0)+ $K$23 -> 0 | AS33: =AO33-AP33 -> 0
A34: =+IF(A33>=$H$14,"",A33+1) -> 2 | B34: =IF(A34="","",IF(A34<=$H$22,0,1)) -> 1 | C34: =IF(B34="","",IF(OR(MONTH(EDATE($Q$6,E34))=$H$16,MONTH(EDATE($Q$6,E34))=$H$17),IF(ABS($H$17-$H$16)=1,EDATE($Q$6,E34+2),EDATE($Q$6,E34+1)),EDATE($Q$6,E34))) -> 2025-08-10 | E34: =+IF(B34="","",IF(OR(MONTH(DATE(YEAR(C33)+0.0833333333333333,MONTH(C33)+1,DAY(C33)))=$H$16,MONTH(DATE(YEAR(C33)+0.5,MONTH(C33)+1,DAY(C33)))=$H$17),IF(ABS($H$17-$H$16)=1,E33+1,E33+2),E33+1)) -> 2 | F34: =+IF(B34="","",F33+1) -> 2 | G34: =IF(B34="","",$Q$9) -> 360 | H34: =IF(B34="","",$H$10) -> 10.7 | I34: =IF(B34="","",C34-C33) -> 31 | J34: =IF(B34="","",W33) -> 49148.58 | K34: 844.6741667 | L34: 432.11 | M34: 0 | N34: 432.11 | O34: 1276.784167 | P34: 0 | Q34: =IF(B34="","",ROUND($H$9*J34/30*$I34,2)-S34) -> 0 | S34: =IF(B34="","",IF(E34-E33>1,ROUNDDOWN($J34*$H$9/30*(DATE(YEAR($C34),MONTH($C34)-1,DAY($C34))-C33),2),0)) -> 0 | T34: 0 | U34: 0 | V34: =IF(B34="","",O34+P34+Q34+R34+S34+U34) -> 1276.784167 | W34: 48303.91 | X34: 0 | Z34: 1276.784167 | AA34: =+L34 -> 432.11 | AB34: 0 | AC34: 0 | AD34: 0 | AE34: 1276.784167 | AF34: =IFERROR(IF(D34="D",$J$24*2,$J$24)+Q34,0) -> 1276.73 | AG34: 2025-08-10 | AH34: 1276.784167 | AJ34: =+IFERROR(AE34-V34,0) -> 0 | AK34: =+IFERROR(AA34-L34,0) -> 0 | AM34: =I34 + AM33 -> 61 | AN34: 1 | AO34: =AS33 -> 0 | AP34: =AR34-AQ34 -> 0 | AQ34: 0 | AR34: 0 | AS34: =AO34-AP34 -> 0
A35: =+IF(A34>=$H$14,"",A34+1) -> 3 | B35: 1 | C35: 2025-09-10 | E35: =+IF(B35="","",IF(OR(MONTH(DATE(YEAR(C34)+0.0833333333333333,MONTH(C34)+1,DAY(C34)))=$H$16,MONTH(DATE(YEAR(C34)+0.5,MONTH(C34)+1,DAY(C34)))=$H$17),IF(ABS($H$17-$H$16)=1,E34+1,E34+2),E34+1)) -> 3 | F35: =+IF(B35="","",F34+1) -> 3 | G35: =IF(B35="","",$Q$9) -> 360 | H35: 10.7 | I35: =IF(B35="","",C35-C34) -> 31 | J35: =IF(B35="","",W34) -> 48303.91 | K35: 852.1041667 | L35: 424.68 | M35: 0 | N35: 424.68 | O35: 1276.784167 | P35: 0 | Q35: =IF(B35="","",ROUND($H$9*J35/30*$I35,2)-S35) -> 0 | S35: 0 | T35: 0 | U35: 0 | V35: 1276.784167 | W35: 47451.81 | X35: 0 | Z35: 1276.784167 | AA35: 424.68 | AB35: 0 | AC35: 0 | AD35: 0 | AE35: 1276.784167 | AF35: 1276.73 | AG35: 2025-09-10 | AH35: 1276.784167 | AJ35: 0 | AK35: 0 | AM35: 92 | AN35: 1 | AO35: =AS34 -> 0 | AP35: 0 | AQ35: 0 | AR35: 0 | AS35: 0
A36: 4 | B36: 1 | C36: 2025-10-10 | E36: 4 | F36: 4 | G36: 360 | H36: 10.7 | I36: 30 | J36: 47451.81 | K36: 873.1041667 | L36: 403.68 | M36: 0 | N36: 403.68 | O36: 1276.784167 | P36: 0 | Q36: 0 | S36: 0 | T36: 0 | U36: 0 | V36: 1276.784167 | W36: 46578.71 | X36: 0 | Z36: 1276.784167 | AA36: 403.68 | AB36: 0 | AC36: 0 | AD36: 0 | AE36: 1276.784167 | AF36: 1276.73 | AG36: 2025-10-10 | AH36: 1276.784167 | AJ36: 0 | AK36: 0 | AM36: 122 | AN36: 1 | AO36: 0 | AP36: 0 | AQ36: 0 | AR36: 0 | AS36: 0
A37: 5 | B37: 1 | C37: 2025-11-10 | E37: 5 | F37: 5 | G37: 360 | H37: 10.7 | I37: 31 | J37: 46578.71 | K37: 867.2641667 | L37: 409.52 | M37: 0 | N37: 409.52 | O37: 1276.784167 | P37: 0 | Q37: 0 | S37: 0 | T37: 0 | U37: 0 | V37: 1276.784167 | W37: 45711.45 | X37: 0 | Z37: 1276.784167 | AA37: 409.52 | AB37: 0 | AC37: 0 | AD37: 0 | AE37: 1276.784167 | AF37: 1276.73 | AG37: 2025-11-10 | AH37: 1276.784167 | AJ37: 0 | AK37: 0 | AM37: 153 | AN37: 1 | AO37: 0 | AP37: 0 | AQ37: 0 | AR37: 0 | AS37: 0
A38: 6 | B38: 1 | C38: 2025-12-10 | E38: 6 | F38: 6 | G38: 360 | H38: 10.7 | I38: 30 | J38: 45711.45 | K38: 887.9141667 | L38: 388.87 | M38: 0 | N38: 388.87 | O38: 1276.784167 | P38: 0 | Q38: 0 | S38: 0 | T38: 0 | U38: 0 | V38: 1276.784167 | W38: 44823.54 | X38: 0 | Z38: 1276.784167 | AA38: 388.87 | AB38: 0 | AC38: 0 | AD38: 0 | AE38: 1276.784167 | AF38: 1276.73 | AG38: 2025-12-10 | AH38: 1276.784167 | AJ38: 0 | AK38: 0 | AM38: 183 | AN38: 1 | AO38: 0 | AP38: 0 | AQ38: 0 | AR38: 0 | AS38: 0
A39: 7 | B39: 1 | C39: 2026-01-10 | E39: 7 | F39: 7 | G39: 360 | H39: 10.7 | I39: 31 | J39: 44823.54 | K39: 882.6941667 | L39: 394.09 | M39: 0 | N39: 394.09 | O39: 1276.784167 | P39: 0 | Q39: 0 | S39: 0 | T39: 0 | U39: 0 | V39: 1276.784167 | W39: 43940.85 | X39: 0 | Z39: 1276.784167 | AA39: 394.09 | AB39: 0 | AC39: 0 | AD39: 0 | AE39: 1276.784167 | AF39: 1276.73 | AG39: 2026-01-10 | AH39: 1276.784167 | AJ39: 0 | AK39: 0 | AM39: 214 | AN39: 1 | AO39: 0 | AP39: 0 | AQ39: 0 | AR39: 0 | AS39: 0
A40: 8 | B40: 1 | C40: 2026-02-10 | E40: 8 | F40: 8 | G40: 360 | H40: 10.7 | I40: 31 | J40: 43940.85 | K40: 890.4541667 | L40: 386.33 | M40: 0 | N40: 386.33 | O40: 1276.784167 | P40: 0 | Q40: 0 | S40: 0 | T40: 0 | U40: 0 | V40: 1276.784167 | W40: 43050.4 | X40: 0 | Z40: 1276.784167 | AA40: 386.33 | AB40: 0 | AC40: 0 | AD40: 0 | AE40: 1276.784167 | AF40: 1276.73 | AG40: 2026-02-10 | AH40: 1276.784167 | AJ40: 0 | AK40: 0 | AM40: 245 | AN40: 1 | AO40: 0 | AP40: 0 | AQ40: 0 | AR40: 0 | AS40: 0
A41: 9 | B41: 1 | C41: 2026-03-10 | E41: 9 | F41: 9 | G41: 360 | H41: 10.7 | I41: 28 | J41: 43050.4 | K41: 935.0641667 | L41: 341.72 | M41: 0 | N41: 341.72 | O41: 1276.784167 | P41: 0 | Q41: 0 | S41: 0 | T41: 0 | U41: 0 | V41: 1276.784167 | W41: 42115.34 | X41: 0 | Z41: 1276.784167 | AA41: 341.72 | AB41: 0 | AC41: 0 | AD41: 0 | AE41: 1276.784167 | AF41: 1276.73 | AG41: 2026-03-10 | AH41: 1276.784167 | AJ41: 0 | AK41: 0 | AM41: 273 | AN41: 1 | AO41: 0 | AP41: 0 | AQ41: 0 | AR41: 0 | AS41: 0
A42: 10 | B42: 1 | C42: 2026-04-10 | E42: 10 | F42: 10 | G42: 360 | H42: 10.7 | I42: 31 | J42: 42115.34 | K42: 906.5041667 | L42: 370.28 | M42: 0 | N42: 370.28 | O42: 1276.784167 | P42: 0 | Q42: 0 | S42: 0 | T42: 0 | U42: 0 | V42: 1276.784167 | W42: 41208.84 | X42: 0 | Z42: 1276.784167 | AA42: 370.28 | AB42: 0 | AC42: 0 | AD42: 0 | AE42: 1276.784167 | AF42: 1276.73 | AG42: 2026-04-10 | AH42: 1276.784167 | AJ42: 0 | AK42: 0 | AM42: 304 | AN42: 1 | AO42: 0 | AP42: 0 | AQ42: 0 | AR42: 0 | AS42: 0
A43: 11 | B43: 1 | C43: 2026-05-10 | E43: 11 | F43: 11 | G43: 360 | H43: 10.7 | I43: 30 | J43: 41208.84 | K43: 926.2141667 | L43: 350.57 | M43: 0 | N43: 350.57 | O43: 1276.784167 | P43: 0 | Q43: 0 | S43: 0 | T43: 0 | U43: 0 | V43: 1276.784167 | W43: 40282.63 | X43: 0 | Z43: 1276.784167 | AA43: 350.57 | AB43: 0 | AC43: 0 | AD43: 0 | AE43: 1276.784167 | AF43: 1276.73 | AG43: 2026-05-10 | AH43: 1276.784167 | AJ43: 0 | AK43: 0 | AM43: 334 | AN43: 1 | AO43: 0 | AP43: 0 | AQ43: 0 | AR43: 0 | AS43: 0
A44: 12 | B44: 1 | C44: 2026-06-10 | E44: 12 | F44: 12 | G44: 360 | H44: 10.7 | I44: 31 | J44: 40282.63 | K44: 922.6241667 | L44: 354.16 | M44: 0 | N44: 354.16 | O44: 1276.784167 | P44: 0 | Q44: 0 | S44: 0 | T44: 0 | U44: 0 | V44: 1276.784167 | W44: 39360.01 | X44: 0 | Z44: 1276.784167 | AA44: 354.16 | AB44: 0 | AC44: 0 | AD44: 0 | AE44: 1276.784167 | AF44: 1276.73 | AG44: 2026-06-10 | AH44: 1276.784167 | AJ44: 0 | AK44: 0 | AM44: 365 | AN44: 1 | AO44: 0 | AP44: 0 | AQ44: 0 | AR44: 0 | AS44: 0
A45: 13 | B45: 1 | C45: 2026-07-10 | E45: 13 | F45: 13 | G45: 360 | H45: 10.7 | I45: 30 | J45: 39360.01 | K45: 941.9441667 | L45: 334.84 | M45: 0 | N45: 334.84 | O45: 1276.784167 | P45: 0 | Q45: 0 | S45: 0 | T45: 0 | U45: 0 | V45: 1276.784167 | W45: 38418.07 | X45: 0 | Z45: 1276.784167 | AA45: 334.84 | AB45: 0 | AC45: 0 | AD45: 0 | AE45: 1276.784167 | AF45: 1276.73 | AG45: =+IF(C45="",0,C45) -> 2026-07-10 | AH45: =+IF(AE45="",0,AE45) -> 1276.784167 | AJ45: 0 | AK45: 0 | AM45: 395 | AN45: 1 | AO45: 0 | AP45: 0 | AQ45: 0 | AR45: 0 | AS45: 0
A46: 14 | B46: 1 | C46: 2026-08-10 | E46: 14 | F46: 14 | G46: 360 | H46: 10.7 | I46: 31 | J46: 38418.07 | K46: 939.0141667 | L46: 337.77 | M46: 0 | N46: 337.77 | O46: 1276.784167 | P46: 0 | Q46: 0 | S46: 0 | T46: 0 | U46: 0 | V46: 1276.784167 | W46: 37479.06 | X46: 0 | Z46: 1276.784167 | AA46: 337.77 | AB46: 0 | AC46: 0 | AD46: 0 | AE46: 1276.784167 | AF46: 1276.73 | AG46: =+IF(C46="",0,C46) -> 2026-08-10 | AH46: =+IF(AE46="",0,AE46) -> 1276.784167 | AJ46: 0 | AK46: 0 | AM46: 426 | AN46: 1 | AO46: 0 | AP46: 0 | AQ46: 0 | AR46: 0 | AS46: 0
A47: 15 | B47: 1 | C47: 2026-09-10 | E47: 15 | F47: 15 | G47: 360 | H47: 10.7 | I47: 31 | J47: 37479.06 | K47: 947.2741667 | L47: 329.51 | M47: 0 | N47: 329.51 | O47: 1276.784167 | P47: 0 | Q47: 0 | S47: 0 | T47: 0 | U47: 0 | V47: 1276.784167 | W47: 36531.79 | X47: 0 | Z47: 1276.784167 | AA47: 329.51 | AB47: 0 | AC47: 0 | AD47: 0 | AE47: 1276.784167 | AF47: 1276.73 | AG47: 2026-09-10 | AH47: 1276.784167 | AJ47: 0 | AK47: 0 | AM47: 457 | AN47: 1 | AO47: 0 | AP47: 0 | AQ47: 0 | AR47: 0 | AS47: 0
A48: 16 | B48: 1 | C48: 2026-10-10 | E48: 16 | F48: 16 | G48: 360 | H48: 10.7 | I48: 30 | J48: 36531.79 | K48: 966.0041667 | L48: 310.78 | M48: 0 | N48: 310.78 | O48: 1276.784167 | P48: 0 | Q48: 0 | S48: 0 | T48: 0 | U48: 0 | V48: 1276.784167 | W48: 35565.79 | X48: 0 | Z48: 1276.784167 | AA48: 310.78 | AB48: 0 | AC48: 0 | AD48: 0 | AE48: 1276.784167 | AF48: 1276.73 | AG48: 2026-10-10 | AH48: 1276.784167 | AJ48: 0 | AK48: 0 | AM48: 487 | AN48: 1 | AO48: 0 | AP48: 0 | AQ48: 0 | AR48: 0 | AS48: 0
A49: 17 | B49: 1 | C49: 2026-11-10 | E49: 17 | F49: 17 | G49: 360 | H49: 10.7 | I49: 31 | J49: 35565.79 | K49: 964.0941667 | L49: 312.69 | M49: 0 | N49: 312.69 | O49: 1276.784167 | P49: 0 | Q49: 0 | S49: 0 | T49: 0 | U49: 0 | V49: 1276.784167 | W49: 34601.7 | X49: 0 | Z49: 1276.784167 | AA49: 312.69 | AB49: 0 | AC49: 0 | AD49: 0 | AE49: 1276.784167 | AF49: 1276.73 | AG49: 2026-11-10 | AH49: 1276.784167 | AJ49: 0 | AK49: 0 | AM49: 518 | AN49: 1 | AO49: 0 | AP49: 0 | AQ49: 0 | AR49: 0 | AS49: 0
A50: 18 | B50: 1 | C50: 2026-12-10 | E50: 18 | F50: 18 | G50: 360 | H50: 10.7 | I50: 30 | J50: 34601.7 | K50: 982.4241667 | L50: 294.36 | M50: 0 | N50: 294.36 | O50: 1276.784167 | P50: 0 | Q50: 0 | S50: 0 | T50: 0 | U50: 0 | V50: 1276.784167 | W50: 33619.28 | X50: 0 | Z50: 1276.784167 | AA50: 294.36 | AB50: 0 | AC50: 0 | AD50: 0 | AE50: 1276.784167 | AF50: 1276.73 | AG50: 2026-12-10 | AH50: 1276.784167 | AJ50: 0 | AK50: 0 | AM50: 548 | AN50: 1 | AO50: 0 | AP50: 0 | AQ50: 0 | AR50: 0 | AS50: 0
A51: 19 | B51: 1 | C51: 2027-01-10 | E51: 19 | F51: 19 | G51: 360 | H51: 10.7 | I51: 31 | J51: 33619.28 | K51: 981.2041667 | L51: 295.58 | M51: 0 | N51: 295.58 | O51: 1276.784167 | P51: 0 | Q51: 0 | S51: 0 | T51: 0 | U51: 0 | V51: 1276.784167 | W51: 32638.08 | X51: 0 | Z51: 1276.784167 | AA51: 295.58 | AB51: 0 | AC51: 0 | AD51: 0 | AE51: 1276.784167 | AF51: 1276.73 | AG51: 2027-01-10 | AH51: 1276.784167 | AJ51: 0 | AK51: 0 | AM51: 579 | AN51: 1 | AO51: 0 | AP51: 0 | AQ51: 0 | AR51: 0 | AS51: 0
A52: 20 | B52: 1 | C52: 2027-02-10 | E52: 20 | F52: 20 | G52: 360 | H52: 10.7 | I52: 31 | J52: 32638.08 | K52: 989.8341667 | L52: 286.95 | M52: 0 | N52: 286.95 | O52: 1276.784167 | P52: 0 | Q52: 0 | S52: 0 | T52: 0 | U52: 0 | V52: 1276.784167 | W52: 31648.25 | X52: 0 | Z52: 1276.784167 | AA52: 286.95 | AB52: 0 | AC52: 0 | AD52: 0 | AE52: 1276.784167 | AF52: 1276.73 | AG52: 2027-02-10 | AH52: 1276.784167 | AJ52: 0 | AK52: 0 | AM52: 610 | AN52: 1 | AO52: 0 | AP52: 0 | AQ52: 0 | AR52: 0 | AS52: 0
A53: 21 | B53: 1 | C53: 2027-03-10 | E53: 21 | F53: 21 | G53: 360 | H53: 10.7 | I53: 28 | J53: 31648.25 | K53: 1025.564167 | L53: 251.22 | M53: 0 | N53: 251.22 | O53: 1276.784167 | P53: 0 | Q53: 0 | S53: 0 | T53: 0 | U53: 0 | V53: 1276.784167 | W53: 30622.69 | X53: 0 | Z53: 1276.784167 | AA53: 251.22 | AB53: 0 | AC53: 0 | AD53: 0 | AE53: 1276.784167 | AF53: 1276.73 | AG53: 2027-03-10 | AH53: 1276.784167 | AJ53: 0 | AK53: 0 | AM53: 638 | AN53: 1 | AO53: 0 | AP53: 0 | AQ53: 0 | AR53: 0 | AS53: 0
A54: 22 | B54: 1 | C54: 2027-04-10 | E54: 22 | F54: 22 | G54: 360 | H54: 10.7 | I54: 31 | J54: 30622.69 | K54: 1007.554167 | L54: 269.23 | M54: 0 | N54: 269.23 | O54: 1276.784167 | P54: 0 | Q54: 0 | S54: 0 | T54: 0 | U54: 0 | V54: 1276.784167 | W54: 29615.14 | X54: 0 | Z54: 1276.784167 | AA54: 269.23 | AB54: 0 | AC54: 0 | AD54: 0 | AE54: 1276.784167 | AF54: 1276.73 | AG54: 2027-04-10 | AH54: 1276.784167 | AJ54: 0 | AK54: 0 | AM54: 669 | AN54: 1 | AO54: 0 | AP54: 0 | AQ54: 0 | AR54: 0 | AS54: 0
A55: 23 | B55: 1 | C55: 2027-05-10 | E55: 23 | F55: 23 | G55: 360 | H55: 10.7 | I55: 30 | J55: 29615.14 | K55: 1024.844167 | L55: 251.94 | M55: 0 | N55: 251.94 | O55: 1276.784167 | P55: 0 | Q55: 0 | S55: 0 | T55: 0 | U55: 0 | V55: 1276.784167 | W55: 28590.3 | X55: 0 | Z55: 1276.784167 | AA55: 251.94 | AB55: 0 | AC55: 0 | AD55: 0 | AE55: 1276.784167 | AF55: 1276.73 | AG55: 2027-05-10 | AH55: 1276.784167 | AJ55: 0 | AK55: 0 | AM55: 699 | AN55: 1 | AO55: 0 | AP55: 0 | AQ55: 0 | AR55: 0 | AS55: 0
A56: 24 | B56: 1 | C56: 2027-06-10 | E56: 24 | F56: 24 | G56: 360 | H56: 10.7 | I56: 31 | J56: 28590.3 | K56: 1025.424167 | L56: 251.36 | M56: 0 | N56: 251.36 | O56: 1276.784167 | P56: 0 | Q56: 0 | S56: 0 | T56: 0 | U56: 0 | V56: 1276.784167 | W56: 27564.88 | X56: 0 | Z56: 1276.784167 | AA56: 251.36 | AB56: 0 | AC56: 0 | AD56: 0 | AE56: 1276.784167 | AF56: 1276.73 | AG56: 2027-06-10 | AH56: 1276.784167 | AJ56: 0 | AK56: 0 | AM56: 730 | AN56: 1 | AO56: 0 | AP56: 0 | AQ56: 0 | AR56: 0 | AS56: 0
A57: 25 | B57: 1 | C57: 2027-07-10 | E57: 25 | F57: 25 | G57: 360 | H57: 10.7 | I57: 30 | J57: 27564.88 | K57: 1042.284167 | L57: 234.5 | M57: 0 | N57: 234.5 | O57: 1276.784167 | P57: 0 | Q57: 0 | S57: 0 | T57: 0 | U57: 0 | V57: 1276.784167 | W57: 26522.6 | X57: 0 | Z57: 1276.784167 | AA57: 234.5 | AB57: 0 | AC57: 0 | AD57: 0 | AE57: 1276.784167 | AF57: 1276.73 | AG57: 2027-07-10 | AH57: 1276.784167 | AJ57: 0 | AK57: 0 | AM57: 760 | AN57: 1 | AO57: 0 | AP57: 0 | AQ57: 0 | AR57: 0 | AS57: 0
A58: 26 | B58: 1 | C58: 2027-08-10 | E58: 26 | F58: 26 | G58: 360 | H58: 10.7 | I58: 31 | J58: 26522.6 | K58: 1043.604167 | L58: 233.18 | M58: 0 | N58: 233.18 | O58: 1276.784167 | P58: 0 | Q58: 0 | S58: 0 | T58: 0 | U58: 0 | V58: 1276.784167 | W58: 25479 | X58: 0 | Z58: 1276.784167 | AA58: 233.18 | AB58: 0 | AC58: 0 | AD58: 0 | AE58: 1276.784167 | AF58: 1276.73 | AG58: 2027-08-10 | AH58: 1276.784167 | AJ58: 0 | AK58: 0 | AM58: 791 | AN58: 1 | AO58: 0 | AP58: 0 | AQ58: 0 | AR58: 0 | AS58: 0
A59: 27 | B59: 1 | C59: 2027-09-10 | E59: 27 | F59: 27 | G59: 360 | H59: 10.7 | I59: 31 | J59: 25479 | K59: 1052.774167 | L59: 224.01 | M59: 0 | N59: 224.01 | O59: 1276.784167 | P59: 0 | Q59: 0 | S59: 0 | T59: 0 | U59: 0 | V59: 1276.784167 | W59: 24426.23 | X59: 0 | Z59: 1276.784167 | AA59: 224.01 | AB59: 0 | AC59: 0 | AD59: 0 | AE59: 1276.784167 | AF59: 1276.73 | AG59: 2027-09-10 | AH59: 1276.784167 | AJ59: 0 | AK59: 0 | AM59: 822 | AN59: 1 | AO59: 0 | AP59: 0 | AQ59: 0 | AR59: 0 | AS59: 0
A60: 28 | B60: 1 | C60: 2027-10-10 | E60: 28 | F60: 28 | G60: 360 | H60: 10.7 | I60: 30 | J60: 24426.23 | K60: 1068.984167 | L60: 207.8 | M60: 0 | N60: 207.8 | O60: 1276.784167 | P60: 0 | Q60: 0 | S60: 0 | T60: 0 | U60: 0 | V60: 1276.784167 | W60: 23357.25 | X60: 0 | Z60: 1276.784167 | AA60: 207.8 | AB60: 0 | AC60: 0 | AD60: 0 | AE60: 1276.784167 | AF60: 1276.73 | AG60: 2027-10-10 | AH60: 1276.784167 | AJ60: 0 | AK60: 0 | AM60: 852 | AN60: 1 | AO60: 0 | AP60: 0 | AQ60: 0 | AR60: 0 | AS60: 0
A61: 29 | B61: 1 | C61: 2027-11-10 | E61: 29 | F61: 29 | G61: 360 | H61: 10.7 | I61: 31 | J61: 23357.25 | K61: 1071.424167 | L61: 205.36 | M61: 0 | N61: 205.36 | O61: 1276.784167 | P61: 0 | Q61: 0 | S61: 0 | T61: 0 | U61: 0 | V61: 1276.784167 | W61: 22285.83 | X61: 0 | Z61: 1276.784167 | AA61: 205.36 | AB61: 0 | AC61: 0 | AD61: 0 | AE61: 1276.784167 | AF61: 1276.73 | AG61: 2027-11-10 | AH61: 1276.784167 | AJ61: 0 | AK61: 0 | AM61: 883 | AN61: 1 | AO61: 0 | AP61: 0 | AQ61: 0 | AR61: 0 | AS61: 0
A62: 30 | B62: 1 | C62: 2027-12-10 | E62: 30 | F62: 30 | G62: 360 | H62: 10.7 | I62: 30 | J62: 22285.83 | K62: 1087.194167 | L62: 189.59 | M62: 0 | N62: 189.59 | O62: 1276.784167 | P62: 0 | Q62: 0 | S62: 0 | T62: 0 | U62: 0 | V62: 1276.784167 | W62: 21198.64 | X62: 0 | Z62: 1276.784167 | AA62: 189.59 | AB62: 0 | AC62: 0 | AD62: 0 | AE62: 1276.784167 | AF62: 1276.73 | AG62: 2027-12-10 | AH62: 1276.784167 | AJ62: 0 | AK62: 0 | AM62: 913 | AN62: 1 | AO62: 0 | AP62: 0 | AQ62: 0 | AR62: 0 | AS62: 0
A63: 31 | B63: 1 | C63: 2028-01-10 | E63: 31 | F63: 31 | G63: 360 | H63: 10.7 | I63: 31 | J63: 21198.64 | K63: 1090.404167 | L63: 186.38 | M63: 0 | N63: 186.38 | O63: 1276.784167 | P63: 0 | Q63: 0 | S63: 0 | T63: 0 | U63: 0 | V63: 1276.784167 | W63: 20108.24 | X63: 0 | Z63: 1276.784167 | AA63: 186.38 | AB63: 0 | AC63: 0 | AD63: 0 | AE63: 1276.784167 | AF63: 1276.73 | AG63: 2028-01-10 | AH63: 1276.784167 | AJ63: 0 | AK63: 0 | AM63: 944 | AN63: 1 | AO63: 0 | AP63: 0 | AQ63: 0 | AR63: 0 | AS63: 0
A64: 32 | B64: 1 | C64: 2028-02-10 | E64: 32 | F64: 32 | G64: 360 | H64: 10.7 | I64: 31 | J64: 20108.24 | K64: 1099.994167 | L64: 176.79 | M64: 0 | N64: 176.79 | O64: 1276.784167 | P64: 0 | Q64: 0 | S64: 0 | T64: 0 | U64: 0 | V64: 1276.784167 | W64: 19008.25 | X64: 0 | Z64: 1276.784167 | AA64: 176.79 | AB64: 0 | AC64: 0 | AD64: 0 | AE64: 1276.784167 | AF64: 1276.73 | AG64: 2028-02-10 | AH64: 1276.784167 | AJ64: 0 | AK64: 0 | AM64: 975 | AN64: 1 | AO64: 0 | AP64: 0 | AQ64: 0 | AR64: 0 | AS64: 0
A65: 33 | B65: 1 | C65: 2028-03-10 | E65: 33 | F65: 33 | G65: 360 | H65: 10.7 | I65: 29 | J65: 19008.25 | K65: 1120.494167 | L65: 156.29 | M65: 0 | N65: 156.29 | O65: 1276.784167 | P65: 0 | Q65: 0 | S65: 0 | T65: 0 | U65: 0 | V65: 1276.784167 | W65: 17887.76 | X65: 0 | Z65: 1276.784167 | AA65: 156.29 | AB65: 0 | AC65: 0 | AD65: 0 | AE65: 1276.784167 | AF65: 1276.73 | AG65: 2028-03-10 | AH65: 1276.784167 | AJ65: 0 | AK65: 0 | AM65: 1004 | AN65: 1 | AO65: 0 | AP65: 0 | AQ65: 0 | AR65: 0 | AS65: 0
A66: 34 | B66: 1 | C66: 2028-04-10 | E66: 34 | F66: 34 | G66: 360 | H66: 10.7 | I66: 31 | J66: 17887.76 | K66: 1119.514167 | L66: 157.27 | M66: 0 | N66: 157.27 | O66: 1276.784167 | P66: 0 | Q66: 0 | S66: 0 | T66: 0 | U66: 0 | V66: 1276.784167 | W66: 16768.25 | X66: 0 | Z66: 1276.784167 | AA66: 157.27 | AB66: 0 | AC66: 0 | AD66: 0 | AE66: 1276.784167 | AF66: 1276.73 | AG66: 2028-04-10 | AH66: 1276.784167 | AJ66: 0 | AK66: 0 | AM66: 1035 | AN66: 1 | AO66: 0 | AP66: 0 | AQ66: 0 | AR66: 0 | AS66: 0
A67: 35 | B67: 1 | C67: 2028-05-10 | E67: 35 | F67: 35 | G67: 360 | H67: 10.7 | I67: 30 | J67: 16768.25 | K67: 1134.134167 | L67: 142.65 | M67: 0 | N67: 142.65 | O67: 1276.784167 | P67: 0 | Q67: 0 | S67: 0 | T67: 0 | U67: 0 | V67: 1276.784167 | W67: 15634.12 | X67: 0 | Z67: 1276.784167 | AA67: 142.65 | AB67: 0 | AC67: 0 | AD67: 0 | AE67: 1276.784167 | AF67: 1276.73 | AG67: 2028-05-10 | AH67: 1276.784167 | AJ67: 0 | AK67: 0 | AM67: 1065 | AN67: 1 | AO67: 0 | AP67: 0 | AQ67: 0 | AR67: 0 | AS67: 0
A68: 36 | B68: 1 | C68: 2028-06-10 | E68: 36 | F68: 36 | G68: 360 | H68: 10.7 | I68: 31 | J68: 15634.12 | K68: 1139.334167 | L68: 137.45 | M68: 0 | N68: 137.45 | O68: 1276.784167 | P68: 0 | Q68: 0 | S68: 0 | T68: 0 | U68: 0 | V68: 1276.784167 | W68: 14494.79 | X68: 0 | Z68: 1276.784167 | AA68: 137.45 | AB68: 0 | AC68: 0 | AD68: 0 | AE68: 1276.784167 | AF68: 1276.73 | AG68: 2028-06-10 | AH68: 1276.784167 | AJ68: 0 | AK68: 0 | AM68: 1096 | AN68: 1 | AO68: 0 | AP68: 0 | AQ68: 0 | AR68: 0 | AS68: 0
A69: 37 | B69: 1 | C69: 2028-07-10 | E69: 37 | F69: 37 | G69: 360 | H69: 10.7 | I69: 30 | J69: 14494.79 | K69: 1153.474167 | L69: 123.31 | M69: 0 | N69: 123.31 | O69: 1276.784167 | P69: 0 | Q69: 0 | S69: 0 | T69: 0 | U69: 0 | V69: 1276.784167 | W69: 13341.32 | X69: 0 | Z69: 1276.784167 | AA69: 123.31 | AB69: 0 | AC69: 0 | AD69: 0 | AE69: 1276.784167 | AF69: 1276.73 | AG69: 2028-07-10 | AH69: 1276.784167 | AJ69: 0 | AK69: 0 | AM69: 1126 | AN69: 1 | AO69: 0 | AP69: 0 | AQ69: 0 | AR69: 0 | AS69: 0
A70: 38 | B70: 1 | C70: 2028-08-10 | E70: 38 | F70: 38 | G70: 360 | H70: 10.7 | I70: 31 | J70: 13341.32 | K70: 1159.484167 | L70: 117.3 | M70: 0 | N70: 117.3 | O70: 1276.784167 | P70: 0 | Q70: 0 | S70: 0 | T70: 0 | U70: 0 | V70: 1276.784167 | W70: 12181.84 | X70: 0 | Z70: 1276.784167 | AA70: 117.3 | AB70: 0 | AC70: 0 | AD70: 0 | AE70: 1276.784167 | AF70: 1276.73 | AG70: 2028-08-10 | AH70: 1276.784167 | AJ70: 0 | AK70: 0 | AM70: 1157 | AN70: 1 | AO70: 0 | AP70: 0 | AQ70: 0 | AR70: 0 | AS70: 0
A71: 39 | B71: 1 | C71: 2028-09-10 | E71: 39 | F71: 39 | G71: 360 | H71: 10.7 | I71: 31 | J71: 12181.84 | K71: 1169.684167 | L71: 107.1 | M71: 0 | N71: 107.1 | O71: 1276.784167 | P71: 0 | Q71: 0 | S71: 0 | T71: 0 | U71: 0 | V71: 1276.784167 | W71: 11012.16 | X71: 0 | Z71: 1276.784167 | AA71: 107.1 | AB71: 0 | AC71: 0 | AD71: 0 | AE71: 1276.784167 | AF71: 1276.73 | AG71: 2028-09-10 | AH71: 1276.784167 | AJ71: 0 | AK71: 0 | AM71: 1188 | AN71: 1 | AO71: 0 | AP71: 0 | AQ71: 0 | AR71: 0 | AS71: 0
A72: 40 | B72: 1 | C72: 2028-10-10 | E72: 40 | F72: 40 | G72: 360 | H72: 10.7 | I72: 30 | J72: 11012.16 | K72: 1183.104167 | L72: 93.68 | M72: 0 | N72: 93.68 | O72: 1276.784167 | P72: 0 | Q72: 0 | S72: 0 | T72: 0 | U72: 0 | V72: 1276.784167 | W72: 9829.06 | X72: 0 | Z72: 1276.784167 | AA72: 93.68 | AB72: 0 | AC72: 0 | AD72: 0 | AE72: 1276.784167 | AF72: 1276.73 | AG72: 2028-10-10 | AH72: 1276.784167 | AJ72: 0 | AK72: 0 | AM72: 1218 | AN72: 1 | AO72: 0 | AP72: 0 | AQ72: 0 | AR72: 0 | AS72: 0
A73: 41 | B73: 1 | C73: 2028-11-10 | E73: 41 | F73: 41 | G73: 360 | H73: 10.7 | I73: 31 | J73: 9829.06 | K73: 1190.364167 | L73: 86.42 | M73: 0 | N73: 86.42 | O73: 1276.784167 | P73: 0 | Q73: 0 | S73: 0 | T73: 0 | U73: 0 | V73: 1276.784167 | W73: 8638.7 | X73: 0 | Z73: 1276.784167 | AA73: 86.42 | AB73: 0 | AC73: 0 | AD73: 0 | AE73: 1276.784167 | AF73: 1276.73 | AG73: 2028-11-10 | AH73: 1276.784167 | AJ73: 0 | AK73: 0 | AM73: 1249 | AN73: 1 | AO73: 0 | AP73: 0 | AQ73: 0 | AR73: 0 | AS73: 0
A74: 42 | B74: 1 | C74: 2028-12-10 | E74: 42 | F74: 42 | G74: 360 | H74: 10.7 | I74: 30 | J74: 8638.7 | K74: 1203.294167 | L74: 73.49 | M74: 0 | N74: 73.49 | O74: 1276.784167 | P74: 0 | Q74: 0 | S74: 0 | T74: 0 | U74: 0 | V74: 1276.784167 | W74: 7435.41 | X74: 0 | Z74: 1276.784167 | AA74: 73.49 | AB74: 0 | AC74: 0 | AD74: 0 | AE74: 1276.784167 | AF74: 1276.73 | AG74: 2028-12-10 | AH74: 1276.784167 | AJ74: 0 | AK74: 0 | AM74: 1279 | AN74: 1 | AO74: 0 | AP74: 0 | AQ74: 0 | AR74: 0 | AS74: 0
A75: 43 | B75: 1 | C75: 2029-01-10 | E75: 43 | F75: 43 | G75: 360 | H75: 10.7 | I75: 31 | J75: 7435.41 | K75: 1211.414167 | L75: 65.37 | M75: 0 | N75: 65.37 | O75: 1276.784167 | P75: 0 | Q75: 0 | S75: 0 | T75: 0 | U75: 0 | V75: 1276.784167 | W75: 6224 | X75: 0 | Z75: 1276.784167 | AA75: 65.37 | AB75: 0 | AC75: 0 | AD75: 0 | AE75: 1276.784167 | AF75: 1276.73 | AG75: 2029-01-10 | AH75: 1276.784167 | AJ75: 0 | AK75: 0 | AM75: 1310 | AN75: 1 | AO75: 0 | AP75: 0 | AQ75: 0 | AR75: 0 | AS75: 0
A76: 44 | B76: 1 | C76: 2029-02-10 | E76: 44 | F76: 44 | G76: 360 | H76: 10.7 | I76: 31 | J76: 6224 | K76: 1222.064167 | L76: 54.72 | M76: 0 | N76: 54.72 | O76: 1276.784167 | P76: 0 | Q76: 0 | S76: 0 | T76: 0 | U76: 0 | V76: 1276.784167 | W76: 5001.94 | X76: 0 | Z76: 1276.784167 | AA76: 54.72 | AB76: 0 | AC76: 0 | AD76: 0 | AE76: 1276.784167 | AF76: 1276.73 | AG76: 2029-02-10 | AH76: 1276.784167 | AJ76: 0 | AK76: 0 | AM76: 1341 | AN76: 1 | AO76: 0 | AP76: 0 | AQ76: 0 | AR76: 0 | AS76: 0
A77: 45 | B77: 1 | C77: 2029-03-10 | E77: 45 | F77: 45 | G77: 360 | H77: 10.7 | I77: 28 | J77: 5001.94 | K77: 1237.084167 | L77: 39.7 | M77: 0 | N77: 39.7 | O77: 1276.784167 | P77: 0 | Q77: 0 | S77: 0 | T77: 0 | U77: 0 | V77: 1276.784167 | W77: 3764.86 | X77: 0 | Z77: 1276.784167 | AA77: 39.7 | AB77: 0 | AC77: 0 | AD77: 0 | AE77: 1276.784167 | AF77: 1276.73 | AG77: 2029-03-10 | AH77: 1276.784167 | AJ77: 0 | AK77: 0 | AM77: 1369 | AN77: 1 | AO77: 0 | AP77: 0 | AQ77: 0 | AR77: 0 | AS77: 0
A78: 46 | B78: 1 | C78: 2029-04-10 | E78: 46 | F78: 46 | G78: 360 | H78: 10.7 | I78: 31 | J78: 3764.86 | K78: 1243.684167 | L78: 33.1 | M78: 0 | N78: 33.1 | O78: 1276.784167 | P78: 0 | Q78: 0 | S78: 0 | T78: 0 | U78: 0 | V78: 1276.784167 | W78: 2521.18 | X78: 0 | Z78: 1276.784167 | AA78: 33.1 | AB78: 0 | AC78: 0 | AD78: 0 | AE78: 1276.784167 | AF78: 1276.73 | AG78: 2029-04-10 | AH78: 1276.784167 | AJ78: 0 | AK78: 0 | AM78: 1400 | AN78: 1 | AO78: 0 | AP78: 0 | AQ78: 0 | AR78: 0 | AS78: 0
A79: 47 | B79: 1 | C79: 2029-05-10 | E79: 47 | F79: 47 | G79: 360 | H79: 10.7 | I79: 30 | J79: 2521.18 | K79: 1255.334167 | L79: 21.45 | M79: 0 | N79: 21.45 | O79: 1276.784167 | P79: 0 | Q79: 0 | S79: 0 | T79: 0 | U79: 0 | V79: 1276.784167 | W79: 1265.85 | X79: 0 | Z79: 1276.784167 | AA79: 21.45 | AB79: 0 | AC79: 0 | AD79: 0 | AE79: 1276.784167 | AF79: 1276.73 | AG79: 2029-05-10 | AH79: 1276.784167 | AJ79: 0 | AK79: 0 | AM79: 1430 | AN79: 1 | AO79: 0 | AP79: 0 | AQ79: 0 | AR79: 0 | AS79: 0
A80: 48 | B80: 1 | C80: 2029-06-10 | E80: 48 | F80: 48 | G80: 360 | H80: 10.7 | I80: 31 | J80: 1265.85 | K80: 1265.654167 | L80: 11.13 | M80: 0 | N80: 11.13 | O80: 1276.784167 | P80: 0 | Q80: 0 | S80: 0 | T80: 0 | U80: 0 | V80: 1276.784167 | W80: 0.2 | X80: 0 | Z80: 1276.784167 | AA80: 11.13 | AB80: 0 | AC80: 0 | AD80: 0 | AE80: 1276.784167 | AF80: 1276.73 | AG80: 2029-06-10 | AH80: 1276.784167 | AJ80: 0 | AK80: 0 | AM80: 1461 | AN80: 1 | AO80: 0 | AP80: 0 | AQ80: 0 | AR80: 0 | AS80: 0
Z81: 0 | AC81: 0 | AF81: 0 | AG81: 00:00:00 | AH81: 0 | AJ81: 0 | AK81: 0 | AO81: 0 | AR81: 0
Z82: 0 | AC82: 0 | AF82: 0 | AG82: 00:00:00 | AH82: 0 | AJ82: 0 | AK82: 0 | AR82: 0
Z83: 0 | AC83: 0 | AF83: 0 | AG83: 00:00:00 | AH83: 0 | AJ83: 0 | AK83: 0 | AR83: 0
Z84: 0 | AC84: 0 | AF84: 0 | AG84: 00:00:00 | AH84: 0 | AJ84: 0 | AK84: 0 | AR84: 0
Z85: 0 | AC85: 0 | AF85: 0 | AG85: 00:00:00 | AH85: 0 | AJ85: 0 | AK85: 0 | AR85: 0
Z86: 0 | AC86: 0 | AF86: 0 | AG86: 00:00:00 | AH86: 0 | AJ86: 0 | AK86: 0 | AR86: 0
Z87: 0 | AC87: 0 | AF87: 0 | AG87: 00:00:00 | AH87: 0 | AJ87: 0 | AK87: 0 | AR87: 0
Z88: 0 | AC88: 0 | AF88: 0 | AG88: 00:00:00 | AH88: 0 | AJ88: 0 | AK88: 0 | AR88: 0
Z89: 0 | AC89: 0 | AF89: 0 | AG89: 00:00:00 | AH89: 0 | AJ89: 0 | AK89: 0 | AR89: 0
Z90: 0 | AC90: 0 | AF90: 0 | AG90: 00:00:00 | AH90: 0 | AJ90: 0 | AK90: 0 | AR90: 0
Z91: 0 | AC91: 0 | AF91: 0 | AG91: 00:00:00 | AH91: 0 | AJ91: 0 | AK91: 0 | AR91: 0
Z92: 0 | AC92: 0 | AF92: 0 | AG92: 00:00:00 | AH92: 0 | AJ92: 0 | AK92: 0 | AR92: 0
Z93: 0 | AC93: 0 | AF93: 0 | AG93: 00:00:00 | AH93: 0 | AJ93: 0 | AK93: 0 | AR93: 0
Z94: 0 | AC94: 0 | AF94: 0 | AG94: 00:00:00 | AH94: 0 | AJ94: 0 | AK94: 0 | AR94: 0
Z95: 0 | AC95: 0 | AF95: 0 | AG95: 00:00:00 | AH95: 0 | AJ95: 0 | AK95: 0 | AR95: 0
Z96: 0 | AC96: 0 | AF96: 0 | AG96: 00:00:00 | AH96: 0 | AJ96: 0 | AK96: 0 | AR96: 0
D97: =IF(B97="","",IF(OR(MONTH(C97)=$H$18,MONTH(C97)=$H$19),"D","")) ->  | K97: =IF(B97="","",IF((IF(ISERROR(MATCH(MONTH(C97),$H$18:$H$19,0))=FALSE,$J$24 + $Q$29,0) + $J$24+$Q$29+$S$27)-L97<0,0.01,IF(ISERROR(MATCH(MONTH(C97),$H$18:$H$19,0))=FALSE,$J$24 + $Q$29,0)+ ($J$24+$Q$29+$S$27)-L97)- R97 -S97-Q97) ->  | L97: =IF(B97="","",IF($J$24+$Q$29<ROUND(ROUND(J97*(((1+(H97/100))^(I97/G97))-1),4),2),$J$24+$Q$29 +-0.01,IF(ROUND(ROUND(J97*(((1+(H97/100))^(I97/G97))-1),4),2)>$J$24,$J$24+ -0.01,ROUND(ROUND(J97*(((1+(H97/100))^(I97/G97))-1),4),2)))) ->  | M97: =IF(B97="","",IF(ISERROR(MATCH(MONTH(C97),$H$18:$H$19,0))=FALSE,$J$23,0) + $J$23) ->  | N97: =IF(B97="","",L97+M97) ->  | O97: =IF(B97="","",K97+N97) ->  | P97: =IF(B97="","",$J$27) ->  | T97: =IF(B97="","",Q97+R97+S97) ->  | U97: =IF(B97="","",$J$28) ->  | W97: =IF(B97="","",(ROUND(J97-K97,2))) ->  | X97: =IF(B97="","",IF(ROUND(ROUND(J97*(((1+(H97/100))^(I97/G97))-1),4),2) - $J$24<0,0,ROUND(ROUND(J97*(((1+(H97/100))^(I97/G97))-1),4),2) - $J$24)) ->  | Z97: =SUM(K97:M97) -> 0 | AB97: =+Q97 ->  | AC97: 0 | AE97: =IFERROR(AA97+K97 + P97 + U97+AB97 + M97 + AC97 + AD97,"") ->  | AF97: 0 | AG97: 00:00:00 | AH97: 0 | AJ97: 0 | AK97: 0 | AN97: =(1/((1+($J$8/100))^(AM97/$Q$9))*1) * IF(D97="D",2,1) ->  | AQ97: =(((1+($J$8/100))^((K97)/$Q$9))-1)*AO97 ->  | AR97: =IF(D97="D",$K$23,0)+ $K$23 -> 0
B98: =IF(A98="","",IF(A98<=$H$22,0,1)) ->  | C98: =IF(B98="","",IF(OR(MONTH(EDATE($Q$6,E98))=$H$16,MONTH(EDATE($Q$6,E98))=$H$17),IF(ABS($H$17-$H$16)=1,EDATE($Q$6,E98+2),EDATE($Q$6,E98+1)),EDATE($Q$6,E98))) ->  | H98: =IF(B98="","",$H$10) ->  | S98: =IF(B98="","",IF(E98-E97>1,ROUNDDOWN($J98*$H$9/30*(DATE(YEAR($C98),MONTH($C98)-1,DAY($C98))-C97),2),0)) ->  | V98: =IF(B98="","",O98+P98+Q98+R98+S98+U98) ->  | Z98: 0 | AA98: =+L98 ->  | AC98: 0 | AF98: =IFERROR(IF(D98="D",$J$24*2,$J$24)+Q98,0) -> 0 | AG98: 00:00:00 | AH98: 0 | AJ98: =+IFERROR(AE98-V98,0) -> 0 | AK98: =+IFERROR(AA98-L98,0) -> 0 | AM98: =I98 + AM97 ->  | AP98: =AR98-AQ98 ->  | AR98: 0 | AS98: =AO98-AP98 -> 
A99: =+IF(A98>=$H$14,"",A98+1) ->  | E99: =+IF(B99="","",IF(OR(MONTH(DATE(YEAR(C98)+0.0833333333333333,MONTH(C98)+1,DAY(C98)))=$H$16,MONTH(DATE(YEAR(C98)+0.5,MONTH(C98)+1,DAY(C98)))=$H$17),IF(ABS($H$17-$H$16)=1,E98+1,E98+2),E98+1)) ->  | F99: =+IF(B99="","",F98+1) ->  | G99: =IF(B99="","",$Q$9) ->  | I99: =IF(B99="","",C99-C98) ->  | J99: =IF(B99="","",W98) ->  | Q99: =IF(B99="","",ROUND($H$9*J99/30*$I99,2)-S99) ->  | Z99: 0 | AC99: 0 | AF99: 0 | AG99: 00:00:00 | AH99: 0 | AJ99: 0 | AK99: 0 | AO99: =AS98 ->  | AR99: 0
Z100: 0 | AC100: 0 | AF100: 0 | AG100: 00:00:00 | AH100: 0 | AJ100: 0 | AK100: 0 | AR100: 0
Z101: 0 | AC101: 0 | AF101: 0 | AG101: 00:00:00 | AH101: 0 | AJ101: 0 | AK101: 0 | AR101: 0
Z102: 0 | AC102: 0 | AF102: 0 | AG102: 00:00:00 | AH102: 0 | AJ102: 0 | AK102: 0 | AR102: 0
Z103: 0 | AC103: 0 | AF103: 0 | AG103: 00:00:00 | AH103: 0 | AJ103: 0 | AK103: 0 | AR103: 0
Z104: 0 | AC104: 0 | AF104: 0 | AG104: 00:00:00 | AH104: 0 | AJ104: 0 | AK104: 0 | AR104: 0
Z105: 0 | AC105: 0 | AF105: 0 | AG105: 00:00:00 | AH105: 0 | AJ105: 0 | AK105: 0 | AR105: 0
Z106: 0 | AC106: 0 | AF106: 0 | AG106: 00:00:00 | AH106: 0 | AJ106: 0 | AK106: 0 | AR106: 0
Z107: 0 | AC107: 0 | AF107: 0 | AG107: 00:00:00 | AH107: 0 | AJ107: 0 | AK107: 0 | AR107: 0
Z108: 0 | AC108: 0 | AF108: 0 | AG108: 00:00:00 | AH108: 0 | AJ108: 0 | AK108: 0 | AR108: 0
Z109: 0 | AC109: 0 | AF109: 0 | AG109: 00:00:00 | AH109: 0 | AJ109: 0 | AK109: 0 | AR109: 0
Z110: 0 | AC110: 0 | AF110: 0 | AG110: =+IF(C110="",0,C110) -> 00:00:00 | AH110: =+IF(AE110="",0,AE110) -> 0 | AJ110: 0 | AK110: 0 | AR110: 0
Z111: 0 | AC111: 0 | AF111: 0 | AG111: 00:00:00 | AH111: 0 | AJ111: 0 | AK111: 0 | AR111: 0
Z112: 0 | AC112: 0 | AF112: 0 | AG112: 00:00:00 | AH112: 0 | AJ112: 0 | AK112: 0 | AR112: 0
Z113: 0 | AC113: 0 | AF113: 0 | AG113: 00:00:00 | AH113: 0 | AJ113: 0 | AK113: 0 | AR113: 0
Z114: 0 | AC114: 0 | AF114: 0 | AG114: 00:00:00 | AH114: 0 | AJ114: 0 | AK114: 0 | AR114: 0
Z115: 0 | AC115: 0 | AF115: 0 | AG115: 00:00:00 | AH115: 0 | AJ115: 0 | AK115: 0 | AR115: 0
Z116: 0 | AC116: 0 | AF116: 0 | AG116: 00:00:00 | AH116: 0 | AJ116: 0 | AK116: 0 | AR116: 0
Z117: 0 | AC117: 0 | AF117: 0 | AG117: 00:00:00 | AH117: 0 | AJ117: 0 | AK117: 0 | AR117: 0
Z118: 0 | AC118: 0 | AF118: 0 | AG118: 00:00:00 | AH118: 0 | AJ118: 0 | AK118: 0 | AR118: 0
Z119: 0 | AC119: 0 | AF119: 0 | AG119: 00:00:00 | AH119: 0 | AJ119: 0 | AK119: 0 | AR119: 0
Z120: 0 | AC120: 0 | AF120: 0 | AG120: 00:00:00 | AH120: 0 | AJ120: 0 | AK120: 0 | AR120: 0
Z121: 0 | AC121: 0 | AF121: 0 | AG121: 00:00:00 | AH121: 0 | AJ121: 0 | AK121: 0 | AR121: 0
Z122: 0 | AC122: 0 | AF122: 0 | AG122: 00:00:00 | AH122: 0 | AJ122: 0 | AK122: 0 | AR122: 0
Z123: 0 | AC123: 0 | AF123: 0 | AG123: 00:00:00 | AH123: 0 | AJ123: 0 | AK123: 0 | AR123: 0
Z124: 0 | AC124: 0 | AF124: 0 | AG124: 00:00:00 | AH124: 0 | AJ124: 0 | AK124: 0 | AR124: 0
Z125: 0 | AC125: 0 | AF125: 0 | AG125: 00:00:00 | AH125: 0 | AJ125: 0 | AK125: 0 | AR125: 0
Z126: 0 | AC126: 0 | AF126: 0 | AG126: 00:00:00 | AH126: 0 | AJ126: 0 | AK126: 0 | AR126: 0
Z127: 0 | AC127: 0 | AF127: 0 | AG127: 00:00:00 | AH127: 0 | AJ127: 0 | AK127: 0 | AR127: 0
Z128: 0 | AC128: 0 | AF128: 0 | AG128: 00:00:00 | AH128: 0 | AJ128: 0 | AK128: 0 | AR128: 0
Z129: 0 | AC129: 0 | AF129: 0 | AG129: 00:00:00 | AH129: 0 | AJ129: 0 | AK129: 0 | AR129: 0
Z130: 0 | AC130: 0 | AF130: 0 | AG130: 00:00:00 | AH130: 0 | AJ130: 0 | AK130: 0 | AR130: 0
Z131: 0 | AC131: 0 | AF131: 0 | AG131: 00:00:00 | AH131: 0 | AJ131: 0 | AK131: 0 | AR131: 0
Z132: 0 | AC132: 0 | AF132: 0 | AG132: 00:00:00 | AH132: 0 | AJ132: 0 | AK132: 0 | AR132: 0
Z133: 0 | AC133: 0 | AF133: 0 | AG133: 00:00:00 | AH133: 0 | AJ133: 0 | AK133: 0 | AR133: 0
Z134: 0 | AC134: 0 | AF134: 0 | AG134: 00:00:00 | AH134: 0 | AJ134: 0 | AK134: 0 | AR134: 0
Z135: 0 | AC135: 0 | AF135: 0 | AG135: 00:00:00 | AH135: 0 | AJ135: 0 | AK135: 0 | AR135: 0
Z136: 0 | AC136: 0 | AF136: 0 | AG136: 00:00:00 | AH136: 0 | AJ136: 0 | AK136: 0 | AR136: 0
Z137: 0 | AC137: 0 | AF137: 0 | AG137: 00:00:00 | AH137: 0 | AJ137: 0 | AK137: 0 | AR137: 0
Z138: 0 | AC138: 0 | AF138: 0 | AG138: 00:00:00 | AH138: 0 | AJ138: 0 | AK138: 0 | AR138: 0
Z139: 0 | AC139: 0 | AF139: 0 | AG139: 00:00:00 | AH139: 0 | AJ139: 0 | AK139: 0 | AR139: 0
Z140: 0 | AC140: 0 | AF140: 0 | AG140: 00:00:00 | AH140: 0 | AJ140: 0 | AK140: 0 | AR140: 0
Z141: 0 | AC141: 0 | AF141: 0 | AG141: 00:00:00 | AH141: 0 | AJ141: 0 | AK141: 0 | AR141: 0
Z142: 0 | AC142: 0 | AF142: 0 | AG142: 00:00:00 | AH142: 0 | AJ142: 0 | AK142: 0 | AR142: 0
Z143: 0 | AC143: 0 | AF143: 0 | AG143: 00:00:00 | AH143: 0 | AJ143: 0 | AK143: 0 | AR143: 0
Z144: 0 | AC144: 0 | AF144: 0 | AG144: 00:00:00 | AH144: 0 | AJ144: 0 | AK144: 0 | AR144: 0
Z145: 0 | AC145: 0 | AF145: 0 | AG145: 00:00:00 | AH145: 0 | AJ145: 0 | AK145: 0 | AR145: 0
Z146: 0 | AC146: 0 | AF146: 0 | AG146: 00:00:00 | AH146: 0 | AJ146: 0 | AK146: 0 | AR146: 0
Z147: 0 | AC147: 0 | AF147: 0 | AG147: 00:00:00 | AH147: 0 | AJ147: 0 | AK147: 0 | AR147: 0
Z148: 0 | AC148: 0 | AF148: 0 | AG148: 00:00:00 | AH148: 0 | AJ148: 0 | AK148: 0 | AR148: 0
Z149: 0 | AC149: 0 | AF149: 0 | AG149: 00:00:00 | AH149: 0 | AJ149: 0 | AK149: 0 | AR149: 0
Z150: 0 | AC150: 0 | AF150: 0 | AG150: 00:00:00 | AH150: 0 | AJ150: 0 | AK150: 0 | AR150: 0
Z151: 0 | AC151: 0 | AF151: 0 | AG151: 00:00:00 | AH151: 0 | AJ151: 0 | AK151: 0 | AR151: 0
Z152: 0 | AC152: 0 | AF152: 0 | AG152: 00:00:00 | AH152: 0 | AJ152: 0 | AK152: 0 | AR152: 0
Z153: 0 | AC153: 0 | AF153: 0 | AG153: 00:00:00 | AH153: 0 | AJ153: 0 | AK153: 0 | AR153: 0
Z154: 0 | AC154: 0 | AF154: 0 | AG154: 00:00:00 | AH154: 0 | AJ154: 0 | AK154: 0 | AR154: 0
Z155: 0 | AC155: 0 | AF155: 0 | AG155: 00:00:00 | AH155: 0 | AJ155: 0 | AK155: 0 | AR155: 0
Z156: 0 | AC156: 0 | AF156: 0 | AG156: 00:00:00 | AH156: 0 | AJ156: 0 | AK156: 0 | AR156: 0
Z157: 0 | AC157: 0 | AF157: 0 | AG157: 00:00:00 | AH157: 0 | AJ157: 0 | AK157: 0 | AR157: 0
Z158: 0 | AC158: 0 | AF158: 0 | AG158: 00:00:00 | AH158: 0 | AJ158: 0 | AK158: 0 | AR158: 0
Z159: 0 | AC159: 0 | AF159: 0 | AG159: 00:00:00 | AH159: 0 | AJ159: 0 | AK159: 0 | AR159: 0
Z160: 0 | AC160: 0 | AF160: 0 | AG160: 00:00:00 | AH160: 0 | AJ160: 0 | AK160: 0 | AR160: 0
D161: =IF(B161="","",IF(OR(MONTH(C161)=$H$18,MONTH(C161)=$H$19),"D","")) ->  | K161: =IF(B161="","",IF((IF(ISERROR(MATCH(MONTH(C161),$H$18:$H$19,0))=FALSE,$J$24 + $Q$29,0) + $J$24+$Q$29+$S$27)-L161<0,0.01,IF(ISERROR(MATCH(MONTH(C161),$H$18:$H$19,0))=FALSE,$J$24 + $Q$29,0)+ ($J$24+$Q$29+$S$27)-L161)- R161 -S161-Q161) ->  | L161: =IF(B161="","",IF($J$24+$Q$29<ROUND(ROUND(J161*(((1+(H161/100))^(I161/G161))-1),4),2),$J$24+$Q$29 +-0.01,IF(ROUND(ROUND(J161*(((1+(H161/100))^(I161/G161))-1),4),2)>$J$24,$J$24+ -0.01,ROUND(ROUND(J161*(((1+(H161/100))^(I161/G161))-1),4),2)))) ->  | M161: =IF(B161="","",IF(ISERROR(MATCH(MONTH(C161),$H$18:$H$19,0))=FALSE,$J$23,0) + $J$23) ->  | N161: =IF(B161="","",L161+M161) ->  | O161: =IF(B161="","",K161+N161) ->  | P161: =IF(B161="","",$J$27) ->  | T161: =IF(B161="","",Q161+R161+S161) ->  | U161: =IF(B161="","",$J$28) ->  | W161: =IF(B161="","",(ROUND(J161-K161,2))) ->  | X161: =IF(B161="","",IF(ROUND(ROUND(J161*(((1+(H161/100))^(I161/G161))-1),4),2) - $J$24<0,0,ROUND(ROUND(J161*(((1+(H161/100))^(I161/G161))-1),4),2) - $J$24)) ->  | Z161: =SUM(K161:M161) -> 0 | AB161: =+Q161 ->  | AC161: 0 | AE161: =IFERROR(AA161+K161 + P161 + U161+AB161 + M161 + AC161 + AD161,"") ->  | AF161: 0 | AG161: 00:00:00 | AH161: 0 | AJ161: 0 | AK161: 0 | AN161: =(1/((1+($J$8/100))^(AM161/$Q$9))*1) * IF(D161="D",2,1) ->  | AQ161: =(((1+($J$8/100))^((K161)/$Q$9))-1)*AO161 ->  | AR161: =IF(D161="D",$K$23,0)+ $K$23 -> 0
B162: =IF(A162="","",IF(A162<=$H$22,0,1)) ->  | C162: =IF(B162="","",IF(OR(MONTH(EDATE($Q$6,E162))=$H$16,MONTH(EDATE($Q$6,E162))=$H$17),IF(ABS($H$17-$H$16)=1,EDATE($Q$6,E162+2),EDATE($Q$6,E162+1)),EDATE($Q$6,E162))) ->  | H162: =IF(B162="","",$H$10) ->  | S162: =IF(B162="","",IF(E162-E161>1,ROUNDDOWN($J162*$H$9/30*(DATE(YEAR($C162),MONTH($C162)-1,DAY($C162))-C161),2),0)) ->  | V162: =IF(B162="","",O162+P162+Q162+R162+S162+U162) ->  | Z162: 0 | AA162: =+L162 ->  | AC162: 0 | AF162: =IFERROR(IF(D162="D",$J$24*2,$J$24)+Q162,0) -> 0 | AG162: 00:00:00 | AH162: 0 | AJ162: =+IFERROR(AE162-V162,0) -> 0 | AK162: =+IFERROR(AA162-L162,0) -> 0 | AM162: =I162 + AM161 ->  | AP162: =AR162-AQ162 ->  | AR162: 0 | AS162: =AO162-AP162 -> 
A163: =+IF(A162>=$H$14,"",A162+1) ->  | E163: =+IF(B163="","",IF(OR(MONTH(DATE(YEAR(C162)+0.0833333333333333,MONTH(C162)+1,DAY(C162)))=$H$16,MONTH(DATE(YEAR(C162)+0.5,MONTH(C162)+1,DAY(C162)))=$H$17),IF(ABS($H$17-$H$16)=1,E162+1,E162+2),E162+1)) ->  | F163: =+IF(B163="","",F162+1) ->  | G163: =IF(B163="","",$Q$9) ->  | I163: =IF(B163="","",C163-C162) ->  | J163: =IF(B163="","",W162) ->  | Q163: =IF(B163="","",ROUND($H$9*J163/30*$I163,2)-S163) ->  | Z163: 0 | AC163: 0 | AF163: 0 | AG163: 00:00:00 | AH163: 0 | AJ163: 0 | AK163: 0 | AO163: =AS162 ->  | AR163: 0
Z164: 0 | AC164: 0 | AF164: 0 | AG164: 00:00:00 | AH164: 0 | AJ164: 0 | AK164: 0 | AR164: 0
Z165: 0 | AC165: 0 | AF165: 0 | AG165: 00:00:00 | AH165: 0 | AJ165: 0 | AK165: 0 | AR165: 0
Z166: 0 | AC166: 0 | AF166: 0 | AG166: 00:00:00 | AH166: 0 | AJ166: 0 | AK166: 0 | AR166: 0
Z167: 0 | AC167: 0 | AF167: 0 | AG167: 00:00:00 | AH167: 0 | AJ167: 0 | AK167: 0 | AR167: 0
Z168: 0 | AC168: 0 | AF168: 0 | AG168: 00:00:00 | AH168: 0 | AJ168: 0 | AK168: 0 | AR168: 0
Z169: 0 | AC169: 0 | AF169: 0 | AG169: 00:00:00 | AH169: 0 | AJ169: 0 | AK169: 0 | AR169: 0
Z170: 0 | AC170: 0 | AF170: 0 | AG170: 00:00:00 | AH170: 0 | AJ170: 0 | AK170: 0 | AR170: 0
Z171: 0 | AC171: 0 | AF171: 0 | AG171: 00:00:00 | AH171: 0 | AJ171: 0 | AK171: 0 | AR171: 0
Z172: 0 | AC172: 0 | AF172: 0 | AG172: 00:00:00 | AH172: 0 | AJ172: 0 | AK172: 0 | AR172: 0
Z173: 0 | AC173: 0 | AF173: 0 | AG173: 00:00:00 | AH173: 0 | AJ173: 0 | AK173: 0 | AR173: 0
Z174: 0 | AC174: 0 | AF174: 0 | AG174: =+IF(C174="",0,C174) -> 00:00:00 | AH174: =+IF(AE174="",0,AE174) -> 0 | AJ174: 0 | AK174: 0 | AR174: 0
Z175: 0 | AC175: 0 | AF175: 0 | AG175: 00:00:00 | AH175: 0 | AJ175: 0 | AK175: 0 | AR175: 0
Z176: 0 | AC176: 0 | AF176: 0 | AG176: 00:00:00 | AH176: 0 | AJ176: 0 | AK176: 0 | AR176: 0
Z177: 0 | AC177: 0 | AF177: 0 | AG177: 00:00:00 | AH177: 0 | AJ177: 0 | AK177: 0 | AR177: 0
Z178: 0 | AC178: 0 | AF178: 0 | AG178: 00:00:00 | AH178: 0 | AJ178: 0 | AK178: 0 | AR178: 0
Z179: 0 | AC179: 0 | AF179: 0 | AG179: 00:00:00 | AH179: 0 | AJ179: 0 | AK179: 0 | AR179: 0
Z180: 0 | AC180: 0 | AF180: 0 | AG180: 00:00:00 | AH180: 0 | AJ180: 0 | AK180: 0 | AR180: 0
Z181: 0 | AC181: 0 | AF181: 0 | AG181: 00:00:00 | AH181: 0 | AJ181: 0 | AK181: 0 | AR181: 0
Z182: 0 | AC182: 0 | AF182: 0 | AG182: 00:00:00 | AH182: 0 | AJ182: 0 | AK182: 0 | AR182: 0
Z183: 0 | AC183: 0 | AF183: 0 | AG183: 00:00:00 | AH183: 0 | AJ183: 0 | AK183: 0 | AR183: 0
Z184: 0 | AC184: 0 | AF184: 0 | AG184: 00:00:00 | AH184: 0 | AJ184: 0 | AK184: 0 | AR184: 0
Z185: 0 | AC185: 0 | AF185: 0 | AG185: 00:00:00 | AH185: 0 | AJ185: 0 | AK185: 0 | AR185: 0
Z186: 0 | AC186: 0 | AF186: 0 | AG186: 00:00:00 | AH186: 0 | AJ186: 0 | AK186: 0 | AR186: 0
Z187: 0 | AC187: 0 | AF187: 0 | AG187: 00:00:00 | AH187: 0 | AJ187: 0 | AK187: 0 | AR187: 0
Z188: 0 | AC188: 0 | AF188: 0 | AG188: 00:00:00 | AH188: 0 | AJ188: 0 | AK188: 0 | AR188: 0
Z189: 0 | AC189: 0 | AF189: 0 | AG189: 00:00:00 | AH189: 0 | AJ189: 0 | AK189: 0 | AR189: 0
Z190: 0 | AC190: 0 | AF190: 0 | AG190: 00:00:00 | AH190: 0 | AJ190: 0 | AK190: 0 | AR190: 0
Z191: 0 | AC191: 0 | AF191: 0 | AG191: 00:00:00 | AH191: 0 | AJ191: 0 | AK191: 0 | AR191: 0
Z192: 0 | AC192: 0 | AF192: 0 | AG192: 00:00:00 | AH192: 0 | AJ192: 0 | AK192: 0 | AR192: 0
Z193: 0 | AC193: 0 | AF193: 0 | AG193: 00:00:00 | AH193: 0 | AJ193: 0 | AK193: 0 | AR193: 0
Z194: 0 | AC194: 0 | AF194: 0 | AG194: 00:00:00 | AH194: 0 | AJ194: 0 | AK194: 0 | AR194: 0
Z195: 0 | AC195: 0 | AF195: 0 | AG195: 00:00:00 | AH195: 0 | AJ195: 0 | AK195: 0 | AR195: 0
Z196: 0 | AC196: 0 | AF196: 0 | AG196: 00:00:00 | AH196: 0 | AJ196: 0 | AK196: 0 | AR196: 0
Z197: 0 | AC197: 0 | AF197: 0 | AG197: 00:00:00 | AH197: 0 | AJ197: 0 | AK197: 0 | AR197: 0
Z198: 0 | AC198: 0 | AF198: 0 | AG198: 00:00:00 | AH198: 0 | AJ198: 0 | AK198: 0 | AR198: 0
Z199: 0 | AC199: 0 | AF199: 0 | AG199: 00:00:00 | AH199: 0 | AJ199: 0 | AK199: 0 | AR199: 0
Z200: 0 | AC200: 0 | AF200: 0 | AG200: 00:00:00 | AH200: 0 | AJ200: 0 | AK200: 0 | AR200: 0
Z201: 0 | AC201: 0 | AF201: 0 | AG201: 00:00:00 | AH201: 0 | AJ201: 0 | AK201: 0 | AR201: 0
Z202: 0 | AC202: 0 | AF202: 0 | AG202: 00:00:00 | AH202: 0 | AJ202: 0 | AK202: 0 | AR202: 0
Z203: 0 | AC203: 0 | AF203: 0 | AG203: 00:00:00 | AH203: 0 | AJ203: 0 | AK203: 0 | AR203: 0
Z204: 0 | AC204: 0 | AF204: 0 | AG204: 00:00:00 | AH204: 0 | AJ204: 0 | AK204: 0 | AR204: 0
Z205: 0 | AC205: 0 | AF205: 0 | AG205: 00:00:00 | AH205: 0 | AJ205: 0 | AK205: 0 | AR205: 0
... 69 more rows

Sheet Calculos PLD (hidden)
A1: Factores utilizados en Meses de No Pago para cálculo del valor cuota
A3: N° de Cuota | B3: Equivalente | C3: Fecha | D3: Mes | E3: Marca Cuota No Pago | F3: Factor (10) | G3: Acumulado
A4: 1 | B4: =IF(E4<>"C",IF(ISERROR(1+B3)=TRUE,1,1+B3),IF(ISNUMBER(B3),B3,1)) -> 1 | C4: =Simulador!Q7 -> 2025-07-10 | D4: =MONTH(C4) -> 7 | E4: =IF(ISERROR(MATCH(D4,Simulador!$H$16:$H$17,0))=FALSE,"C",IF(ISERROR(MATCH(D4,Simulador!$H$18:$H$19,0))=FALSE,"D","")) ->  | F4: =IF(E4="C",0,IF(E4 ="D",ROUND(1/((1+Simulador!$Q$13)^A4),9) * 2,ROUND(1/((1+Simulador!$Q$13)^A4),9))) -> 0.99144268 | G4: =ROUND(F4,9) -> 0.99144268
A5: =A4+1 -> 2 | B5: =IF(E5<>"C",IF(ISERROR(1+B4)=TRUE,1,1+B4),IF(ISNUMBER(B4),B4,1)) -> 2 | C5: =DATE(YEAR(C4) + 1/12,MONTH(C4)+1,DAY(C4)) -> 2025-08-10 | D5: 8 | E5: =IF(ISERROR(MATCH(D5,Simulador!$H$16:$H$17,0))=FALSE,"C",IF(ISERROR(MATCH(D5,Simulador!$H$18:$H$19,0))=FALSE,"D","")) ->  | F5: =IF(E5="C",0,IF(E5 ="D",ROUND(1/((1+Simulador!$Q$13)^A5),9) * 2,ROUND(1/((1+Simulador!$Q$13)^A5),9))) -> 0.982958587 | G5: =G4+ROUND(F5,9) -> 1.974401267
A6: 3 | B6: 3 | C6: 2025-09-10 | D6: 9 | E6: =IF(ISERROR(MATCH(D6,Simulador!$H$16:$H$17,0))=FALSE,"C",IF(ISERROR(MATCH(D6,Simulador!$H$18:$H$19,0))=FALSE,"D","")) ->  | F6: =IF(E6="C",0,IF(E6 ="D",ROUND(1/((1+Simulador!$Q$13)^A6),9) * 2,ROUND(1/((1+Simulador!$Q$13)^A6),9))) -> 0.974547096 | G6: =G5+ROUND(F6,9) -> 2.948948363
A7: 4 | B7: 4 | C7: 2025-10-10 | D7: 10 | E7: =IF(ISERROR(MATCH(D7,Simulador!$H$16:$H$17,0))=FALSE,"C",IF(ISERROR(MATCH(D7,Simulador!$H$18:$H$19,0))=FALSE,"D","")) ->  | F7: =IF(E7="C",0,IF(E7 ="D",ROUND(1/((1+Simulador!$Q$13)^A7),9) * 2,ROUND(1/((1+Simulador!$Q$13)^A7),9))) -> 0.966207584 | G7: 3.915155947
A8: 5 | B8: 5 | C8: 2025-11-10 | D8: 11 | E8: =IF(ISERROR(MATCH(D8,Simulador!$H$16:$H$17,0))=FALSE,"C",IF(ISERROR(MATCH(D8,Simulador!$H$18:$H$19,0))=FALSE,"D","")) ->  | F8: =IF(E8="C",0,IF(E8 ="D",ROUND(1/((1+Simulador!$Q$13)^A8),9) * 2,ROUND(1/((1+Simulador!$Q$13)^A8),9))) -> 0.957939437 | G8: 4.873095384
A9: 6 | B9: 6 | C9: 2025-12-10 | D9: 12 | E9: =IF(ISERROR(MATCH(D9,Simulador!$H$16:$H$17,0))=FALSE,"C",IF(ISERROR(MATCH(D9,Simulador!$H$18:$H$19,0))=FALSE,"D","")) ->  | F9: =IF(E9="C",0,IF(E9 ="D",ROUND(1/((1+Simulador!$Q$13)^A9),9) * 2,ROUND(1/((1+Simulador!$Q$13)^A9),9))) -> 0.949742042 | G9: 5.822837426
A10: 7 | B10: 7 | C10: 2026-01-10 | D10: 1 | E10: =IF(ISERROR(MATCH(D10,Simulador!$H$16:$H$17,0))=FALSE,"C",IF(ISERROR(MATCH(D10,Simulador!$H$18:$H$19,0))=FALSE,"D","")) ->  | F10: =IF(E10="C",0,IF(E10 ="D",ROUND(1/((1+Simulador!$Q$13)^A10),9) * 2,ROUND(1/((1+Simulador!$Q$13)^A10),9))) -> 0.941614795 | G10: 6.764452221
A11: 8 | B11: 8 | C11: 2026-02-10 | D11: 2 | E11: =IF(ISERROR(MATCH(D11,Simulador!$H$16:$H$17,0))=FALSE,"C",IF(ISERROR(MATCH(D11,Simulador!$H$18:$H$19,0))=FALSE,"D","")) ->  | F11: =IF(E11="C",0,IF(E11 ="D",ROUND(1/((1+Simulador!$Q$13)^A11),9) * 2,ROUND(1/((1+Simulador!$Q$13)^A11),9))) -> 0.933557096 | G11: 7.698009317
A12: 9 | B12: 9 | C12: 2026-03-10 | D12: 3 | E12: =IF(ISERROR(MATCH(D12,Simulador!$H$16:$H$17,0))=FALSE,"C",IF(ISERROR(MATCH(D12,Simulador!$H$18:$H$19,0))=FALSE,"D","")) ->  | F12: =IF(E12="C",0,IF(E12 ="D",ROUND(1/((1+Simulador!$Q$13)^A12),9) * 2,ROUND(1/((1+Simulador!$Q$13)^A12),9))) -> 0.925568349 | G12: 8.623577666
A13: 10 | B13: 10 | C13: 2026-04-10 | D13: 4 | E13: =IF(ISERROR(MATCH(D13,Simulador!$H$16:$H$17,0))=FALSE,"C",IF(ISERROR(MATCH(D13,Simulador!$H$18:$H$19,0))=FALSE,"D","")) ->  | F13: =IF(E13="C",0,IF(E13 ="D",ROUND(1/((1+Simulador!$Q$13)^A13),9) * 2,ROUND(1/((1+Simulador!$Q$13)^A13),9))) -> 0.917647964 | G13: 9.54122563
A14: 11 | B14: 11 | C14: 2026-05-10 | D14: 5 | E14: =IF(ISERROR(MATCH(D14,Simulador!$H$16:$H$17,0))=FALSE,"C",IF(ISERROR(MATCH(D14,Simulador!$H$18:$H$19,0))=FALSE,"D","")) ->  | F14: =IF(E14="C",0,IF(E14 ="D",ROUND(1/((1+Simulador!$Q$13)^A14),9) * 2,ROUND(1/((1+Simulador!$Q$13)^A14),9))) -> 0.909795357 | G14: 10.45102099
A15: 12 | B15: 12 | C15: 2026-06-10 | D15: 6 | E15: =IF(ISERROR(MATCH(D15,Simulador!$H$16:$H$17,0))=FALSE,"C",IF(ISERROR(MATCH(D15,Simulador!$H$18:$H$19,0))=FALSE,"D","")) ->  | F15: =IF(E15="C",0,IF(E15 ="D",ROUND(1/((1+Simulador!$Q$13)^A15),9) * 2,ROUND(1/((1+Simulador!$Q$13)^A15),9))) -> 0.902009946 | G15: 11.35303093
A16: 13 | B16: 13 | C16: 2026-07-10 | D16: 7 | E16: =IF(ISERROR(MATCH(D16,Simulador!$H$16:$H$17,0))=FALSE,"C",IF(ISERROR(MATCH(D16,Simulador!$H$18:$H$19,0))=FALSE,"D","")) ->  | F16: =IF(E16="C",0,IF(E16 ="D",ROUND(1/((1+Simulador!$Q$13)^A16),9) * 2,ROUND(1/((1+Simulador!$Q$13)^A16),9))) -> 0.894291159 | G16: 12.24732209
A17: 14 | B17: 14 | C17: 2026-08-10 | D17: 8 | E17: =IF(ISERROR(MATCH(D17,Simulador!$H$16:$H$17,0))=FALSE,"C",IF(ISERROR(MATCH(D17,Simulador!$H$18:$H$19,0))=FALSE,"D","")) ->  | F17: =IF(E17="C",0,IF(E17 ="D",ROUND(1/((1+Simulador!$Q$13)^A17),9) * 2,ROUND(1/((1+Simulador!$Q$13)^A17),9))) -> 0.886638423 | G17: 13.13396052
A18: 15 | B18: 15 | C18: 2026-09-10 | D18: 9 | E18: =IF(ISERROR(MATCH(D18,Simulador!$H$16:$H$17,0))=FALSE,"C",IF(ISERROR(MATCH(D18,Simulador!$H$18:$H$19,0))=FALSE,"D","")) ->  | F18: =IF(E18="C",0,IF(E18 ="D",ROUND(1/((1+Simulador!$Q$13)^A18),9) * 2,ROUND(1/((1+Simulador!$Q$13)^A18),9))) -> 0.879051174 | G18: 14.01301169
A19: 16 | B19: 16 | C19: 2026-10-10 | D19: 10 | E19: =IF(ISERROR(MATCH(D19,Simulador!$H$16:$H$17,0))=FALSE,"C",IF(ISERROR(MATCH(D19,Simulador!$H$18:$H$19,0))=FALSE,"D","")) ->  | F19: =IF(E19="C",0,IF(E19 ="D",ROUND(1/((1+Simulador!$Q$13)^A19),9) * 2,ROUND(1/((1+Simulador!$Q$13)^A19),9))) -> 0.871528851 | G19: 14.88454054
A20: 17 | B20: 17 | C20: 2026-11-10 | D20: 11 | E20: =IF(ISERROR(MATCH(D20,Simulador!$H$16:$H$17,0))=FALSE,"C",IF(ISERROR(MATCH(D20,Simulador!$H$18:$H$19,0))=FALSE,"D","")) ->  | F20: =IF(E20="C",0,IF(E20 ="D",ROUND(1/((1+Simulador!$Q$13)^A20),9) * 2,ROUND(1/((1+Simulador!$Q$13)^A20),9))) -> 0.8640709 | G20: 15.74861144
A21: 18 | B21: 18 | C21: 2026-12-10 | D21: 12 | E21: =IF(ISERROR(MATCH(D21,Simulador!$H$16:$H$17,0))=FALSE,"C",IF(ISERROR(MATCH(D21,Simulador!$H$18:$H$19,0))=FALSE,"D","")) ->  | F21: =IF(E21="C",0,IF(E21 ="D",ROUND(1/((1+Simulador!$Q$13)^A21),9) * 2,ROUND(1/((1+Simulador!$Q$13)^A21),9))) -> 0.856676769 | G21: 16.60528821
A22: 19 | B22: 19 | C22: 2027-01-10 | D22: 1 | E22: =IF(ISERROR(MATCH(D22,Simulador!$H$16:$H$17,0))=FALSE,"C",IF(ISERROR(MATCH(D22,Simulador!$H$18:$H$19,0))=FALSE,"D","")) ->  | F22: =IF(E22="C",0,IF(E22 ="D",ROUND(1/((1+Simulador!$Q$13)^A22),9) * 2,ROUND(1/((1+Simulador!$Q$13)^A22),9))) -> 0.849345911 | G22: 17.45463412
A23: 20 | B23: 20 | C23: 2027-02-10 | D23: 2 | E23: =IF(ISERROR(MATCH(D23,Simulador!$H$16:$H$17,0))=FALSE,"C",IF(ISERROR(MATCH(D23,Simulador!$H$18:$H$19,0))=FALSE,"D","")) ->  | F23: =IF(E23="C",0,IF(E23 ="D",ROUND(1/((1+Simulador!$Q$13)^A23),9) * 2,ROUND(1/((1+Simulador!$Q$13)^A23),9))) -> 0.842077786 | G23: 18.29671191
A24: 21 | B24: 21 | C24: 2027-03-10 | D24: 3 | E24: =IF(ISERROR(MATCH(D24,Simulador!$H$16:$H$17,0))=FALSE,"C",IF(ISERROR(MATCH(D24,Simulador!$H$18:$H$19,0))=FALSE,"D","")) ->  | F24: =IF(E24="C",0,IF(E24 ="D",ROUND(1/((1+Simulador!$Q$13)^A24),9) * 2,ROUND(1/((1+Simulador!$Q$13)^A24),9))) -> 0.834871857 | G24: 19.13158376
A25: 22 | B25: 22 | C25: 2027-04-10 | D25: 4 | E25: =IF(ISERROR(MATCH(D25,Simulador!$H$16:$H$17,0))=FALSE,"C",IF(ISERROR(MATCH(D25,Simulador!$H$18:$H$19,0))=FALSE,"D","")) ->  | F25: =IF(E25="C",0,IF(E25 ="D",ROUND(1/((1+Simulador!$Q$13)^A25),9) * 2,ROUND(1/((1+Simulador!$Q$13)^A25),9))) -> 0.827727591 | G25: 19.95931135
A26: 23 | B26: 23 | C26: 2027-05-10 | D26: 5 | E26: =IF(ISERROR(MATCH(D26,Simulador!$H$16:$H$17,0))=FALSE,"C",IF(ISERROR(MATCH(D26,Simulador!$H$18:$H$19,0))=FALSE,"D","")) ->  | F26: =IF(E26="C",0,IF(E26 ="D",ROUND(1/((1+Simulador!$Q$13)^A26),9) * 2,ROUND(1/((1+Simulador!$Q$13)^A26),9))) -> 0.820644461 | G26: 20.77995582
A27: 24 | B27: 24 | C27: 2027-06-10 | D27: 6 | E27: =IF(ISERROR(MATCH(D27,Simulador!$H$16:$H$17,0))=FALSE,"C",IF(ISERROR(MATCH(D27,Simulador!$H$18:$H$19,0))=FALSE,"D","")) ->  | F27: =IF(E27="C",0,IF(E27 ="D",ROUND(1/((1+Simulador!$Q$13)^A27),9) * 2,ROUND(1/((1+Simulador!$Q$13)^A27),9))) -> 0.813621944 | G27: 21.59357776
A28: 25 | B28: 25 | C28: 2027-07-10 | D28: 7 | E28: =IF(ISERROR(MATCH(D28,Simulador!$H$16:$H$17,0))=FALSE,"C",IF(ISERROR(MATCH(D28,Simulador!$H$18:$H$19,0))=FALSE,"D","")) ->  | F28: =IF(E28="C",0,IF(E28 ="D",ROUND(1/((1+Simulador!$Q$13)^A28),9) * 2,ROUND(1/((1+Simulador!$Q$13)^A28),9))) -> 0.80665952 | G28: 22.40023728
A29: 26 | B29: 26 | C29: 2027-08-10 | D29: 8 | E29: =IF(ISERROR(MATCH(D29,Simulador!$H$16:$H$17,0))=FALSE,"C",IF(ISERROR(MATCH(D29,Simulador!$H$18:$H$19,0))=FALSE,"D","")) ->  | F29: =IF(E29="C",0,IF(E29 ="D",ROUND(1/((1+Simulador!$Q$13)^A29),9) * 2,ROUND(1/((1+Simulador!$Q$13)^A29),9))) -> 0.799756676 | G29: 23.19999396
A30: 27 | B30: 27 | C30: 2027-09-10 | D30: 9 | E30: =IF(ISERROR(MATCH(D30,Simulador!$H$16:$H$17,0))=FALSE,"C",IF(ISERROR(MATCH(D30,Simulador!$H$18:$H$19,0))=FALSE,"D","")) ->  | F30: =IF(E30="C",0,IF(E30 ="D",ROUND(1/((1+Simulador!$Q$13)^A30),9) * 2,ROUND(1/((1+Simulador!$Q$13)^A30),9))) -> 0.792912902 | G30: 23.99290686
A31: 28 | B31: 28 | C31: 2027-10-10 | D31: 10 | E31: =IF(ISERROR(MATCH(D31,Simulador!$H$16:$H$17,0))=FALSE,"C",IF(ISERROR(MATCH(D31,Simulador!$H$18:$H$19,0))=FALSE,"D","")) ->  | F31: =IF(E31="C",0,IF(E31 ="D",ROUND(1/((1+Simulador!$Q$13)^A31),9) * 2,ROUND(1/((1+Simulador!$Q$13)^A31),9))) -> 0.786127693 | G31: 24.77903455
A32: 29 | B32: 29 | C32: 2027-11-10 | D32: 11 | E32: =IF(ISERROR(MATCH(D32,Simulador!$H$16:$H$17,0))=FALSE,"C",IF(ISERROR(MATCH(D32,Simulador!$H$18:$H$19,0))=FALSE,"D","")) ->  | F32: =IF(E32="C",0,IF(E32 ="D",ROUND(1/((1+Simulador!$Q$13)^A32),9) * 2,ROUND(1/((1+Simulador!$Q$13)^A32),9))) -> 0.779400546 | G32: 25.5584351
A33: 30 | B33: 30 | C33: 2027-12-10 | D33: 12 | E33: =IF(ISERROR(MATCH(D33,Simulador!$H$16:$H$17,0))=FALSE,"C",IF(ISERROR(MATCH(D33,Simulador!$H$18:$H$19,0))=FALSE,"D","")) ->  | F33: =IF(E33="C",0,IF(E33 ="D",ROUND(1/((1+Simulador!$Q$13)^A33),9) * 2,ROUND(1/((1+Simulador!$Q$13)^A33),9))) -> 0.772730966 | G33: 26.33116606
A34: 31 | B34: 31 | C34: 2028-01-10 | D34: 1 | E34: =IF(ISERROR(MATCH(D34,Simulador!$H$16:$H$17,0))=FALSE,"C",IF(ISERROR(MATCH(D34,Simulador!$H$18:$H$19,0))=FALSE,"D","")) ->  | F34: =IF(E34="C",0,IF(E34 ="D",ROUND(1/((1+Simulador!$Q$13)^A34),9) * 2,ROUND(1/((1+Simulador!$Q$13)^A34),9))) -> 0.76611846 | G34: 27.09728452
A35: 32 | B35: 32 | C35: 2028-02-10 | D35: 2 | E35: =IF(ISERROR(MATCH(D35,Simulador!$H$16:$H$17,0))=FALSE,"C",IF(ISERROR(MATCH(D35,Simulador!$H$18:$H$19,0))=FALSE,"D","")) ->  | F35: =IF(E35="C",0,IF(E35 ="D",ROUND(1/((1+Simulador!$Q$13)^A35),9) * 2,ROUND(1/((1+Simulador!$Q$13)^A35),9))) -> 0.759562539 | G35: 27.85684706
A36: 33 | B36: 33 | C36: 2028-03-10 | D36: 3 | E36: =IF(ISERROR(MATCH(D36,Simulador!$H$16:$H$17,0))=FALSE,"C",IF(ISERROR(MATCH(D36,Simulador!$H$18:$H$19,0))=FALSE,"D","")) ->  | F36: =IF(E36="C",0,IF(E36 ="D",ROUND(1/((1+Simulador!$Q$13)^A36),9) * 2,ROUND(1/((1+Simulador!$Q$13)^A36),9))) -> 0.753062719 | G36: 28.60990978
A37: 34 | B37: 34 | C37: 2028-04-10 | D37: 4 | E37: =IF(ISERROR(MATCH(D37,Simulador!$H$16:$H$17,0))=FALSE,"C",IF(ISERROR(MATCH(D37,Simulador!$H$18:$H$19,0))=FALSE,"D","")) ->  | F37: =IF(E37="C",0,IF(E37 ="D",ROUND(1/((1+Simulador!$Q$13)^A37),9) * 2,ROUND(1/((1+Simulador!$Q$13)^A37),9))) -> 0.74661852 | G37: 29.3565283
A38: 35 | B38: 35 | C38: 2028-05-10 | D38: 5 | E38: =IF(ISERROR(MATCH(D38,Simulador!$H$16:$H$17,0))=FALSE,"C",IF(ISERROR(MATCH(D38,Simulador!$H$18:$H$19,0))=FALSE,"D","")) ->  | F38: =IF(E38="C",0,IF(E38 ="D",ROUND(1/((1+Simulador!$Q$13)^A38),9) * 2,ROUND(1/((1+Simulador!$Q$13)^A38),9))) -> 0.740229466 | G38: 30.09675777
A39: 36 | B39: 36 | C39: 2028-06-10 | D39: 6 | E39: =IF(ISERROR(MATCH(D39,Simulador!$H$16:$H$17,0))=FALSE,"C",IF(ISERROR(MATCH(D39,Simulador!$H$18:$H$19,0))=FALSE,"D","")) ->  | F39: =IF(E39="C",0,IF(E39 ="D",ROUND(1/((1+Simulador!$Q$13)^A39),9) * 2,ROUND(1/((1+Simulador!$Q$13)^A39),9))) -> 0.733895086 | G39: 30.83065285
A40: 37 | B40: 37 | C40: 2028-07-10 | D40: 7 | E40: =IF(ISERROR(MATCH(D40,Simulador!$H$16:$H$17,0))=FALSE,"C",IF(ISERROR(MATCH(D40,Simulador!$H$18:$H$19,0))=FALSE,"D","")) ->  | F40: =IF(E40="C",0,IF(E40 ="D",ROUND(1/((1+Simulador!$Q$13)^A40),9) * 2,ROUND(1/((1+Simulador!$Q$13)^A40),9))) -> 0.72761491 | G40: 31.55826776
A41: 38 | B41: 38 | C41: 2028-08-10 | D41: 8 | E41: =IF(ISERROR(MATCH(D41,Simulador!$H$16:$H$17,0))=FALSE,"C",IF(ISERROR(MATCH(D41,Simulador!$H$18:$H$19,0))=FALSE,"D","")) ->  | F41: =IF(E41="C",0,IF(E41 ="D",ROUND(1/((1+Simulador!$Q$13)^A41),9) * 2,ROUND(1/((1+Simulador!$Q$13)^A41),9))) -> 0.721388477 | G41: 32.27965624
A42: 39 | B42: 39 | C42: 2028-09-10 | D42: 9 | E42: =IF(ISERROR(MATCH(D42,Simulador!$H$16:$H$17,0))=FALSE,"C",IF(ISERROR(MATCH(D42,Simulador!$H$18:$H$19,0))=FALSE,"D","")) ->  | F42: =IF(E42="C",0,IF(E42 ="D",ROUND(1/((1+Simulador!$Q$13)^A42),9) * 2,ROUND(1/((1+Simulador!$Q$13)^A42),9))) -> 0.715215324 | G42: 32.99487156
A43: 40 | B43: 40 | C43: 2028-10-10 | D43: 10 | E43: =IF(ISERROR(MATCH(D43,Simulador!$H$16:$H$17,0))=FALSE,"C",IF(ISERROR(MATCH(D43,Simulador!$H$18:$H$19,0))=FALSE,"D","")) ->  | F43: =IF(E43="C",0,IF(E43 ="D",ROUND(1/((1+Simulador!$Q$13)^A43),9) * 2,ROUND(1/((1+Simulador!$Q$13)^A43),9))) -> 0.709094998 | G43: 33.70396656
A44: 41 | B44: 41 | C44: 2028-11-10 | D44: 11 | E44: =IF(ISERROR(MATCH(D44,Simulador!$H$16:$H$17,0))=FALSE,"C",IF(ISERROR(MATCH(D44,Simulador!$H$18:$H$19,0))=FALSE,"D","")) ->  | F44: =IF(E44="C",0,IF(E44 ="D",ROUND(1/((1+Simulador!$Q$13)^A44),9) * 2,ROUND(1/((1+Simulador!$Q$13)^A44),9))) -> 0.703027045 | G44: 34.40699361
A45: 42 | B45: 42 | C45: 2028-12-10 | D45: 12 | E45: =IF(ISERROR(MATCH(D45,Simulador!$H$16:$H$17,0))=FALSE,"C",IF(ISERROR(MATCH(D45,Simulador!$H$18:$H$19,0))=FALSE,"D","")) ->  | F45: =IF(E45="C",0,IF(E45 ="D",ROUND(1/((1+Simulador!$Q$13)^A45),9) * 2,ROUND(1/((1+Simulador!$Q$13)^A45),9))) -> 0.697011017 | G45: 35.10400462
A46: 43 | B46: 43 | C46: 2029-01-10 | D46: 1 | E46: =IF(ISERROR(MATCH(D46,Simulador!$H$16:$H$17,0))=FALSE,"C",IF(ISERROR(MATCH(D46,Simulador!$H$18:$H$19,0))=FALSE,"D","")) ->  | F46: =IF(E46="C",0,IF(E46 ="D",ROUND(1/((1+Simulador!$Q$13)^A46),9) * 2,ROUND(1/((1+Simulador!$Q$13)^A46),9))) -> 0.691046471 | G46: 35.79505109
A47: 44 | B47: 44 | C47: 2029-02-10 | D47: 2 | E47: =IF(ISERROR(MATCH(D47,Simulador!$H$16:$H$17,0))=FALSE,"C",IF(ISERROR(MATCH(D47,Simulador!$H$18:$H$19,0))=FALSE,"D","")) ->  | F47: =IF(E47="C",0,IF(E47 ="D",ROUND(1/((1+Simulador!$Q$13)^A47),9) * 2,ROUND(1/((1+Simulador!$Q$13)^A47),9))) -> 0.685132965 | G47: 36.48018406
A48: 45 | B48: 45 | C48: 2029-03-10 | D48: 3 | E48: =IF(ISERROR(MATCH(D48,Simulador!$H$16:$H$17,0))=FALSE,"C",IF(ISERROR(MATCH(D48,Simulador!$H$18:$H$19,0))=FALSE,"D","")) ->  | F48: =IF(E48="C",0,IF(E48 ="D",ROUND(1/((1+Simulador!$Q$13)^A48),9) * 2,ROUND(1/((1+Simulador!$Q$13)^A48),9))) -> 0.679270063 | G48: 37.15945412
A49: 46 | B49: 46 | C49: 2029-04-10 | D49: 4 | E49: =IF(ISERROR(MATCH(D49,Simulador!$H$16:$H$17,0))=FALSE,"C",IF(ISERROR(MATCH(D49,Simulador!$H$18:$H$19,0))=FALSE,"D","")) ->  | F49: =IF(E49="C",0,IF(E49 ="D",ROUND(1/((1+Simulador!$Q$13)^A49),9) * 2,ROUND(1/((1+Simulador!$Q$13)^A49),9))) -> 0.673457331 | G49: 37.83291145
A50: 47 | B50: 47 | C50: 2029-05-10 | D50: 5 | E50: =IF(ISERROR(MATCH(D50,Simulador!$H$16:$H$17,0))=FALSE,"C",IF(ISERROR(MATCH(D50,Simulador!$H$18:$H$19,0))=FALSE,"D","")) ->  | F50: =IF(E50="C",0,IF(E50 ="D",ROUND(1/((1+Simulador!$Q$13)^A50),9) * 2,ROUND(1/((1+Simulador!$Q$13)^A50),9))) -> 0.667694341 | G50: 38.50060579
A51: 48 | B51: 48 | C51: 2029-06-10 | D51: 6 | E51: =IF(ISERROR(MATCH(D51,Simulador!$H$16:$H$17,0))=FALSE,"C",IF(ISERROR(MATCH(D51,Simulador!$H$18:$H$19,0))=FALSE,"D","")) ->  | F51: =IF(E51="C",0,IF(E51 ="D",ROUND(1/((1+Simulador!$Q$13)^A51),9) * 2,ROUND(1/((1+Simulador!$Q$13)^A51),9))) -> 0.661980667 | G51: 39.16258646
A52: 49 | B52: 49 | C52: 2029-07-10 | D52: 7 | E52: =IF(ISERROR(MATCH(D52,Simulador!$H$16:$H$17,0))=FALSE,"C",IF(ISERROR(MATCH(D52,Simulador!$H$18:$H$19,0))=FALSE,"D","")) ->  | F52: =IF(E52="C",0,IF(E52 ="D",ROUND(1/((1+Simulador!$Q$13)^A52),9) * 2,ROUND(1/((1+Simulador!$Q$13)^A52),9))) -> 0.656315886 | G52: 39.81890235
A53: 50 | B53: 50 | C53: 2029-08-10 | D53: 8 | E53: =IF(ISERROR(MATCH(D53,Simulador!$H$16:$H$17,0))=FALSE,"C",IF(ISERROR(MATCH(D53,Simulador!$H$18:$H$19,0))=FALSE,"D","")) ->  | F53: =IF(E53="C",0,IF(E53 ="D",ROUND(1/((1+Simulador!$Q$13)^A53),9) * 2,ROUND(1/((1+Simulador!$Q$13)^A53),9))) -> 0.650699581 | G53: 40.46960193
A54: 51 | B54: 51 | C54: 2029-09-10 | D54: 9 | E54: =IF(ISERROR(MATCH(D54,Simulador!$H$16:$H$17,0))=FALSE,"C",IF(ISERROR(MATCH(D54,Simulador!$H$18:$H$19,0))=FALSE,"D","")) ->  | F54: =IF(E54="C",0,IF(E54 ="D",ROUND(1/((1+Simulador!$Q$13)^A54),9) * 2,ROUND(1/((1+Simulador!$Q$13)^A54),9))) -> 0.645131337 | G54: 41.11473327
A55: 52 | B55: 52 | C55: 2029-10-10 | D55: 10 | E55: =IF(ISERROR(MATCH(D55,Simulador!$H$16:$H$17,0))=FALSE,"C",IF(ISERROR(MATCH(D55,Simulador!$H$18:$H$19,0))=FALSE,"D","")) ->  | F55: =IF(E55="C",0,IF(E55 ="D",ROUND(1/((1+Simulador!$Q$13)^A55),9) * 2,ROUND(1/((1+Simulador!$Q$13)^A55),9))) -> 0.639610741 | G55: 41.75434401
A56: 53 | B56: 53 | C56: 2029-11-10 | D56: 11 | E56: =IF(ISERROR(MATCH(D56,Simulador!$H$16:$H$17,0))=FALSE,"C",IF(ISERROR(MATCH(D56,Simulador!$H$18:$H$19,0))=FALSE,"D","")) ->  | F56: =IF(E56="C",0,IF(E56 ="D",ROUND(1/((1+Simulador!$Q$13)^A56),9) * 2,ROUND(1/((1+Simulador!$Q$13)^A56),9))) -> 0.634137387 | G56: 42.38848139
A57: 54 | B57: 54 | C57: 2029-12-10 | D57: 12 | E57: =IF(ISERROR(MATCH(D57,Simulador!$H$16:$H$17,0))=FALSE,"C",IF(ISERROR(MATCH(D57,Simulador!$H$18:$H$19,0))=FALSE,"D","")) ->  | F57: =IF(E57="C",0,IF(E57 ="D",ROUND(1/((1+Simulador!$Q$13)^A57),9) * 2,ROUND(1/((1+Simulador!$Q$13)^A57),9))) -> 0.62871087 | G57: 43.01719226
A58: 55 | B58: 55 | C58: 2030-01-10 | D58: 1 | E58: =IF(ISERROR(MATCH(D58,Simulador!$H$16:$H$17,0))=FALSE,"C",IF(ISERROR(MATCH(D58,Simulador!$H$18:$H$19,0))=FALSE,"D","")) ->  | F58: =IF(E58="C",0,IF(E58 ="D",ROUND(1/((1+Simulador!$Q$13)^A58),9) * 2,ROUND(1/((1+Simulador!$Q$13)^A58),9))) -> 0.62333079 | G58: 43.64052305
A59: 56 | B59: 56 | C59: 2030-02-10 | D59: 2 | E59: =IF(ISERROR(MATCH(D59,Simulador!$H$16:$H$17,0))=FALSE,"C",IF(ISERROR(MATCH(D59,Simulador!$H$18:$H$19,0))=FALSE,"D","")) ->  | F59: =IF(E59="C",0,IF(E59 ="D",ROUND(1/((1+Simulador!$Q$13)^A59),9) * 2,ROUND(1/((1+Simulador!$Q$13)^A59),9))) -> 0.617996749 | G59: 44.2585198
A60: 57 | B60: 57 | C60: 2030-03-10 | D60: 3 | E60: =IF(ISERROR(MATCH(D60,Simulador!$H$16:$H$17,0))=FALSE,"C",IF(ISERROR(MATCH(D60,Simulador!$H$18:$H$19,0))=FALSE,"D","")) ->  | F60: =IF(E60="C",0,IF(E60 ="D",ROUND(1/((1+Simulador!$Q$13)^A60),9) * 2,ROUND(1/((1+Simulador!$Q$13)^A60),9))) -> 0.612708353 | G60: 44.87122816
A61: 58 | B61: 58 | C61: 2030-04-10 | D61: 4 | E61: =IF(ISERROR(MATCH(D61,Simulador!$H$16:$H$17,0))=FALSE,"C",IF(ISERROR(MATCH(D61,Simulador!$H$18:$H$19,0))=FALSE,"D","")) ->  | F61: =IF(E61="C",0,IF(E61 ="D",ROUND(1/((1+Simulador!$Q$13)^A61),9) * 2,ROUND(1/((1+Simulador!$Q$13)^A61),9))) -> 0.607465211 | G61: 45.47869337
A62: 59 | B62: 59 | C62: 2030-05-10 | D62: 5 | E62: =IF(ISERROR(MATCH(D62,Simulador!$H$16:$H$17,0))=FALSE,"C",IF(ISERROR(MATCH(D62,Simulador!$H$18:$H$19,0))=FALSE,"D","")) ->  | F62: =IF(E62="C",0,IF(E62 ="D",ROUND(1/((1+Simulador!$Q$13)^A62),9) * 2,ROUND(1/((1+Simulador!$Q$13)^A62),9))) -> 0.602266937 | G62: 46.0809603
A63: 60 | B63: 60 | C63: 2030-06-10 | D63: 6 | E63: =IF(ISERROR(MATCH(D63,Simulador!$H$16:$H$17,0))=FALSE,"C",IF(ISERROR(MATCH(D63,Simulador!$H$18:$H$19,0))=FALSE,"D","")) ->  | F63: =IF(E63="C",0,IF(E63 ="D",ROUND(1/((1+Simulador!$Q$13)^A63),9) * 2,ROUND(1/((1+Simulador!$Q$13)^A63),9))) -> 0.597113146 | G63: 46.67807345
A64: 61 | B64: 61 | C64: 2030-07-10 | D64: 7 | E64: =IF(ISERROR(MATCH(D64,Simulador!$H$16:$H$17,0))=FALSE,"C",IF(ISERROR(MATCH(D64,Simulador!$H$18:$H$19,0))=FALSE,"D","")) ->  | F64: =IF(E64="C",0,IF(E64 ="D",ROUND(1/((1+Simulador!$Q$13)^A64),9) * 2,ROUND(1/((1+Simulador!$Q$13)^A64),9))) -> 0.592003458 | G64: 47.27007691
A65: 62 | B65: 62 | C65: 2030-08-10 | D65: 8 | E65: =IF(ISERROR(MATCH(D65,Simulador!$H$16:$H$17,0))=FALSE,"C",IF(ISERROR(MATCH(D65,Simulador!$H$18:$H$19,0))=FALSE,"D","")) ->  | F65: =IF(E65="C",0,IF(E65 ="D",ROUND(1/((1+Simulador!$Q$13)^A65),9) * 2,ROUND(1/((1+Simulador!$Q$13)^A65),9))) -> 0.586937494 | G65: 47.8570144
A66: 63 | B66: 63 | C66: 2030-09-10 | D66: 9 | E66: =IF(ISERROR(MATCH(D66,Simulador!$H$16:$H$17,0))=FALSE,"C",IF(ISERROR(MATCH(D66,Simulador!$H$18:$H$19,0))=FALSE,"D","")) ->  | F66: =IF(E66="C",0,IF(E66 ="D",ROUND(1/((1+Simulador!$Q$13)^A66),9) * 2,ROUND(1/((1+Simulador!$Q$13)^A66),9))) -> 0.581914882 | G66: 48.43892928
A67: 64 | B67: 64 | C67: 2030-10-10 | D67: 10 | E67: =IF(ISERROR(MATCH(D67,Simulador!$H$16:$H$17,0))=FALSE,"C",IF(ISERROR(MATCH(D67,Simulador!$H$18:$H$19,0))=FALSE,"D","")) ->  | F67: =IF(E67="C",0,IF(E67 ="D",ROUND(1/((1+Simulador!$Q$13)^A67),9) * 2,ROUND(1/((1+Simulador!$Q$13)^A67),9))) -> 0.57693525 | G67: 49.01586453
A68: 65 | B68: 65 | C68: 2030-11-10 | D68: =MONTH(C68) -> 11 | E68: =IF(ISERROR(MATCH(D68,Simulador!$H$16:$H$17,0))=FALSE,"C",IF(ISERROR(MATCH(D68,Simulador!$H$18:$H$19,0))=FALSE,"D","")) ->  | F68: =IF(E68="C",0,IF(E68 ="D",ROUND(1/((1+Simulador!$Q$13)^A68),9) * 2,ROUND(1/((1+Simulador!$Q$13)^A68),9))) -> 0.571998231 | G68: 49.58786276
A69: =A68+1 -> 66 | B69: =IF(E69<>"C",IF(ISERROR(1+B68)=TRUE,1,1+B68),IF(ISNUMBER(B68),B68,1)) -> 66 | C69: =DATE(YEAR(C68) + 1/12,MONTH(C68)+1,DAY(C68)) -> 2030-12-10 | D69: 12 | E69: =IF(ISERROR(MATCH(D69,Simulador!$H$16:$H$17,0))=FALSE,"C",IF(ISERROR(MATCH(D69,Simulador!$H$18:$H$19,0))=FALSE,"D","")) ->  | F69: =IF(E69="C",0,IF(E69 ="D",ROUND(1/((1+Simulador!$Q$13)^A69),9) * 2,ROUND(1/((1+Simulador!$Q$13)^A69),9))) -> 0.567103459 | G69: 50.15496622
A70: 67 | B70: 67 | C70: 2031-01-10 | D70: 1 | E70: =IF(ISERROR(MATCH(D70,Simulador!$H$16:$H$17,0))=FALSE,"C",IF(ISERROR(MATCH(D70,Simulador!$H$18:$H$19,0))=FALSE,"D","")) ->  | F70: =IF(E70="C",0,IF(E70 ="D",ROUND(1/((1+Simulador!$Q$13)^A70),9) * 2,ROUND(1/((1+Simulador!$Q$13)^A70),9))) -> 0.562250573 | G70: =G69+ROUND(F70,9) -> 50.7172168
A71: 68 | B71: 68 | C71: 2031-02-10 | D71: 2 | E71: =IF(ISERROR(MATCH(D71,Simulador!$H$16:$H$17,0))=FALSE,"C",IF(ISERROR(MATCH(D71,Simulador!$H$18:$H$19,0))=FALSE,"D","")) ->  | F71: =IF(E71="C",0,IF(E71 ="D",ROUND(1/((1+Simulador!$Q$13)^A71),9) * 2,ROUND(1/((1+Simulador!$Q$13)^A71),9))) -> 0.557439215 | G71: 51.27465601
A72: 69 | B72: 69 | C72: 2031-03-10 | D72: 3 | E72: =IF(ISERROR(MATCH(D72,Simulador!$H$16:$H$17,0))=FALSE,"C",IF(ISERROR(MATCH(D72,Simulador!$H$18:$H$19,0))=FALSE,"D","")) ->  | F72: =IF(E72="C",0,IF(E72 ="D",ROUND(1/((1+Simulador!$Q$13)^A72),9) * 2,ROUND(1/((1+Simulador!$Q$13)^A72),9))) -> 0.552669029 | G72: 51.82732504
A73: 70 | B73: 70 | C73: 2031-04-10 | D73: 4 | E73: =IF(ISERROR(MATCH(D73,Simulador!$H$16:$H$17,0))=FALSE,"C",IF(ISERROR(MATCH(D73,Simulador!$H$18:$H$19,0))=FALSE,"D","")) ->  | F73: =IF(E73="C",0,IF(E73 ="D",ROUND(1/((1+Simulador!$Q$13)^A73),9) * 2,ROUND(1/((1+Simulador!$Q$13)^A73),9))) -> 0.547939663 | G73: 52.3752647
A74: 71 | B74: 71 | C74: 2031-05-10 | D74: 5 | E74: =IF(ISERROR(MATCH(D74,Simulador!$H$16:$H$17,0))=FALSE,"C",IF(ISERROR(MATCH(D74,Simulador!$H$18:$H$19,0))=FALSE,"D","")) ->  | F74: =IF(E74="C",0,IF(E74 ="D",ROUND(1/((1+Simulador!$Q$13)^A74),9) * 2,ROUND(1/((1+Simulador!$Q$13)^A74),9))) -> 0.543250768 | G74: 52.91851547
A75: 72 | B75: 72 | C75: 2031-06-10 | D75: 6 | E75: =IF(ISERROR(MATCH(D75,Simulador!$H$16:$H$17,0))=FALSE,"C",IF(ISERROR(MATCH(D75,Simulador!$H$18:$H$19,0))=FALSE,"D","")) ->  | F75: =IF(E75="C",0,IF(E75 ="D",ROUND(1/((1+Simulador!$Q$13)^A75),9) * 2,ROUND(1/((1+Simulador!$Q$13)^A75),9))) -> 0.538601997 | G75: 53.45711747
A76: 73 | B76: 73 | C76: 2031-07-10 | D76: 7 | E76: =IF(ISERROR(MATCH(D76,Simulador!$H$16:$H$17,0))=FALSE,"C",IF(ISERROR(MATCH(D76,Simulador!$H$18:$H$19,0))=FALSE,"D","")) ->  | F76: =IF(E76="C",0,IF(E76 ="D",ROUND(1/((1+Simulador!$Q$13)^A76),9) * 2,ROUND(1/((1+Simulador!$Q$13)^A76),9))) -> 0.533993007 | G76: 53.99111048
A77: 74 | B77: 74 | C77: 2031-08-10 | D77: 8 | E77: =IF(ISERROR(MATCH(D77,Simulador!$H$16:$H$17,0))=FALSE,"C",IF(ISERROR(MATCH(D77,Simulador!$H$18:$H$19,0))=FALSE,"D","")) ->  | F77: =IF(E77="C",0,IF(E77 ="D",ROUND(1/((1+Simulador!$Q$13)^A77),9) * 2,ROUND(1/((1+Simulador!$Q$13)^A77),9))) -> 0.529423458 | G77: 54.52053393
A78: 75 | B78: 75 | C78: 2031-09-10 | D78: 9 | E78: =IF(ISERROR(MATCH(D78,Simulador!$H$16:$H$17,0))=FALSE,"C",IF(ISERROR(MATCH(D78,Simulador!$H$18:$H$19,0))=FALSE,"D","")) ->  | F78: =IF(E78="C",0,IF(E78 ="D",ROUND(1/((1+Simulador!$Q$13)^A78),9) * 2,ROUND(1/((1+Simulador!$Q$13)^A78),9))) -> 0.524893012 | G78: 55.04542695
A79: 76 | B79: 76 | C79: 2031-10-10 | D79: 10 | E79: =IF(ISERROR(MATCH(D79,Simulador!$H$16:$H$17,0))=FALSE,"C",IF(ISERROR(MATCH(D79,Simulador!$H$18:$H$19,0))=FALSE,"D","")) ->  | F79: =IF(E79="C",0,IF(E79 ="D",ROUND(1/((1+Simulador!$Q$13)^A79),9) * 2,ROUND(1/((1+Simulador!$Q$13)^A79),9))) -> 0.520401334 | G79: 55.56582828
A80: 77 | B80: 77 | C80: 2031-11-10 | D80: 11 | E80: =IF(ISERROR(MATCH(D80,Simulador!$H$16:$H$17,0))=FALSE,"C",IF(ISERROR(MATCH(D80,Simulador!$H$18:$H$19,0))=FALSE,"D","")) ->  | F80: =IF(E80="C",0,IF(E80 ="D",ROUND(1/((1+Simulador!$Q$13)^A80),9) * 2,ROUND(1/((1+Simulador!$Q$13)^A80),9))) -> 0.515948093 | G80: 56.08177637
A81: 78 | B81: 78 | C81: 2031-12-10 | D81: 12 | E81: =IF(ISERROR(MATCH(D81,Simulador!$H$16:$H$17,0))=FALSE,"C",IF(ISERROR(MATCH(D81,Simulador!$H$18:$H$19,0))=FALSE,"D","")) ->  | F81: =IF(E81="C",0,IF(E81 ="D",ROUND(1/((1+Simulador!$Q$13)^A81),9) * 2,ROUND(1/((1+Simulador!$Q$13)^A81),9))) -> 0.51153296 | G81: 56.59330933
A82: 79 | B82: 79 | C82: 2032-01-10 | D82: 1 | E82: =IF(ISERROR(MATCH(D82,Simulador!$H$16:$H$17,0))=FALSE,"C",IF(ISERROR(MATCH(D82,Simulador!$H$18:$H$19,0))=FALSE,"D","")) ->  | F82: =IF(E82="C",0,IF(E82 ="D",ROUND(1/((1+Simulador!$Q$13)^A82),9) * 2,ROUND(1/((1+Simulador!$Q$13)^A82),9))) -> 0.507155609 | G82: 57.10046494
A83: 80 | B83: 80 | C83: 2032-02-10 | D83: 2 | E83: =IF(ISERROR(MATCH(D83,Simulador!$H$16:$H$17,0))=FALSE,"C",IF(ISERROR(MATCH(D83,Simulador!$H$18:$H$19,0))=FALSE,"D","")) ->  | F83: =IF(E83="C",0,IF(E83 ="D",ROUND(1/((1+Simulador!$Q$13)^A83),9) * 2,ROUND(1/((1+Simulador!$Q$13)^A83),9))) -> 0.502815716 | G83: 57.60328066
A84: 81 | B84: 81 | C84: 2032-03-10 | D84: 3 | E84: =IF(ISERROR(MATCH(D84,Simulador!$H$16:$H$17,0))=FALSE,"C",IF(ISERROR(MATCH(D84,Simulador!$H$18:$H$19,0))=FALSE,"D","")) ->  | F84: =IF(E84="C",0,IF(E84 ="D",ROUND(1/((1+Simulador!$Q$13)^A84),9) * 2,ROUND(1/((1+Simulador!$Q$13)^A84),9))) -> 0.498512961 | G84: 58.10179362
A85: 82 | B85: 82 | C85: 2032-04-10 | D85: 4 | E85: =IF(ISERROR(MATCH(D85,Simulador!$H$16:$H$17,0))=FALSE,"C",IF(ISERROR(MATCH(D85,Simulador!$H$18:$H$19,0))=FALSE,"D","")) ->  | F85: =IF(E85="C",0,IF(E85 ="D",ROUND(1/((1+Simulador!$Q$13)^A85),9) * 2,ROUND(1/((1+Simulador!$Q$13)^A85),9))) -> 0.494247026 | G85: 58.59604064
A86: 83 | B86: 83 | C86: 2032-05-10 | D86: 5 | E86: =IF(ISERROR(MATCH(D86,Simulador!$H$16:$H$17,0))=FALSE,"C",IF(ISERROR(MATCH(D86,Simulador!$H$18:$H$19,0))=FALSE,"D","")) ->  | F86: =IF(E86="C",0,IF(E86 ="D",ROUND(1/((1+Simulador!$Q$13)^A86),9) * 2,ROUND(1/((1+Simulador!$Q$13)^A86),9))) -> 0.490017596 | G86: 59.08605824
A87: 84 | B87: 84 | C87: 2032-06-10 | D87: 6 | E87: =IF(ISERROR(MATCH(D87,Simulador!$H$16:$H$17,0))=FALSE,"C",IF(ISERROR(MATCH(D87,Simulador!$H$18:$H$19,0))=FALSE,"D","")) ->  | F87: =IF(E87="C",0,IF(E87 ="D",ROUND(1/((1+Simulador!$Q$13)^A87),9) * 2,ROUND(1/((1+Simulador!$Q$13)^A87),9))) -> 0.485824358 | G87: 59.5718826
A88: 85 | B88: 85 | C88: 2032-07-10 | D88: 7 | E88: =IF(ISERROR(MATCH(D88,Simulador!$H$16:$H$17,0))=FALSE,"C",IF(ISERROR(MATCH(D88,Simulador!$H$18:$H$19,0))=FALSE,"D","")) ->  | F88: =IF(E88="C",0,IF(E88 ="D",ROUND(1/((1+Simulador!$Q$13)^A88),9) * 2,ROUND(1/((1+Simulador!$Q$13)^A88),9))) -> 0.481667004 | G88: 60.0535496
A89: 86 | B89: 86 | C89: 2032-08-10 | D89: 8 | E89: =IF(ISERROR(MATCH(D89,Simulador!$H$16:$H$17,0))=FALSE,"C",IF(ISERROR(MATCH(D89,Simulador!$H$18:$H$19,0))=FALSE,"D","")) ->  | F89: =IF(E89="C",0,IF(E89 ="D",ROUND(1/((1+Simulador!$Q$13)^A89),9) * 2,ROUND(1/((1+Simulador!$Q$13)^A89),9))) -> 0.477545225 | G89: 60.53109483
A90: 87 | B90: 87 | C90: 2032-09-10 | D90: 9 | E90: =IF(ISERROR(MATCH(D90,Simulador!$H$16:$H$17,0))=FALSE,"C",IF(ISERROR(MATCH(D90,Simulador!$H$18:$H$19,0))=FALSE,"D","")) ->  | F90: =IF(E90="C",0,IF(E90 ="D",ROUND(1/((1+Simulador!$Q$13)^A90),9) * 2,ROUND(1/((1+Simulador!$Q$13)^A90),9))) -> 0.473458718 | G90: 61.00455355
A91: 88 | B91: 88 | C91: 2032-10-10 | D91: 10 | E91: =IF(ISERROR(MATCH(D91,Simulador!$H$16:$H$17,0))=FALSE,"C",IF(ISERROR(MATCH(D91,Simulador!$H$18:$H$19,0))=FALSE,"D","")) ->  | F91: =IF(E91="C",0,IF(E91 ="D",ROUND(1/((1+Simulador!$Q$13)^A91),9) * 2,ROUND(1/((1+Simulador!$Q$13)^A91),9))) -> 0.46940718 | G91: 61.47396073
A92: 89 | B92: 89 | C92: 2032-11-10 | D92: 11 | E92: =IF(ISERROR(MATCH(D92,Simulador!$H$16:$H$17,0))=FALSE,"C",IF(ISERROR(MATCH(D92,Simulador!$H$18:$H$19,0))=FALSE,"D","")) ->  | F92: =IF(E92="C",0,IF(E92 ="D",ROUND(1/((1+Simulador!$Q$13)^A92),9) * 2,ROUND(1/((1+Simulador!$Q$13)^A92),9))) -> 0.465390312 | G92: 61.93935104
A93: 90 | B93: 90 | C93: 2032-12-10 | D93: 12 | E93: =IF(ISERROR(MATCH(D93,Simulador!$H$16:$H$17,0))=FALSE,"C",IF(ISERROR(MATCH(D93,Simulador!$H$18:$H$19,0))=FALSE,"D","")) ->  | F93: =IF(E93="C",0,IF(E93 ="D",ROUND(1/((1+Simulador!$Q$13)^A93),9) * 2,ROUND(1/((1+Simulador!$Q$13)^A93),9))) -> 0.461407818 | G93: 62.40075886
A94: 91 | B94: 91 | C94: 2033-01-10 | D94: 1 | E94: =IF(ISERROR(MATCH(D94,Simulador!$H$16:$H$17,0))=FALSE,"C",IF(ISERROR(MATCH(D94,Simulador!$H$18:$H$19,0))=FALSE,"D","")) ->  | F94: =IF(E94="C",0,IF(E94 ="D",ROUND(1/((1+Simulador!$Q$13)^A94),9) * 2,ROUND(1/((1+Simulador!$Q$13)^A94),9))) -> 0.457459404 | G94: 62.85821826
A95: 92 | B95: 92 | C95: 2033-02-10 | D95: 2 | E95: =IF(ISERROR(MATCH(D95,Simulador!$H$16:$H$17,0))=FALSE,"C",IF(ISERROR(MATCH(D95,Simulador!$H$18:$H$19,0))=FALSE,"D","")) ->  | F95: =IF(E95="C",0,IF(E95 ="D",ROUND(1/((1+Simulador!$Q$13)^A95),9) * 2,ROUND(1/((1+Simulador!$Q$13)^A95),9))) -> 0.453544777 | G95: 63.31176304
A96: 93 | B96: 93 | C96: 2033-03-10 | D96: 3 | E96: =IF(ISERROR(MATCH(D96,Simulador!$H$16:$H$17,0))=FALSE,"C",IF(ISERROR(MATCH(D96,Simulador!$H$18:$H$19,0))=FALSE,"D","")) ->  | F96: =IF(E96="C",0,IF(E96 ="D",ROUND(1/((1+Simulador!$Q$13)^A96),9) * 2,ROUND(1/((1+Simulador!$Q$13)^A96),9))) -> 0.449663649 | G96: 63.76142669
A97: 94 | B97: 94 | C97: 2033-04-10 | D97: 4 | E97: =IF(ISERROR(MATCH(D97,Simulador!$H$16:$H$17,0))=FALSE,"C",IF(ISERROR(MATCH(D97,Simulador!$H$18:$H$19,0))=FALSE,"D","")) ->  | F97: =IF(E97="C",0,IF(E97 ="D",ROUND(1/((1+Simulador!$Q$13)^A97),9) * 2,ROUND(1/((1+Simulador!$Q$13)^A97),9))) -> 0.445815733 | G97: 64.20724242
A98: 95 | B98: 95 | C98: 2033-05-10 | D98: 5 | E98: =IF(ISERROR(MATCH(D98,Simulador!$H$16:$H$17,0))=FALSE,"C",IF(ISERROR(MATCH(D98,Simulador!$H$18:$H$19,0))=FALSE,"D","")) ->  | F98: =IF(E98="C",0,IF(E98 ="D",ROUND(1/((1+Simulador!$Q$13)^A98),9) * 2,ROUND(1/((1+Simulador!$Q$13)^A98),9))) -> 0.442000745 | G98: 64.64924316
A99: 96 | B99: 96 | C99: 2033-06-10 | D99: 6 | E99: =IF(ISERROR(MATCH(D99,Simulador!$H$16:$H$17,0))=FALSE,"C",IF(ISERROR(MATCH(D99,Simulador!$H$18:$H$19,0))=FALSE,"D","")) ->  | F99: =IF(E99="C",0,IF(E99 ="D",ROUND(1/((1+Simulador!$Q$13)^A99),9) * 2,ROUND(1/((1+Simulador!$Q$13)^A99),9))) -> 0.438218403 | G99: 65.08746157
A100: 97 | B100: 97 | C100: 2033-07-10 | D100: 7 | E100: =IF(ISERROR(MATCH(D100,Simulador!$H$16:$H$17,0))=FALSE,"C",IF(ISERROR(MATCH(D100,Simulador!$H$18:$H$19,0))=FALSE,"D","")) ->  | F100: =IF(E100="C",0,IF(E100 ="D",ROUND(1/((1+Simulador!$Q$13)^A100),9) * 2,ROUND(1/((1+Simulador!$Q$13)^A100),9))) -> 0.434468428 | G100: 65.52192999
A101: 98 | B101: 98 | C101: 2033-08-10 | D101: 8 | E101: =IF(ISERROR(MATCH(D101,Simulador!$H$16:$H$17,0))=FALSE,"C",IF(ISERROR(MATCH(D101,Simulador!$H$18:$H$19,0))=FALSE,"D","")) ->  | F101: =IF(E101="C",0,IF(E101 ="D",ROUND(1/((1+Simulador!$Q$13)^A101),9) * 2,ROUND(1/((1+Simulador!$Q$13)^A101),9))) -> 0.430750543 | G101: 65.95268054
A102: 99 | B102: 99 | C102: 2033-09-10 | D102: 9 | E102: =IF(ISERROR(MATCH(D102,Simulador!$H$16:$H$17,0))=FALSE,"C",IF(ISERROR(MATCH(D102,Simulador!$H$18:$H$19,0))=FALSE,"D","")) ->  | F102: =IF(E102="C",0,IF(E102 ="D",ROUND(1/((1+Simulador!$Q$13)^A102),9) * 2,ROUND(1/((1+Simulador!$Q$13)^A102),9))) -> 0.427064472 | G102: 66.37974501
A103: 100 | B103: 100 | C103: 2033-10-10 | D103: 10 | E103: =IF(ISERROR(MATCH(D103,Simulador!$H$16:$H$17,0))=FALSE,"C",IF(ISERROR(MATCH(D103,Simulador!$H$18:$H$19,0))=FALSE,"D","")) ->  | F103: =IF(E103="C",0,IF(E103 ="D",ROUND(1/((1+Simulador!$Q$13)^A103),9) * 2,ROUND(1/((1+Simulador!$Q$13)^A103),9))) -> 0.423409945 | G103: 66.80315495
A104: 101 | B104: 101 | C104: 2033-11-10 | D104: 11 | E104: =IF(ISERROR(MATCH(D104,Simulador!$H$16:$H$17,0))=FALSE,"C",IF(ISERROR(MATCH(D104,Simulador!$H$18:$H$19,0))=FALSE,"D","")) ->  | F104: =IF(E104="C",0,IF(E104 ="D",ROUND(1/((1+Simulador!$Q$13)^A104),9) * 2,ROUND(1/((1+Simulador!$Q$13)^A104),9))) -> 0.419786691 | G104: 67.22294165
A105: 102 | B105: 102 | C105: 2033-12-10 | D105: 12 | E105: =IF(ISERROR(MATCH(D105,Simulador!$H$16:$H$17,0))=FALSE,"C",IF(ISERROR(MATCH(D105,Simulador!$H$18:$H$19,0))=FALSE,"D","")) ->  | F105: =IF(E105="C",0,IF(E105 ="D",ROUND(1/((1+Simulador!$Q$13)^A105),9) * 2,ROUND(1/((1+Simulador!$Q$13)^A105),9))) -> 0.416194441 | G105: 67.63913609
A106: 103 | B106: 103 | C106: 2034-01-10 | D106: 1 | E106: =IF(ISERROR(MATCH(D106,Simulador!$H$16:$H$17,0))=FALSE,"C",IF(ISERROR(MATCH(D106,Simulador!$H$18:$H$19,0))=FALSE,"D","")) ->  | F106: =IF(E106="C",0,IF(E106 ="D",ROUND(1/((1+Simulador!$Q$13)^A106),9) * 2,ROUND(1/((1+Simulador!$Q$13)^A106),9))) -> 0.412632932 | G106: 68.05176902
A107: 104 | B107: 104 | C107: 2034-02-10 | D107: 2 | E107: =IF(ISERROR(MATCH(D107,Simulador!$H$16:$H$17,0))=FALSE,"C",IF(ISERROR(MATCH(D107,Simulador!$H$18:$H$19,0))=FALSE,"D","")) ->  | F107: =IF(E107="C",0,IF(E107 ="D",ROUND(1/((1+Simulador!$Q$13)^A107),9) * 2,ROUND(1/((1+Simulador!$Q$13)^A107),9))) -> 0.4091019 | G107: 68.46087092
A108: 105 | B108: 105 | C108: 2034-03-10 | D108: 3 | E108: =IF(ISERROR(MATCH(D108,Simulador!$H$16:$H$17,0))=FALSE,"C",IF(ISERROR(MATCH(D108,Simulador!$H$18:$H$19,0))=FALSE,"D","")) ->  | F108: =IF(E108="C",0,IF(E108 ="D",ROUND(1/((1+Simulador!$Q$13)^A108),9) * 2,ROUND(1/((1+Simulador!$Q$13)^A108),9))) -> 0.405601084 | G108: 68.866472
A109: 106 | B109: 106 | C109: 2034-04-10 | D109: 4 | E109: =IF(ISERROR(MATCH(D109,Simulador!$H$16:$H$17,0))=FALSE,"C",IF(ISERROR(MATCH(D109,Simulador!$H$18:$H$19,0))=FALSE,"D","")) ->  | F109: =IF(E109="C",0,IF(E109 ="D",ROUND(1/((1+Simulador!$Q$13)^A109),9) * 2,ROUND(1/((1+Simulador!$Q$13)^A109),9))) -> 0.402130226 | G109: 69.26860223
A110: 107 | B110: 107 | C110: 2034-05-10 | D110: 5 | E110: =IF(ISERROR(MATCH(D110,Simulador!$H$16:$H$17,0))=FALSE,"C",IF(ISERROR(MATCH(D110,Simulador!$H$18:$H$19,0))=FALSE,"D","")) ->  | F110: =IF(E110="C",0,IF(E110 ="D",ROUND(1/((1+Simulador!$Q$13)^A110),9) * 2,ROUND(1/((1+Simulador!$Q$13)^A110),9))) -> 0.398689069 | G110: 69.6672913
A111: 108 | B111: 108 | C111: 2034-06-10 | D111: 6 | E111: =IF(ISERROR(MATCH(D111,Simulador!$H$16:$H$17,0))=FALSE,"C",IF(ISERROR(MATCH(D111,Simulador!$H$18:$H$19,0))=FALSE,"D","")) ->  | F111: =IF(E111="C",0,IF(E111 ="D",ROUND(1/((1+Simulador!$Q$13)^A111),9) * 2,ROUND(1/((1+Simulador!$Q$13)^A111),9))) -> 0.395277359 | G111: 70.06256866
A112: 109 | B112: 109 | C112: 2034-07-10 | D112: 7 | E112: =IF(ISERROR(MATCH(D112,Simulador!$H$16:$H$17,0))=FALSE,"C",IF(ISERROR(MATCH(D112,Simulador!$H$18:$H$19,0))=FALSE,"D","")) ->  | F112: =IF(E112="C",0,IF(E112 ="D",ROUND(1/((1+Simulador!$Q$13)^A112),9) * 2,ROUND(1/((1+Simulador!$Q$13)^A112),9))) -> 0.391894844 | G112: 70.4544635
A113: 110 | B113: 110 | C113: 2034-08-10 | D113: 8 | E113: =IF(ISERROR(MATCH(D113,Simulador!$H$16:$H$17,0))=FALSE,"C",IF(ISERROR(MATCH(D113,Simulador!$H$18:$H$19,0))=FALSE,"D","")) ->  | F113: =IF(E113="C",0,IF(E113 ="D",ROUND(1/((1+Simulador!$Q$13)^A113),9) * 2,ROUND(1/((1+Simulador!$Q$13)^A113),9))) -> 0.388541274 | G113: 70.84300477
A114: 111 | B114: 111 | C114: 2034-09-10 | D114: 9 | E114: =IF(ISERROR(MATCH(D114,Simulador!$H$16:$H$17,0))=FALSE,"C",IF(ISERROR(MATCH(D114,Simulador!$H$18:$H$19,0))=FALSE,"D","")) ->  | F114: =IF(E114="C",0,IF(E114 ="D",ROUND(1/((1+Simulador!$Q$13)^A114),9) * 2,ROUND(1/((1+Simulador!$Q$13)^A114),9))) -> 0.385216402 | G114: 71.22822118
A115: 112 | B115: 112 | C115: 2034-10-10 | D115: 10 | E115: =IF(ISERROR(MATCH(D115,Simulador!$H$16:$H$17,0))=FALSE,"C",IF(ISERROR(MATCH(D115,Simulador!$H$18:$H$19,0))=FALSE,"D","")) ->  | F115: =IF(E115="C",0,IF(E115 ="D",ROUND(1/((1+Simulador!$Q$13)^A115),9) * 2,ROUND(1/((1+Simulador!$Q$13)^A115),9))) -> 0.381919982 | G115: 71.61014116
A116: 113 | B116: 113 | C116: 2034-11-10 | D116: 11 | E116: =IF(ISERROR(MATCH(D116,Simulador!$H$16:$H$17,0))=FALSE,"C",IF(ISERROR(MATCH(D116,Simulador!$H$18:$H$19,0))=FALSE,"D","")) ->  | F116: =IF(E116="C",0,IF(E116 ="D",ROUND(1/((1+Simulador!$Q$13)^A116),9) * 2,ROUND(1/((1+Simulador!$Q$13)^A116),9))) -> 0.37865177 | G116: 71.98879293
A117: 114 | B117: 114 | C117: 2034-12-10 | D117: 12 | E117: =IF(ISERROR(MATCH(D117,Simulador!$H$16:$H$17,0))=FALSE,"C",IF(ISERROR(MATCH(D117,Simulador!$H$18:$H$19,0))=FALSE,"D","")) ->  | F117: =IF(E117="C",0,IF(E117 ="D",ROUND(1/((1+Simulador!$Q$13)^A117),9) * 2,ROUND(1/((1+Simulador!$Q$13)^A117),9))) -> 0.375411526 | G117: 72.36420445
A118: 115 | B118: 115 | C118: 2035-01-10 | D118: 1 | E118: =IF(ISERROR(MATCH(D118,Simulador!$H$16:$H$17,0))=FALSE,"C",IF(ISERROR(MATCH(D118,Simulador!$H$18:$H$19,0))=FALSE,"D","")) ->  | F118: =IF(E118="C",0,IF(E118 ="D",ROUND(1/((1+Simulador!$Q$13)^A118),9) * 2,ROUND(1/((1+Simulador!$Q$13)^A118),9))) -> 0.372199009 | G118: 72.73640346
A119: 116 | B119: 116 | C119: 2035-02-10 | D119: 2 | E119: =IF(ISERROR(MATCH(D119,Simulador!$H$16:$H$17,0))=FALSE,"C",IF(ISERROR(MATCH(D119,Simulador!$H$18:$H$19,0))=FALSE,"D","")) ->  | F119: =IF(E119="C",0,IF(E119 ="D",ROUND(1/((1+Simulador!$Q$13)^A119),9) * 2,ROUND(1/((1+Simulador!$Q$13)^A119),9))) -> 0.369013983 | G119: 73.10541745
A120: 117 | B120: 117 | C120: 2035-03-10 | D120: 3 | E120: =IF(ISERROR(MATCH(D120,Simulador!$H$16:$H$17,0))=FALSE,"C",IF(ISERROR(MATCH(D120,Simulador!$H$18:$H$19,0))=FALSE,"D","")) ->  | F120: =IF(E120="C",0,IF(E120 ="D",ROUND(1/((1+Simulador!$Q$13)^A120),9) * 2,ROUND(1/((1+Simulador!$Q$13)^A120),9))) -> 0.365856212 | G120: 73.47127366
A121: 118 | B121: 118 | C121: 2035-04-10 | D121: 4 | E121: =IF(ISERROR(MATCH(D121,Simulador!$H$16:$H$17,0))=FALSE,"C",IF(ISERROR(MATCH(D121,Simulador!$H$18:$H$19,0))=FALSE,"D","")) ->  | F121: =IF(E121="C",0,IF(E121 ="D",ROUND(1/((1+Simulador!$Q$13)^A121),9) * 2,ROUND(1/((1+Simulador!$Q$13)^A121),9))) -> 0.362725463 | G121: 73.83399912
A122: 119 | B122: 119 | C122: 2035-05-10 | D122: 5 | E122: =IF(ISERROR(MATCH(D122,Simulador!$H$16:$H$17,0))=FALSE,"C",IF(ISERROR(MATCH(D122,Simulador!$H$18:$H$19,0))=FALSE,"D","")) ->  | F122: =IF(E122="C",0,IF(E122 ="D",ROUND(1/((1+Simulador!$Q$13)^A122),9) * 2,ROUND(1/((1+Simulador!$Q$13)^A122),9))) -> 0.359621506 | G122: 74.19362063
A123: 120 | B123: 120 | C123: 2035-06-10 | D123: 6 | E123: =IF(ISERROR(MATCH(D123,Simulador!$H$16:$H$17,0))=FALSE,"C",IF(ISERROR(MATCH(D123,Simulador!$H$18:$H$19,0))=FALSE,"D","")) ->  | F123: =IF(E123="C",0,IF(E123 ="D",ROUND(1/((1+Simulador!$Q$13)^A123),9) * 2,ROUND(1/((1+Simulador!$Q$13)^A123),9))) -> 0.356544109 | G123: 74.55016474
A124: 121 | B124: 121 | C124: 2035-07-10 | D124: 7 | E124: =IF(ISERROR(MATCH(D124,Simulador!$H$16:$H$17,0))=FALSE,"C",IF(ISERROR(MATCH(D124,Simulador!$H$18:$H$19,0))=FALSE,"D","")) ->  | F124: =IF(E124="C",0,IF(E124 ="D",ROUND(1/((1+Simulador!$Q$13)^A124),9) * 2,ROUND(1/((1+Simulador!$Q$13)^A124),9))) -> 0.353493047 | G124: 74.90365778
A125: 122 | B125: 122 | C125: 2035-08-10 | D125: 8 | E125: =IF(ISERROR(MATCH(D125,Simulador!$H$16:$H$17,0))=FALSE,"C",IF(ISERROR(MATCH(D125,Simulador!$H$18:$H$19,0))=FALSE,"D","")) ->  | F125: =IF(E125="C",0,IF(E125 ="D",ROUND(1/((1+Simulador!$Q$13)^A125),9) * 2,ROUND(1/((1+Simulador!$Q$13)^A125),9))) -> 0.350468094 | G125: 75.25412588
A126: 123 | B126: 123 | C126: 2035-09-10 | D126: 9 | E126: =IF(ISERROR(MATCH(D126,Simulador!$H$16:$H$17,0))=FALSE,"C",IF(ISERROR(MATCH(D126,Simulador!$H$18:$H$19,0))=FALSE,"D","")) ->  | F126: =IF(E126="C",0,IF(E126 ="D",ROUND(1/((1+Simulador!$Q$13)^A126),9) * 2,ROUND(1/((1+Simulador!$Q$13)^A126),9))) -> 0.347469026 | G126: 75.6015949
A127: 124 | B127: 124 | C127: 2035-10-10 | D127: 10 | E127: =IF(ISERROR(MATCH(D127,Simulador!$H$16:$H$17,0))=FALSE,"C",IF(ISERROR(MATCH(D127,Simulador!$H$18:$H$19,0))=FALSE,"D","")) ->  | F127: =IF(E127="C",0,IF(E127 ="D",ROUND(1/((1+Simulador!$Q$13)^A127),9) * 2,ROUND(1/((1+Simulador!$Q$13)^A127),9))) -> 0.344495622 | G127: 75.94609053
A128: 125 | B128: 125 | C128: 2035-11-10 | D128: 11 | E128: =IF(ISERROR(MATCH(D128,Simulador!$H$16:$H$17,0))=FALSE,"C",IF(ISERROR(MATCH(D128,Simulador!$H$18:$H$19,0))=FALSE,"D","")) ->  | F128: =IF(E128="C",0,IF(E128 ="D",ROUND(1/((1+Simulador!$Q$13)^A128),9) * 2,ROUND(1/((1+Simulador!$Q$13)^A128),9))) -> 0.341547663 | G128: 76.28763819
A129: 126 | B129: 126 | C129: 2035-12-10 | D129: 12 | E129: =IF(ISERROR(MATCH(D129,Simulador!$H$16:$H$17,0))=FALSE,"C",IF(ISERROR(MATCH(D129,Simulador!$H$18:$H$19,0))=FALSE,"D","")) ->  | F129: =IF(E129="C",0,IF(E129 ="D",ROUND(1/((1+Simulador!$Q$13)^A129),9) * 2,ROUND(1/((1+Simulador!$Q$13)^A129),9))) -> 0.33862493 | G129: 76.62626312
A130: 127 | B130: 127 | C130: 2036-01-10 | D130: 1 | E130: =IF(ISERROR(MATCH(D130,Simulador!$H$16:$H$17,0))=FALSE,"C",IF(ISERROR(MATCH(D130,Simulador!$H$18:$H$19,0))=FALSE,"D","")) ->  | F130: =IF(E130="C",0,IF(E130 ="D",ROUND(1/((1+Simulador!$Q$13)^A130),9) * 2,ROUND(1/((1+Simulador!$Q$13)^A130),9))) -> 0.335727208 | G130: 76.96199033
A131: 128 | B131: 128 | C131: 2036-02-10 | D131: 2 | E131: =IF(ISERROR(MATCH(D131,Simulador!$H$16:$H$17,0))=FALSE,"C",IF(ISERROR(MATCH(D131,Simulador!$H$18:$H$19,0))=FALSE,"D","")) ->  | F131: =IF(E131="C",0,IF(E131 ="D",ROUND(1/((1+Simulador!$Q$13)^A131),9) * 2,ROUND(1/((1+Simulador!$Q$13)^A131),9))) -> 0.332854283 | G131: 77.29484461
A132: 129 | B132: 129 | C132: 2036-03-10 | D132: =MONTH(C132) -> 3 | E132: =IF(ISERROR(MATCH(D132,Simulador!$H$16:$H$17,0))=FALSE,"C",IF(ISERROR(MATCH(D132,Simulador!$H$18:$H$19,0))=FALSE,"D","")) ->  | F132: =IF(E132="C",0,IF(E132 ="D",ROUND(1/((1+Simulador!$Q$13)^A132),9) * 2,ROUND(1/((1+Simulador!$Q$13)^A132),9))) -> 0.330005942 | G132: 77.62485055
A133: =A132+1 -> 130 | B133: =IF(E133<>"C",IF(ISERROR(1+B132)=TRUE,1,1+B132),IF(ISNUMBER(B132),B132,1)) -> 130 | C133: =DATE(YEAR(C132) + 1/12,MONTH(C132)+1,DAY(C132)) -> 2036-04-10 | D133: 4 | E133: =IF(ISERROR(MATCH(D133,Simulador!$H$16:$H$17,0))=FALSE,"C",IF(ISERROR(MATCH(D133,Simulador!$H$18:$H$19,0))=FALSE,"D","")) ->  | F133: =IF(E133="C",0,IF(E133 ="D",ROUND(1/((1+Simulador!$Q$13)^A133),9) * 2,ROUND(1/((1+Simulador!$Q$13)^A133),9))) -> 0.327181976 | G133: 77.95203253
A134: 131 | B134: 131 | C134: 2036-05-10 | D134: 5 | E134: =IF(ISERROR(MATCH(D134,Simulador!$H$16:$H$17,0))=FALSE,"C",IF(ISERROR(MATCH(D134,Simulador!$H$18:$H$19,0))=FALSE,"D","")) ->  | F134: =IF(E134="C",0,IF(E134 ="D",ROUND(1/((1+Simulador!$Q$13)^A134),9) * 2,ROUND(1/((1+Simulador!$Q$13)^A134),9))) -> 0.324382175 | G134: =G133+ROUND(F134,9) -> 78.2764147
A135: 132 | B135: 132 | C135: 2036-06-10 | D135: 6 | E135: =IF(ISERROR(MATCH(D135,Simulador!$H$16:$H$17,0))=FALSE,"C",IF(ISERROR(MATCH(D135,Simulador!$H$18:$H$19,0))=FALSE,"D","")) ->  | F135: =IF(E135="C",0,IF(E135 ="D",ROUND(1/((1+Simulador!$Q$13)^A135),9) * 2,ROUND(1/((1+Simulador!$Q$13)^A135),9))) -> 0.321606333 | G135: 78.59802104
A136: 133 | B136: 133 | C136: 2036-07-10 | D136: 7 | E136: =IF(ISERROR(MATCH(D136,Simulador!$H$16:$H$17,0))=FALSE,"C",IF(ISERROR(MATCH(D136,Simulador!$H$18:$H$19,0))=FALSE,"D","")) ->  | F136: =IF(E136="C",0,IF(E136 ="D",ROUND(1/((1+Simulador!$Q$13)^A136),9) * 2,ROUND(1/((1+Simulador!$Q$13)^A136),9))) -> 0.318854244 | G136: 78.91687528
A137: 134 | B137: 134 | C137: 2036-08-10 | D137: 8 | E137: =IF(ISERROR(MATCH(D137,Simulador!$H$16:$H$17,0))=FALSE,"C",IF(ISERROR(MATCH(D137,Simulador!$H$18:$H$19,0))=FALSE,"D","")) ->  | F137: =IF(E137="C",0,IF(E137 ="D",ROUND(1/((1+Simulador!$Q$13)^A137),9) * 2,ROUND(1/((1+Simulador!$Q$13)^A137),9))) -> 0.316125707 | G137: 79.23300099
A138: 135 | B138: 135 | C138: 2036-09-10 | D138: 9 | E138: =IF(ISERROR(MATCH(D138,Simulador!$H$16:$H$17,0))=FALSE,"C",IF(ISERROR(MATCH(D138,Simulador!$H$18:$H$19,0))=FALSE,"D","")) ->  | F138: =IF(E138="C",0,IF(E138 ="D",ROUND(1/((1+Simulador!$Q$13)^A138),9) * 2,ROUND(1/((1+Simulador!$Q$13)^A138),9))) -> 0.313420518 | G138: 79.5464215
A139: 136 | B139: 136 | C139: 2036-10-10 | D139: 10 | E139: =IF(ISERROR(MATCH(D139,Simulador!$H$16:$H$17,0))=FALSE,"C",IF(ISERROR(MATCH(D139,Simulador!$H$18:$H$19,0))=FALSE,"D","")) ->  | F139: =IF(E139="C",0,IF(E139 ="D",ROUND(1/((1+Simulador!$Q$13)^A139),9) * 2,ROUND(1/((1+Simulador!$Q$13)^A139),9))) -> 0.310738478 | G139: 79.85715998
A140: 137 | B140: 137 | C140: 2036-11-10 | D140: 11 | E140: =IF(ISERROR(MATCH(D140,Simulador!$H$16:$H$17,0))=FALSE,"C",IF(ISERROR(MATCH(D140,Simulador!$H$18:$H$19,0))=FALSE,"D","")) ->  | F140: =IF(E140="C",0,IF(E140 ="D",ROUND(1/((1+Simulador!$Q$13)^A140),9) * 2,ROUND(1/((1+Simulador!$Q$13)^A140),9))) -> 0.308079389 | G140: 80.16523937
A141: 138 | B141: 138 | C141: 2036-12-10 | D141: 12 | E141: =IF(ISERROR(MATCH(D141,Simulador!$H$16:$H$17,0))=FALSE,"C",IF(ISERROR(MATCH(D141,Simulador!$H$18:$H$19,0))=FALSE,"D","")) ->  | F141: =IF(E141="C",0,IF(E141 ="D",ROUND(1/((1+Simulador!$Q$13)^A141),9) * 2,ROUND(1/((1+Simulador!$Q$13)^A141),9))) -> 0.305443055 | G141: 80.47068243
A142: 139 | B142: 139 | C142: 2037-01-10 | D142: 1 | E142: =IF(ISERROR(MATCH(D142,Simulador!$H$16:$H$17,0))=FALSE,"C",IF(ISERROR(MATCH(D142,Simulador!$H$18:$H$19,0))=FALSE,"D","")) ->  | F142: =IF(E142="C",0,IF(E142 ="D",ROUND(1/((1+Simulador!$Q$13)^A142),9) * 2,ROUND(1/((1+Simulador!$Q$13)^A142),9))) -> 0.302829281 | G142: 80.77351171
A143: 140 | B143: 140 | C143: 2037-02-10 | D143: 2 | E143: =IF(ISERROR(MATCH(D143,Simulador!$H$16:$H$17,0))=FALSE,"C",IF(ISERROR(MATCH(D143,Simulador!$H$18:$H$19,0))=FALSE,"D","")) ->  | F143: =IF(E143="C",0,IF(E143 ="D",ROUND(1/((1+Simulador!$Q$13)^A143),9) * 2,ROUND(1/((1+Simulador!$Q$13)^A143),9))) -> 0.300237874 | G143: 81.07374958
A144: 141 | B144: 141 | C144: 2037-03-10 | D144: 3 | E144: =IF(ISERROR(MATCH(D144,Simulador!$H$16:$H$17,0))=FALSE,"C",IF(ISERROR(MATCH(D144,Simulador!$H$18:$H$19,0))=FALSE,"D","")) ->  | F144: =IF(E144="C",0,IF(E144 ="D",ROUND(1/((1+Simulador!$Q$13)^A144),9) * 2,ROUND(1/((1+Simulador!$Q$13)^A144),9))) -> 0.297668642 | G144: 81.37141822
A145: 142 | B145: 142 | C145: 2037-04-10 | D145: 4 | E145: =IF(ISERROR(MATCH(D145,Simulador!$H$16:$H$17,0))=FALSE,"C",IF(ISERROR(MATCH(D145,Simulador!$H$18:$H$19,0))=FALSE,"D","")) ->  | F145: =IF(E145="C",0,IF(E145 ="D",ROUND(1/((1+Simulador!$Q$13)^A145),9) * 2,ROUND(1/((1+Simulador!$Q$13)^A145),9))) -> 0.295121397 | G145: 81.66653962
A146: 143 | B146: 143 | C146: 2037-05-10 | D146: 5 | E146: =IF(ISERROR(MATCH(D146,Simulador!$H$16:$H$17,0))=FALSE,"C",IF(ISERROR(MATCH(D146,Simulador!$H$18:$H$19,0))=FALSE,"D","")) ->  | F146: =IF(E146="C",0,IF(E146 ="D",ROUND(1/((1+Simulador!$Q$13)^A146),9) * 2,ROUND(1/((1+Simulador!$Q$13)^A146),9))) -> 0.292595948 | G146: 81.95913557
A147: 144 | B147: 144 | C147: 2037-06-10 | D147: 6 | E147: =IF(ISERROR(MATCH(D147,Simulador!$H$16:$H$17,0))=FALSE,"C",IF(ISERROR(MATCH(D147,Simulador!$H$18:$H$19,0))=FALSE,"D","")) ->  | F147: =IF(E147="C",0,IF(E147 ="D",ROUND(1/((1+Simulador!$Q$13)^A147),9) * 2,ROUND(1/((1+Simulador!$Q$13)^A147),9))) -> 0.290092111 | G147: 82.24922768
A148: 145 | B148: 145 | C148: 2037-07-10 | D148: 7 | E148: =IF(ISERROR(MATCH(D148,Simulador!$H$16:$H$17,0))=FALSE,"C",IF(ISERROR(MATCH(D148,Simulador!$H$18:$H$19,0))=FALSE,"D","")) ->  | F148: =IF(E148="C",0,IF(E148 ="D",ROUND(1/((1+Simulador!$Q$13)^A148),9) * 2,ROUND(1/((1+Simulador!$Q$13)^A148),9))) -> 0.2876097 | G148: 82.53683738
A149: 146 | B149: 146 | C149: 2037-08-10 | D149: 8 | E149: =IF(ISERROR(MATCH(D149,Simulador!$H$16:$H$17,0))=FALSE,"C",IF(ISERROR(MATCH(D149,Simulador!$H$18:$H$19,0))=FALSE,"D","")) ->  | F149: =IF(E149="C",0,IF(E149 ="D",ROUND(1/((1+Simulador!$Q$13)^A149),9) * 2,ROUND(1/((1+Simulador!$Q$13)^A149),9))) -> 0.285148532 | G149: 82.82198591
A150: 147 | B150: 147 | C150: 2037-09-10 | D150: 9 | E150: =IF(ISERROR(MATCH(D150,Simulador!$H$16:$H$17,0))=FALSE,"C",IF(ISERROR(MATCH(D150,Simulador!$H$18:$H$19,0))=FALSE,"D","")) ->  | F150: =IF(E150="C",0,IF(E150 ="D",ROUND(1/((1+Simulador!$Q$13)^A150),9) * 2,ROUND(1/((1+Simulador!$Q$13)^A150),9))) -> 0.282708424 | G150: 83.10469434
A151: 148 | B151: 148 | C151: 2037-10-10 | D151: 10 | E151: =IF(ISERROR(MATCH(D151,Simulador!$H$16:$H$17,0))=FALSE,"C",IF(ISERROR(MATCH(D151,Simulador!$H$18:$H$19,0))=FALSE,"D","")) ->  | F151: =IF(E151="C",0,IF(E151 ="D",ROUND(1/((1+Simulador!$Q$13)^A151),9) * 2,ROUND(1/((1+Simulador!$Q$13)^A151),9))) -> 0.280289198 | G151: 83.38498353
A152: 149 | B152: 149 | C152: 2037-11-10 | D152: 11 | E152: =IF(ISERROR(MATCH(D152,Simulador!$H$16:$H$17,0))=FALSE,"C",IF(ISERROR(MATCH(D152,Simulador!$H$18:$H$19,0))=FALSE,"D","")) ->  | F152: =IF(E152="C",0,IF(E152 ="D",ROUND(1/((1+Simulador!$Q$13)^A152),9) * 2,ROUND(1/((1+Simulador!$Q$13)^A152),9))) -> 0.277890673 | G152: 83.66287421
A153: 150 | B153: 150 | C153: 2037-12-10 | D153: 12 | E153: =IF(ISERROR(MATCH(D153,Simulador!$H$16:$H$17,0))=FALSE,"C",IF(ISERROR(MATCH(D153,Simulador!$H$18:$H$19,0))=FALSE,"D","")) ->  | F153: =IF(E153="C",0,IF(E153 ="D",ROUND(1/((1+Simulador!$Q$13)^A153),9) * 2,ROUND(1/((1+Simulador!$Q$13)^A153),9))) -> 0.275512674 | G153: 83.93838688
A154: 151 | B154: 151 | C154: 2038-01-10 | D154: 1 | E154: =IF(ISERROR(MATCH(D154,Simulador!$H$16:$H$17,0))=FALSE,"C",IF(ISERROR(MATCH(D154,Simulador!$H$18:$H$19,0))=FALSE,"D","")) ->  | F154: =IF(E154="C",0,IF(E154 ="D",ROUND(1/((1+Simulador!$Q$13)^A154),9) * 2,ROUND(1/((1+Simulador!$Q$13)^A154),9))) -> 0.273155024 | G154: 84.2115419
A155: 152 | B155: 152 | C155: 2038-02-10 | D155: 2 | E155: =IF(ISERROR(MATCH(D155,Simulador!$H$16:$H$17,0))=FALSE,"C",IF(ISERROR(MATCH(D155,Simulador!$H$18:$H$19,0))=FALSE,"D","")) ->  | F155: =IF(E155="C",0,IF(E155 ="D",ROUND(1/((1+Simulador!$Q$13)^A155),9) * 2,ROUND(1/((1+Simulador!$Q$13)^A155),9))) -> 0.270817549 | G155: 84.48235945
A156: 153 | B156: 153 | C156: 2038-03-10 | D156: 3 | E156: =IF(ISERROR(MATCH(D156,Simulador!$H$16:$H$17,0))=FALSE,"C",IF(ISERROR(MATCH(D156,Simulador!$H$18:$H$19,0))=FALSE,"D","")) ->  | F156: =IF(E156="C",0,IF(E156 ="D",ROUND(1/((1+Simulador!$Q$13)^A156),9) * 2,ROUND(1/((1+Simulador!$Q$13)^A156),9))) -> 0.268500076 | G156: 84.75085953
A157: 154 | B157: 154 | C157: 2038-04-10 | D157: 4 | E157: =IF(ISERROR(MATCH(D157,Simulador!$H$16:$H$17,0))=FALSE,"C",IF(ISERROR(MATCH(D157,Simulador!$H$18:$H$19,0))=FALSE,"D","")) ->  | F157: =IF(E157="C",0,IF(E157 ="D",ROUND(1/((1+Simulador!$Q$13)^A157),9) * 2,ROUND(1/((1+Simulador!$Q$13)^A157),9))) -> 0.266202435 | G157: 85.01706196
A158: 155 | B158: 155 | C158: 2038-05-10 | D158: 5 | E158: =IF(ISERROR(MATCH(D158,Simulador!$H$16:$H$17,0))=FALSE,"C",IF(ISERROR(MATCH(D158,Simulador!$H$18:$H$19,0))=FALSE,"D","")) ->  | F158: =IF(E158="C",0,IF(E158 ="D",ROUND(1/((1+Simulador!$Q$13)^A158),9) * 2,ROUND(1/((1+Simulador!$Q$13)^A158),9))) -> 0.263924456 | G158: 85.28098642
A159: 156 | B159: 156 | C159: 2038-06-10 | D159: 6 | E159: =IF(ISERROR(MATCH(D159,Simulador!$H$16:$H$17,0))=FALSE,"C",IF(ISERROR(MATCH(D159,Simulador!$H$18:$H$19,0))=FALSE,"D","")) ->  | F159: =IF(E159="C",0,IF(E159 ="D",ROUND(1/((1+Simulador!$Q$13)^A159),9) * 2,ROUND(1/((1+Simulador!$Q$13)^A159),9))) -> 0.26166597 | G159: 85.54265239
A160: 157 | B160: 157 | C160: 2038-07-10 | D160: 7 | E160: =IF(ISERROR(MATCH(D160,Simulador!$H$16:$H$17,0))=FALSE,"C",IF(ISERROR(MATCH(D160,Simulador!$H$18:$H$19,0))=FALSE,"D","")) ->  | F160: =IF(E160="C",0,IF(E160 ="D",ROUND(1/((1+Simulador!$Q$13)^A160),9) * 2,ROUND(1/((1+Simulador!$Q$13)^A160),9))) -> 0.25942681 | G160: 85.8020792
A161: 158 | B161: 158 | C161: 2038-08-10 | D161: 8 | E161: =IF(ISERROR(MATCH(D161,Simulador!$H$16:$H$17,0))=FALSE,"C",IF(ISERROR(MATCH(D161,Simulador!$H$18:$H$19,0))=FALSE,"D","")) ->  | F161: =IF(E161="C",0,IF(E161 ="D",ROUND(1/((1+Simulador!$Q$13)^A161),9) * 2,ROUND(1/((1+Simulador!$Q$13)^A161),9))) -> 0.257206812 | G161: 86.05928601
A162: 159 | B162: 159 | C162: 2038-09-10 | D162: 9 | E162: =IF(ISERROR(MATCH(D162,Simulador!$H$16:$H$17,0))=FALSE,"C",IF(ISERROR(MATCH(D162,Simulador!$H$18:$H$19,0))=FALSE,"D","")) ->  | F162: =IF(E162="C",0,IF(E162 ="D",ROUND(1/((1+Simulador!$Q$13)^A162),9) * 2,ROUND(1/((1+Simulador!$Q$13)^A162),9))) -> 0.255005811 | G162: 86.31429182
A163: 160 | B163: 160 | C163: 2038-10-10 | D163: 10 | E163: =IF(ISERROR(MATCH(D163,Simulador!$H$16:$H$17,0))=FALSE,"C",IF(ISERROR(MATCH(D163,Simulador!$H$18:$H$19,0))=FALSE,"D","")) ->  | F163: =IF(E163="C",0,IF(E163 ="D",ROUND(1/((1+Simulador!$Q$13)^A163),9) * 2,ROUND(1/((1+Simulador!$Q$13)^A163),9))) -> 0.252823644 | G163: 86.56711547
A164: 161 | B164: 161 | C164: 2038-11-10 | D164: 11 | E164: =IF(ISERROR(MATCH(D164,Simulador!$H$16:$H$17,0))=FALSE,"C",IF(ISERROR(MATCH(D164,Simulador!$H$18:$H$19,0))=FALSE,"D","")) ->  | F164: =IF(E164="C",0,IF(E164 ="D",ROUND(1/((1+Simulador!$Q$13)^A164),9) * 2,ROUND(1/((1+Simulador!$Q$13)^A164),9))) -> 0.250660151 | G164: 86.81777562
A165: 162 | B165: 162 | C165: 2038-12-10 | D165: 12 | E165: =IF(ISERROR(MATCH(D165,Simulador!$H$16:$H$17,0))=FALSE,"C",IF(ISERROR(MATCH(D165,Simulador!$H$18:$H$19,0))=FALSE,"D","")) ->  | F165: =IF(E165="C",0,IF(E165 ="D",ROUND(1/((1+Simulador!$Q$13)^A165),9) * 2,ROUND(1/((1+Simulador!$Q$13)^A165),9))) -> 0.248515172 | G165: 87.06629079
A166: 163 | B166: 163 | C166: 2039-01-10 | D166: 1 | E166: =IF(ISERROR(MATCH(D166,Simulador!$H$16:$H$17,0))=FALSE,"C",IF(ISERROR(MATCH(D166,Simulador!$H$18:$H$19,0))=FALSE,"D","")) ->  | F166: =IF(E166="C",0,IF(E166 ="D",ROUND(1/((1+Simulador!$Q$13)^A166),9) * 2,ROUND(1/((1+Simulador!$Q$13)^A166),9))) -> 0.246388548 | G166: 87.31267934
A167: 164 | B167: 164 | C167: 2039-02-10 | D167: 2 | E167: =IF(ISERROR(MATCH(D167,Simulador!$H$16:$H$17,0))=FALSE,"C",IF(ISERROR(MATCH(D167,Simulador!$H$18:$H$19,0))=FALSE,"D","")) ->  | F167: =IF(E167="C",0,IF(E167 ="D",ROUND(1/((1+Simulador!$Q$13)^A167),9) * 2,ROUND(1/((1+Simulador!$Q$13)^A167),9))) -> 0.244280123 | G167: 87.55695946
A168: 165 | B168: 165 | C168: 2039-03-10 | D168: 3 | E168: =IF(ISERROR(MATCH(D168,Simulador!$H$16:$H$17,0))=FALSE,"C",IF(ISERROR(MATCH(D168,Simulador!$H$18:$H$19,0))=FALSE,"D","")) ->  | F168: =IF(E168="C",0,IF(E168 ="D",ROUND(1/((1+Simulador!$Q$13)^A168),9) * 2,ROUND(1/((1+Simulador!$Q$13)^A168),9))) -> 0.242189739 | G168: 87.7991492
A169: 166 | B169: 166 | C169: 2039-04-10 | D169: 4 | E169: =IF(ISERROR(MATCH(D169,Simulador!$H$16:$H$17,0))=FALSE,"C",IF(ISERROR(MATCH(D169,Simulador!$H$18:$H$19,0))=FALSE,"D","")) ->  | F169: =IF(E169="C",0,IF(E169 ="D",ROUND(1/((1+Simulador!$Q$13)^A169),9) * 2,ROUND(1/((1+Simulador!$Q$13)^A169),9))) -> 0.240117244 | G169: 88.03926644
A170: 167 | B170: 167 | C170: 2039-05-10 | D170: 5 | E170: =IF(ISERROR(MATCH(D170,Simulador!$H$16:$H$17,0))=FALSE,"C",IF(ISERROR(MATCH(D170,Simulador!$H$18:$H$19,0))=FALSE,"D","")) ->  | F170: =IF(E170="C",0,IF(E170 ="D",ROUND(1/((1+Simulador!$Q$13)^A170),9) * 2,ROUND(1/((1+Simulador!$Q$13)^A170),9))) -> 0.238062484 | G170: 88.27732893
A171: 168 | B171: 168 | C171: 2039-06-10 | D171: 6 | E171: =IF(ISERROR(MATCH(D171,Simulador!$H$16:$H$17,0))=FALSE,"C",IF(ISERROR(MATCH(D171,Simulador!$H$18:$H$19,0))=FALSE,"D","")) ->  | F171: =IF(E171="C",0,IF(E171 ="D",ROUND(1/((1+Simulador!$Q$13)^A171),9) * 2,ROUND(1/((1+Simulador!$Q$13)^A171),9))) -> 0.236025307 | G171: 88.51335424
A172: 169 | B172: 169 | C172: 2039-07-10 | D172: 7 | E172: =IF(ISERROR(MATCH(D172,Simulador!$H$16:$H$17,0))=FALSE,"C",IF(ISERROR(MATCH(D172,Simulador!$H$18:$H$19,0))=FALSE,"D","")) ->  | F172: =IF(E172="C",0,IF(E172 ="D",ROUND(1/((1+Simulador!$Q$13)^A172),9) * 2,ROUND(1/((1+Simulador!$Q$13)^A172),9))) -> 0.234005563 | G172: 88.7473598
A173: 170 | B173: 170 | C173: 2039-08-10 | D173: 8 | E173: =IF(ISERROR(MATCH(D173,Simulador!$H$16:$H$17,0))=FALSE,"C",IF(ISERROR(MATCH(D173,Simulador!$H$18:$H$19,0))=FALSE,"D","")) ->  | F173: =IF(E173="C",0,IF(E173 ="D",ROUND(1/((1+Simulador!$Q$13)^A173),9) * 2,ROUND(1/((1+Simulador!$Q$13)^A173),9))) -> 0.232003102 | G173: 88.9793629
A174: 171 | B174: 171 | C174: 2039-09-10 | D174: 9 | E174: =IF(ISERROR(MATCH(D174,Simulador!$H$16:$H$17,0))=FALSE,"C",IF(ISERROR(MATCH(D174,Simulador!$H$18:$H$19,0))=FALSE,"D","")) ->  | F174: =IF(E174="C",0,IF(E174 ="D",ROUND(1/((1+Simulador!$Q$13)^A174),9) * 2,ROUND(1/((1+Simulador!$Q$13)^A174),9))) -> 0.230017778 | G174: 89.20938068
A175: 172 | B175: 172 | C175: 2039-10-10 | D175: 10 | E175: =IF(ISERROR(MATCH(D175,Simulador!$H$16:$H$17,0))=FALSE,"C",IF(ISERROR(MATCH(D175,Simulador!$H$18:$H$19,0))=FALSE,"D","")) ->  | F175: =IF(E175="C",0,IF(E175 ="D",ROUND(1/((1+Simulador!$Q$13)^A175),9) * 2,ROUND(1/((1+Simulador!$Q$13)^A175),9))) -> 0.228049442 | G175: 89.43743012
A176: 173 | B176: 173 | C176: 2039-11-10 | D176: 11 | E176: =IF(ISERROR(MATCH(D176,Simulador!$H$16:$H$17,0))=FALSE,"C",IF(ISERROR(MATCH(D176,Simulador!$H$18:$H$19,0))=FALSE,"D","")) ->  | F176: =IF(E176="C",0,IF(E176 ="D",ROUND(1/((1+Simulador!$Q$13)^A176),9) * 2,ROUND(1/((1+Simulador!$Q$13)^A176),9))) -> 0.22609795 | G176: 89.66352807
A177: 174 | B177: 174 | C177: 2039-12-10 | D177: 12 | E177: =IF(ISERROR(MATCH(D177,Simulador!$H$16:$H$17,0))=FALSE,"C",IF(ISERROR(MATCH(D177,Simulador!$H$18:$H$19,0))=FALSE,"D","")) ->  | F177: =IF(E177="C",0,IF(E177 ="D",ROUND(1/((1+Simulador!$Q$13)^A177),9) * 2,ROUND(1/((1+Simulador!$Q$13)^A177),9))) -> 0.224163157 | G177: 89.88769123
A178: 175 | B178: 175 | C178: 2040-01-10 | D178: 1 | E178: =IF(ISERROR(MATCH(D178,Simulador!$H$16:$H$17,0))=FALSE,"C",IF(ISERROR(MATCH(D178,Simulador!$H$18:$H$19,0))=FALSE,"D","")) ->  | F178: =IF(E178="C",0,IF(E178 ="D",ROUND(1/((1+Simulador!$Q$13)^A178),9) * 2,ROUND(1/((1+Simulador!$Q$13)^A178),9))) -> 0.222244921 | G178: 90.10993615
A179: 176 | B179: 176 | C179: 2040-02-10 | D179: 2 | E179: =IF(ISERROR(MATCH(D179,Simulador!$H$16:$H$17,0))=FALSE,"C",IF(ISERROR(MATCH(D179,Simulador!$H$18:$H$19,0))=FALSE,"D","")) ->  | F179: =IF(E179="C",0,IF(E179 ="D",ROUND(1/((1+Simulador!$Q$13)^A179),9) * 2,ROUND(1/((1+Simulador!$Q$13)^A179),9))) -> 0.2203431 | G179: 90.33027925
A180: 177 | B180: 177 | C180: 2040-03-10 | D180: 3 | E180: =IF(ISERROR(MATCH(D180,Simulador!$H$16:$H$17,0))=FALSE,"C",IF(ISERROR(MATCH(D180,Simulador!$H$18:$H$19,0))=FALSE,"D","")) ->  | F180: =IF(E180="C",0,IF(E180 ="D",ROUND(1/((1+Simulador!$Q$13)^A180),9) * 2,ROUND(1/((1+Simulador!$Q$13)^A180),9))) -> 0.218457554 | G180: 90.5487368
A181: 178 | B181: 178 | C181: 2040-04-10 | D181: 4 | E181: =IF(ISERROR(MATCH(D181,Simulador!$H$16:$H$17,0))=FALSE,"C",IF(ISERROR(MATCH(D181,Simulador!$H$18:$H$19,0))=FALSE,"D","")) ->  | F181: =IF(E181="C",0,IF(E181 ="D",ROUND(1/((1+Simulador!$Q$13)^A181),9) * 2,ROUND(1/((1+Simulador!$Q$13)^A181),9))) -> 0.216588143 | G181: 90.76532495
A182: 179 | B182: 179 | C182: 2040-05-10 | D182: 5 | E182: =IF(ISERROR(MATCH(D182,Simulador!$H$16:$H$17,0))=FALSE,"C",IF(ISERROR(MATCH(D182,Simulador!$H$18:$H$19,0))=FALSE,"D","")) ->  | F182: =IF(E182="C",0,IF(E182 ="D",ROUND(1/((1+Simulador!$Q$13)^A182),9) * 2,ROUND(1/((1+Simulador!$Q$13)^A182),9))) -> 0.214734729 | G182: 90.98005967
A183: 180 | B183: 180 | C183: 2040-06-10 | D183: 6 | E183: =IF(ISERROR(MATCH(D183,Simulador!$H$16:$H$17,0))=FALSE,"C",IF(ISERROR(MATCH(D183,Simulador!$H$18:$H$19,0))=FALSE,"D","")) ->  | F183: =IF(E183="C",0,IF(E183 ="D",ROUND(1/((1+Simulador!$Q$13)^A183),9) * 2,ROUND(1/((1+Simulador!$Q$13)^A183),9))) -> 0.212897175 | G183: 91.19295685
A184: 181 | B184: 181 | C184: 2040-07-10 | D184: 7 | E184: =IF(ISERROR(MATCH(D184,Simulador!$H$16:$H$17,0))=FALSE,"C",IF(ISERROR(MATCH(D184,Simulador!$H$18:$H$19,0))=FALSE,"D","")) ->  | F184: =IF(E184="C",0,IF(E184 ="D",ROUND(1/((1+Simulador!$Q$13)^A184),9) * 2,ROUND(1/((1+Simulador!$Q$13)^A184),9))) -> 0.211075345 | G184: 91.40403219
A185: 182 | B185: 182 | C185: 2040-08-10 | D185: 8 | E185: =IF(ISERROR(MATCH(D185,Simulador!$H$16:$H$17,0))=FALSE,"C",IF(ISERROR(MATCH(D185,Simulador!$H$18:$H$19,0))=FALSE,"D","")) ->  | F185: =IF(E185="C",0,IF(E185 ="D",ROUND(1/((1+Simulador!$Q$13)^A185),9) * 2,ROUND(1/((1+Simulador!$Q$13)^A185),9))) -> 0.209269106 | G185: 91.6133013
A186: 183 | B186: 183 | C186: 2040-09-10 | D186: 9 | E186: =IF(ISERROR(MATCH(D186,Simulador!$H$16:$H$17,0))=FALSE,"C",IF(ISERROR(MATCH(D186,Simulador!$H$18:$H$19,0))=FALSE,"D","")) ->  | F186: =IF(E186="C",0,IF(E186 ="D",ROUND(1/((1+Simulador!$Q$13)^A186),9) * 2,ROUND(1/((1+Simulador!$Q$13)^A186),9))) -> 0.207478323 | G186: 91.82077962
A187: 184 | B187: 184 | C187: 2040-10-10 | D187: 10 | E187: =IF(ISERROR(MATCH(D187,Simulador!$H$16:$H$17,0))=FALSE,"C",IF(ISERROR(MATCH(D187,Simulador!$H$18:$H$19,0))=FALSE,"D","")) ->  | F187: =IF(E187="C",0,IF(E187 ="D",ROUND(1/((1+Simulador!$Q$13)^A187),9) * 2,ROUND(1/((1+Simulador!$Q$13)^A187),9))) -> 0.205702865 | G187: 92.02648249
A188: 185 | B188: 185 | C188: 2040-11-10 | D188: 11 | E188: =IF(ISERROR(MATCH(D188,Simulador!$H$16:$H$17,0))=FALSE,"C",IF(ISERROR(MATCH(D188,Simulador!$H$18:$H$19,0))=FALSE,"D","")) ->  | F188: =IF(E188="C",0,IF(E188 ="D",ROUND(1/((1+Simulador!$Q$13)^A188),9) * 2,ROUND(1/((1+Simulador!$Q$13)^A188),9))) -> 0.2039426 | G188: 92.23042509
A189: 186 | B189: 186 | C189: 2040-12-10 | D189: 12 | E189: =IF(ISERROR(MATCH(D189,Simulador!$H$16:$H$17,0))=FALSE,"C",IF(ISERROR(MATCH(D189,Simulador!$H$18:$H$19,0))=FALSE,"D","")) ->  | F189: =IF(E189="C",0,IF(E189 ="D",ROUND(1/((1+Simulador!$Q$13)^A189),9) * 2,ROUND(1/((1+Simulador!$Q$13)^A189),9))) -> 0.202197397 | G189: 92.43262249
A190: 187 | B190: 187 | C190: 2041-01-10 | D190: 1 | E190: =IF(ISERROR(MATCH(D190,Simulador!$H$16:$H$17,0))=FALSE,"C",IF(ISERROR(MATCH(D190,Simulador!$H$18:$H$19,0))=FALSE,"D","")) ->  | F190: =IF(E190="C",0,IF(E190 ="D",ROUND(1/((1+Simulador!$Q$13)^A190),9) * 2,ROUND(1/((1+Simulador!$Q$13)^A190),9))) -> 0.20046713 | G190: 92.63308962
A191: 188 | B191: 188 | C191: 2041-02-10 | D191: 2 | E191: =IF(ISERROR(MATCH(D191,Simulador!$H$16:$H$17,0))=FALSE,"C",IF(ISERROR(MATCH(D191,Simulador!$H$18:$H$19,0))=FALSE,"D","")) ->  | F191: =IF(E191="C",0,IF(E191 ="D",ROUND(1/((1+Simulador!$Q$13)^A191),9) * 2,ROUND(1/((1+Simulador!$Q$13)^A191),9))) -> 0.198751668 | G191: 92.83184128
A192: 189 | B192: 189 | C192: 2041-03-10 | D192: 3 | E192: =IF(ISERROR(MATCH(D192,Simulador!$H$16:$H$17,0))=FALSE,"C",IF(ISERROR(MATCH(D192,Simulador!$H$18:$H$19,0))=FALSE,"D","")) ->  | F192: =IF(E192="C",0,IF(E192 ="D",ROUND(1/((1+Simulador!$Q$13)^A192),9) * 2,ROUND(1/((1+Simulador!$Q$13)^A192),9))) -> 0.197050886 | G192: 93.02889217
A193: 190 | B193: 190 | C193: 2041-04-10 | D193: 4 | E193: =IF(ISERROR(MATCH(D193,Simulador!$H$16:$H$17,0))=FALSE,"C",IF(ISERROR(MATCH(D193,Simulador!$H$18:$H$19,0))=FALSE,"D","")) ->  | F193: =IF(E193="C",0,IF(E193 ="D",ROUND(1/((1+Simulador!$Q$13)^A193),9) * 2,ROUND(1/((1+Simulador!$Q$13)^A193),9))) -> 0.195364659 | G193: 93.22425683
A194: 191 | B194: 191 | C194: 2041-05-10 | D194: 5 | E194: =IF(ISERROR(MATCH(D194,Simulador!$H$16:$H$17,0))=FALSE,"C",IF(ISERROR(MATCH(D194,Simulador!$H$18:$H$19,0))=FALSE,"D","")) ->  | F194: =IF(E194="C",0,IF(E194 ="D",ROUND(1/((1+Simulador!$Q$13)^A194),9) * 2,ROUND(1/((1+Simulador!$Q$13)^A194),9))) -> 0.193692861 | G194: 93.41794969
A195: 192 | B195: 192 | C195: 2041-06-10 | D195: 6 | E195: =IF(ISERROR(MATCH(D195,Simulador!$H$16:$H$17,0))=FALSE,"C",IF(ISERROR(MATCH(D195,Simulador!$H$18:$H$19,0))=FALSE,"D","")) ->  | F195: =IF(E195="C",0,IF(E195 ="D",ROUND(1/((1+Simulador!$Q$13)^A195),9) * 2,ROUND(1/((1+Simulador!$Q$13)^A195),9))) -> 0.192035369 | G195: 93.60998506
A196: 193 | B196: 193 | C196: 2041-07-10 | D196: =MONTH(C196) -> 7 | E196: =IF(ISERROR(MATCH(D196,Simulador!$H$16:$H$17,0))=FALSE,"C",IF(ISERROR(MATCH(D196,Simulador!$H$18:$H$19,0))=FALSE,"D","")) ->  | F196: =IF(E196="C",0,IF(E196 ="D",ROUND(1/((1+Simulador!$Q$13)^A196),9) * 2,ROUND(1/((1+Simulador!$Q$13)^A196),9))) -> 0.190392061 | G196: 93.80037712
A197: =A196+1 -> 194 | B197: =IF(E197<>"C",IF(ISERROR(1+B196)=TRUE,1,1+B196),IF(ISNUMBER(B196),B196,1)) -> 194 | C197: =DATE(YEAR(C196) + 1/12,MONTH(C196)+1,DAY(C196)) -> 2041-08-10 | D197: 8 | E197: =IF(ISERROR(MATCH(D197,Simulador!$H$16:$H$17,0))=FALSE,"C",IF(ISERROR(MATCH(D197,Simulador!$H$18:$H$19,0))=FALSE,"D","")) ->  | F197: =IF(E197="C",0,IF(E197 ="D",ROUND(1/((1+Simulador!$Q$13)^A197),9) * 2,ROUND(1/((1+Simulador!$Q$13)^A197),9))) -> 0.188762815 | G197: 93.98913993
A198: 195 | B198: 195 | C198: 2041-09-10 | D198: 9 | E198: =IF(ISERROR(MATCH(D198,Simulador!$H$16:$H$17,0))=FALSE,"C",IF(ISERROR(MATCH(D198,Simulador!$H$18:$H$19,0))=FALSE,"D","")) ->  | F198: =IF(E198="C",0,IF(E198 ="D",ROUND(1/((1+Simulador!$Q$13)^A198),9) * 2,ROUND(1/((1+Simulador!$Q$13)^A198),9))) -> 0.187147511 | G198: =G197+ROUND(F198,9) -> 94.17628745
A199: 196 | B199: 196 | C199: 2041-10-10 | D199: 10 | E199: =IF(ISERROR(MATCH(D199,Simulador!$H$16:$H$17,0))=FALSE,"C",IF(ISERROR(MATCH(D199,Simulador!$H$18:$H$19,0))=FALSE,"D","")) ->  | F199: =IF(E199="C",0,IF(E199 ="D",ROUND(1/((1+Simulador!$Q$13)^A199),9) * 2,ROUND(1/((1+Simulador!$Q$13)^A199),9))) -> 0.18554603 | G199: 94.36183348
A200: 197 | B200: 197 | C200: 2041-11-10 | D200: 11 | E200: =IF(ISERROR(MATCH(D200,Simulador!$H$16:$H$17,0))=FALSE,"C",IF(ISERROR(MATCH(D200,Simulador!$H$18:$H$19,0))=FALSE,"D","")) ->  | F200: =IF(E200="C",0,IF(E200 ="D",ROUND(1/((1+Simulador!$Q$13)^A200),9) * 2,ROUND(1/((1+Simulador!$Q$13)^A200),9))) -> 0.183958253 | G200: 94.54579173
A201: 198 | B201: 198 | C201: 2041-12-10 | D201: 12 | E201: =IF(ISERROR(MATCH(D201,Simulador!$H$16:$H$17,0))=FALSE,"C",IF(ISERROR(MATCH(D201,Simulador!$H$18:$H$19,0))=FALSE,"D","")) ->  | F201: =IF(E201="C",0,IF(E201 ="D",ROUND(1/((1+Simulador!$Q$13)^A201),9) * 2,ROUND(1/((1+Simulador!$Q$13)^A201),9))) -> 0.182384064 | G201: 94.72817579
... 185 more rows
